{"text_format":"1","workbook":"xlsx","n_sheets":11,"sheets":["Day 0 - Production","Day 1 - Production","Day 2 - Production","Day 3 - Production","Day 4 - Production","Day 5 - Production","Dinner Menu Matrix (2)","Day 6 - Production","Day 7 - Production","Menu Vessel List","LUNCH CARVING"],"not_rendered":{"charts":0,"images":0,"macros":0,"external_links":0,"defined_names":16,"comments":0,"pivot_tables":0},"unopened":[],"bounds":{"document_bytes":16777216,"sheet_cells":100000,"rows_first":2000,"rows_last":500,"rows_between":2000,"halvings":0,"cell_chars":16384,"cell_head_chars":4096},"cells_cut":0,"cells_raw":0,"read":"whole","date_system":"1900"}

{"sheet":"Day 0 - Production","index":0,"n_rows":128,"n_cols":9,"rows_kept":128,"cut":false,"hidden":false,"merged":[[63,0,70,0],[102,3,102,8],[109,3,109,8],[115,3,115,8],[62,3,62,8],[71,3,71,8],[77,3,77,8],[94,3,94,8],[99,3,99,8],[110,0,113,0],[116,0,120,0],[116,1,118,1],[119,1,120,1],[103,0,108,0],[103,1,105,1],[106,1,107,1],[1,3,1,8],[8,3,8,8],[28,3,28,8],[35,3,35,8],[38,3,38,8],[43,3,43,8],[89,0,93,0],[95,0,97,0],[95,1,96,1],[100,0,101,0],[72,0,76,0],[72,1,73,1],[78,0,87,0],[78,1,83,1],[84,1,87,1],[58,0,61,0],[88,3,88,8],[50,3,50,8],[57,3,57,8],[63,1,68,1],[69,1,70,1],[36,0,37,0],[36,1,37,1],[39,0,42,0],[44,0,49,0],[51,0,56,0],[29,0,30,0],[29,1,30,1],[31,0,32,0],[31,1,32,1],[33,0,34,0],[33,1,34,1],[28,0,28,1],[3,0,4,0],[3,1,4,1],[5,0,6,0],[9,0,10,0],[11,0,12,0],[11,1,12,1],[13,0,14,0],[15,1,20,1],[15,0,20,0],[21,0,27,0],[21,1,27,1]]}
[null,"STATION","DINNER / DAY 0  x 2","PRODUCTION LOCATION","PRODUCTIONQTY","CDP Check off\nID","LEFTOVERS","CREW","SHOPPING LIST"]
[null,null,"WESTERN DESTINATIONS"]
["A1","GF-PASTA",{"$f":"'Dinner Menu Matrix (2)'!C3","v":"1) Roasted Peppers & Basil"},"LIDO HOT ","10KG"]
["A2","DAILY HOT SANDWICH",{"$f":"'Dinner Menu Matrix (2)'!C4","v":"1) Open Face Lemon Chicken "},"LIDO HOT ",150]
[null,null,{"$f":"'Dinner Menu Matrix (2)'!C5","v":"Gruyere Sandwich"},"LIDO HOT "]
["A3","TEX-MEX ITEM",{"$f":"'Dinner Menu Matrix (2)'!C6","v":"1) Chili Beef Brisket & Yellow Corn"},"GRILL6","80KG"]
[null,"SIDE ITEM",{"$f":"'Dinner Menu Matrix (2)'!C7","v":"Cheese Enchilada"}]
["A4","TOPPINGS",{"$f":"'Dinner Menu Matrix (2)'!C8","v":"Salsa: Tomato / Corn / Black Bean  - Guacamole / Sour Cream / Cheddar"}]
[null,null,"CARVING BAZAAR"]
["B1","FISH/SEAFOOD",{"$f":"'Dinner Menu Matrix (2)'!C10","v":"1) Spinach Stuffed Flounder/Butr Sc"},"LIDO HOT ","200/3OZ"]
[null,"VEGETABLES",{"$f":"'Dinner Menu Matrix (2)'!C11","v":"2) Parmesan Green Beans"},"LIDO HOT ","25KG"]
["B2","POTATO OR VEG",{"$f":"'Dinner Menu Matrix (2)'!C12","v":"1) Creamy Mashed Potatoes"},"SOUP6","30KG"]
[null,null,{"$f":"'Dinner Menu Matrix (2)'!C13","v":"2) Honey Roasted Sweet Potato"},"SOUP6","30KG"]
["B3","CARVING",{"$f":"'Dinner Menu Matrix (2)'!C14","v":"MEATLOAF & MACARONI WRAPPED IN APPLEWOOD BACON"},"GRILL5","12LOAF"]
[null,"SAUCES",{"$f":"'Dinner Menu Matrix (2)'!C15","v":"1) Cheese Sauce 2) BBQ Sauce          3) Cranberry Sauce 4) Mushroom"},"SAUCE 6","5LTR EACH"]
["B4","PASTA TOPPINGS",{"$f":"'Dinner Menu Matrix (2)'!C16","v":"Grilled Chicken / Steak Cubes"},"LIDO 14","5KG"]
[null,null,{"$f":"'Dinner Menu Matrix (2)'!C17","v":"Catch of the Day / Garlic Shrimp"},"LIDO 14","5KG"]
[null,null,{"$f":"'Dinner Menu Matrix (2)'!C18","v":"Grilled Artichokes / Roasted Veggies"},"LIDO 14","5KG"]
[null,null,{"$f":"'Dinner Menu Matrix (2)'!C19","v":"Stewed Tomato & Olives / Mushrooms"},"LIDO 14","5KG"]
[null,null,null,"LIDO 14","5KG"]
[null,null,null,"LIDO 14","5KG"]
["B5","PASTA STATION",null,"LIDO 14","5KG"]
[null,null,null,"LIDO 14","5KG"]
[null,null,{"$f":"'Dinner Menu Matrix (2)'!C20","v":"Sauce: Carbonara"},"SAUCE 6","10LTR"]
[null,null,{"$f":"'Dinner Menu Matrix (2)'!C21","v":"Sauce: Marinara"},"SAUCE 6","10LTR"]
[null,null,{"$f":"'Dinner Menu Matrix (2)'!C22","v":"1) Farfalle Pasta"},"SAUCE 6","10LTR"]
[null,null,{"$f":"'Dinner Menu Matrix (2)'!C23","v":"2) Fettucini Pasta"},"LIDO HOT ","10KG"]
[null,null,null,"LIDO HOT ","10KG"]
["DESTINATIONS",null,"ENGLISH"]
["C2","FISH / SEAFOOD               VEGETABLE ITEM",{"$f":"'Dinner Menu Matrix (2)'!C27","v":"1) Fisherman's Curry Stew"},"LIDO HOT ","30KG",null,null,"10KE EACH ","WHITE FISH CUBES.CALAMARI RINGS ,SCALLOPS"]
[null,null,{"$f":"'Dinner Menu Matrix (2)'!C28","v":"2) Roasted Carrots & Peppers"},"SAUCE 6","30KG"]
["C3","PROTEIN ITEM         SIDE ITEM",{"$f":"'Dinner Menu Matrix (2)'!C29","v":"1) Classic London Broil"},"GRILL5","40KG",null,null,null,"FLANK STEAK"]
[null,null,{"$f":"'Dinner Menu Matrix (2)'!C30","v":"2) Fried Onions"}]
["C4","STARCH ITEM            SIDE ITEM",{"$f":"'Dinner Menu Matrix (2)'!C31","v":"1) Boiled Bliss/Parsley & Butter"},"SOUP6","25KG"]
[null,null,{"$f":"'Dinner Menu Matrix (2)'!C32","v":"2) Steamed Rice"}]
[null,null,"GARDEN SOUP KETTLE"]
["D1","SOUPS",{"$f":"'Dinner Menu Matrix (2)'!C35","v":"1) Daily Soup Main Dining"},"AS PER SHEDULE","25LTR"]
[null,null,{"$f":"'Dinner Menu Matrix (2)'!C36","v":"2) Daily Soup Main Dining"},"AS PER SHEDULE","25LTR"]
[null,null,"HARVEST SALADS"]
["E1","Composed Salad",{"$f":"'Dinner Menu Matrix (2)'!C40","v":"Hot Smoked Salmon & Cucumber"},"GM14",180]
[null,"Crostini",{"$f":"'Dinner Menu Matrix (2)'!C41","v":"Port Figs & Brie Crostini"},"FRIUT 6",180]
[null,"Cold Appetizer",{"$f":"'Dinner Menu Matrix (2)'!C42","v":"Deviled Egg w/ Salmon Roe & Chives"},"GM14","300POR/150EGG"]
[null,"Cold Appetizer",{"$f":"'Dinner Menu Matrix (2)'!C43","v":"Mixed Olives & Almonds"},"GM14",180]
[null,null,"COMPOSED SALADS"]
["E2","Caesar Salad",{"$f":"'Dinner Menu Matrix (2)'!C45","v":"Romaine Lettuce / Parmesan / Anchovies / Croutons "},"GM14","15KG"]
[null,"Composed Salad",{"$f":"'Dinner Menu Matrix (2)'!C46","v":"Waldorf Chicken Salad"},"ICAFE ","20KG"]
[null,"Fruit Salad LG",{"$f":"'Dinner Menu Matrix (2)'!C47","v":"Mango-Sesame-Chili Fruit Salad"},"FRUIT 5","10KG"]
[null,"Roasted Veg",{"$f":"'Dinner Menu Matrix (2)'!C48","v":"Zucchini-Peppers-Onions"},"GM14","10KG"]
[null,"Cheese Garnish",{"$f":"'Dinner Menu Matrix (2)'!C49","v":"Blue Cheese / Parmesan Cheese"},"GM14","5KG"]
[null,"Bread Garnish",{"$f":"'Dinner Menu Matrix (2)'!C50","v":"Garlic Bread / Parmesan Bread"},"GM14","10LOAF"]
[null,null,"FRESH MARKET GREENS"]
["F1","Leaf Lettuce",{"$f":"'Dinner Menu Matrix (2)'!C52","v":"Mixed Greens / Spinach"},"GM14","10KG"]
[null,"Leaf Lettuce",{"$f":"'Dinner Menu Matrix (2)'!C53","v":"Shredded Green & Red Cabbage"},"GM14","10KG"]
[null,"Leaf Lettuce",{"$f":"'Dinner Menu Matrix (2)'!C54","v":"Sliced Tomato & Red Onion"},"GM14","10KG"]
[null,"Tomato Salad",{"$f":"'Dinner Menu Matrix (2)'!C55","v":"Smoked Paprika Potato Salad"},"GM14","10KG/5KG"]
[null,"Potato Salad",{"$f":"'Dinner Menu Matrix (2)'!C56","v":"Carrots/Celery/Pepper/Radish"},"GM14","10KG"]
[null,"Crudités",{"$f":"'Dinner Menu Matrix (2)'!C57","v":"GOURMET SANDWICH SHOP"},"GM14","10KG"]
[null,null,"GOURMET SANDWICH SHOP"]
["F2","Mini Slider Roll ",{"$f":"'Dinner Menu Matrix (2)'!C58","v":"Roast Beef, Horseradish, Pickles"},"GM14",180]
[null,"Open Face",{"$f":"'Dinner Menu Matrix (2)'!C59","v":"Smoked Salmon,Cucumber,Dill "},"GM6",180]
[null,"Gazpacho",{"$f":"'Dinner Menu Matrix (2)'!C60","v":"Cucumber Herb"},"GM14","20LTR"]
[null,"Pickles",{"$f":"'Dinner Menu Matrix (2)'!C61","v":"Red Onion-Cornichons-Giardiniera-Green Olives - Kalamata Olives"},"GM14","5KG"]
[null,null,"CHARCUTERIE"]
["G1","CHARCUTERIE DISPLAY",{"$f":"'Dinner Menu Matrix (2)'!C64","v":" Chicken Liver Pate w/ Pickled Onions"},"GM14"]
[null,null,{"$f":"'Dinner Menu Matrix (2)'!C65","v":"Farmers Pate w/ Lettuce"},"GM14"]
[null,null,{"$f":"'Dinner Menu Matrix (2)'!C66","v":"Lobster-Seafood Terrine"},"GM14"]
[null,null,{"$f":"'Dinner Menu Matrix (2)'!C67","v":"Shaved Coppa "},"GM14"]
[null,null,{"$f":"'Dinner Menu Matrix (2)'!C68","v":"Sliced Ham"},"GM14"]
[null,null,{"$f":"'Dinner Menu Matrix (2)'!C69","v":"Cornichons / Pickles / Pearl Onions"},"GM14"]
[null,"CONDIMENTS",{"$f":"'Dinner Menu Matrix (2)'!C70","v":"Olives / Mustard / Giardiniera Veg"},"GM14"]
[null,null,{"$f":"'Dinner Menu Matrix (2)'!C71","v":"PRETZEL BAR"},"GM14"]
[null,null,"PRETZEL BAR"]
["H1","PRETZELS",{"$f":"'Dinner Menu Matrix (2)'!C72","v":"Plain Pretzel"}]
[null,null,{"$f":"'Dinner Menu Matrix (2)'!C73","v":"Salt Crusted Pretzel"}]
[null,"SAUCE ",{"$f":"'Dinner Menu Matrix (2)'!C74","v":"Beer & Cheese Sauce"}]
[null,"SAUCE ",{"$f":"'Dinner Menu Matrix (2)'!C75","v":"Honey Mustard Sauce"}]
[null,"SAUCE ",{"$f":"'Dinner Menu Matrix (2)'!C76","v":"Spicy Mustard Sauce"}]
[null,null,"FRESH MARKET TOPPINGS"]
["H2","TOPPINGS",{"$f":"'Dinner Menu Matrix (2)'!C78","v":"Cherry Tomato Slice / Red Onion"},"GM14","5KG"]
[null,null,{"$f":"'Dinner Menu Matrix (2)'!C79","v":"Cucumber / Celery / Carrots / Radish"},"GM14","5KG"]
[null,null,{"$f":"'Dinner Menu Matrix (2)'!C80","v":"Mixed Pepper / Mushrooms / Corn"},"GM14","5KG"]
[null,null,{"$f":"'Dinner Menu Matrix (2)'!C81","v":"Garbanzo Bean / Black Bean"},"GM14","5KG"]
[null,null,{"$f":"'Dinner Menu Matrix (2)'!C82","v":"Green Olives / Sunflower Seeds"},"GM14","5KG"]
[null,null,{"$f":"'Dinner Menu Matrix (2)'!C83","v":"Walnuts / Croutons"},"GM14","5KG"]
[null,"DRESSINGS","DRESSINGS","GM14","1GAL"]
[null,null,{"$f":"'Dinner Menu Matrix (2)'!C85","v":" Ranch / Caesar / Balsamic / Italian"},"GM14","1GAL"]
[null,null,{"$f":"'Dinner Menu Matrix (2)'!C86","v":" Low-fat Yogurt / Blue Cheese "},"GM14","1GAL"]
[null,null,{"$f":"'Dinner Menu Matrix (2)'!C87","v":" 1000 Island / Shallot / Mustard"},"GM14","1GAL"]
[null,null,"PASTRY COUNTER"]
["H3","Fruit Tart",{"$f":"'Dinner Menu Matrix (2)'!C89","v":"Fresh Fruit Tartlet"},"Pastry"]
[null,"Pastry",{"$f":"'Dinner Menu Matrix (2)'!C90","v":"Chocolates Journey"},"Pastry"]
[null,"Pastry",{"$f":"'Dinner Menu Matrix (2)'!C91","v":"Pineapple Upside Down Cake"},"Pastry"]
[null,"Pastry",{"$f":"'Dinner Menu Matrix (2)'!C92","v":"Hawaiin Coffee Coconut Cake"},"Pastry"]
[null,"Cupcakes",{"$f":"'Dinner Menu Matrix (2)'!C93","v":"Boston Cream Pie"},"Pastry"]
[null,null,"FRESH & FAST - GF"]
["H4","Gluten Free",{"$f":"'Dinner Menu Matrix (2)'!C95","v":"Flourless Chocolate Cake"},"Pastry"]
[null,null,{"$f":"'Dinner Menu Matrix (2)'!C96","v":0},"Pastry"]
[null,"Sugar Free",{"$f":"'Dinner Menu Matrix (2)'!C97","v":"Peach Blueberry Crisp"},"Pastry"]
["H5","H5 - HOT",{"$f":"'Dinner Menu Matrix (2)'!C98","v":"Roasted Apples & Caramel"},"Pastry"]
[null,null,"FRUIT STAND FAVORITES"]
["I-1","Whole Fruits",{"$f":"'Dinner Menu Matrix (2)'!C100","v":"Banana / Red Apple / Pears / Peach   Green Apple / Oranges"},"LIDO 14","20KGEACH"]
[null,"Sliced Fruits",{"$f":"'Dinner Menu Matrix (2)'!C101","v":"Watermelon/Pineapple/  Cantaloupe  Honeydew Melon"},"FRUIT PREP ","20KG EACH"]
[null,null,"OVEN BAKED BREADS"]
["I-2","Current Rolls",{"$f":"'Dinner Menu Matrix (2)'!C103","v":"1) Plain Crunchy Rolls"},"Bakery"]
[null,null,{"$f":"'Dinner Menu Matrix (2)'!C104","v":"2) Plain Soft Rolls"},"Bakery"]
[null,null,{"$f":"'Dinner Menu Matrix (2)'!C105","v":"3) Six Cereal Rolls"},"Bakery"]
[null,"Loafs",{"$f":"'Dinner Menu Matrix (2)'!C106","v":"4) Muesli Loaf Sliced"},"Bakery"]
[null,null,{"$f":"'Dinner Menu Matrix (2)'!C107","v":"5) Olive Focaccia"},"Bakery"]
[null,"Condiments",{"$f":"'Dinner Menu Matrix (2)'!C108","v":"Butter & Preserves"},"Bakery"]
[null,null,"FROMAGERIE"]
["I-3","CHEESE",{"$f":"'Dinner Menu Matrix (2)'!C110","v":" Cheddar / Provolone / Gorgonzola"},"GM14","5KG"]
[null,"CHEESE",{"$f":"'Dinner Menu Matrix (2)'!C111","v":" Havarti / Jack Cheese"},"GM14","5KG"]
[null,"CONDIMENTS",{"$f":"'Dinner Menu Matrix (2)'!C112","v":" Variety of Crackers"},"GM14","5KG"]
[null,"DRIED FRUITS",{"$f":"'Dinner Menu Matrix (2)'!C113","v":"Apricots / Figs / Dates / Prunes"},"GM14","2KG EACH "]
[null,"NUTS",{"$f":"'Dinner Menu Matrix (2)'!C114","v":"Almond / Pistachio / Walnuts / Pecans"},"GM14","2KG EACH "]
[null,null,"FRESH & FAST STATION - 2"]
["H4","Dessert",{"$f":"'Dinner Menu Matrix (2)'!C116","v":"Chocolate Coffee Almond Cake"},"Pastry"]
[null,null,null,"Pastry"]
[null,null,null,"Pastry"]
[null,"Dessert",{"$f":"'Dinner Menu Matrix (2)'!C118","v":"Pineapple Upside Down Cake"},"Pastry"]
[null,null,null,"Pastry"]
["I-5","Dessert Hot",{"$f":"'Dinner Menu Matrix (2)'!C120","v":"Bread Butter Pudding / Caramel Sauce"},"Pastry"]
[null,null,null,null,"Sous chef DK 5 / 6 check off sign                      Time"]
[]
[null,null,null,null,"Sous Chef recive check off sign                       Time",null,null,null," "]
[]
[]
[null,null,null,"Food Testing ",null,"Yes","No"]

{"sheet":"Day 1 - Production","index":1,"n_rows":125,"n_cols":9,"rows_kept":125,"cut":false,"hidden":false,"merged":[[63,1,67,1],[101,3,101,8],[108,3,108,8],[114,3,114,8],[62,3,62,8],[70,3,70,8],[76,3,76,8],[93,3,93,8],[98,3,98,8],[109,0,112,0],[115,0,119,0],[115,1,117,1],[118,1,119,1],[102,0,107,0],[102,1,104,1],[105,1,106,1],[1,3,1,8],[8,3,8,8],[28,3,28,8],[35,3,35,8],[38,3,38,8],[43,3,43,8],[88,0,92,0],[94,0,96,0],[94,1,95,1],[99,0,100,0],[71,0,75,0],[71,1,72,1],[77,0,86,0],[77,1,82,1],[83,1,86,1],[58,0,61,0],[87,3,87,8],[50,3,50,8],[57,3,57,8],[68,1,69,1],[63,0,69,0],[36,0,37,0],[36,1,37,1],[39,0,42,0],[44,0,49,0],[51,0,56,0],[29,0,30,0],[29,1,30,1],[31,0,32,0],[31,1,32,1],[33,0,34,0],[33,1,34,1],[28,0,28,1],[3,0,4,0],[3,1,4,1],[5,0,6,0],[9,0,10,0],[11,0,12,0],[11,1,12,1],[13,0,14,0],[15,1,18,1],[15,0,18,0],[19,1,27,1],[19,0,27,0]]}
[null,"STATION","DINNER / DAY 1","PRODUCTION LOCATION","PRODUCTIONQTY","CDP Check off\nID","LEFTOVERS","CREW","SHOPPING LIST"]
[null,null,"WESTERN DESTINATIONS"]
["A1","GF-PASTA",{"$f":"'Dinner Menu Matrix (2)'!D3","v":"1) Green Peas & Cherry Tomatoes"},"LIDO HOT","10KG"]
["A2","DAILY HOT SANDWICH",{"$f":"'Dinner Menu Matrix (2)'!D4","v":"1) Ultimate Grilled Cheese on "},"GRILL6","180POR"]
[null,null,{"$f":"'Dinner Menu Matrix (2)'!D5","v":"Sourdough Bread"}]
["A3","TEX-MEX ITEM",{"$f":"'Dinner Menu Matrix (2)'!D6","v":"1) Shaved Pastrami Soft Tacos"},"LIDO HOT ","15KG"]
[null,"SIDE ITEM",{"$f":"'Dinner Menu Matrix (2)'!D7","v":"Jack Cheese, Pickles, 1000 Island "}]
["A4","TOPPINGS",{"$f":"'Dinner Menu Matrix (2)'!D8","v":"Salsa: Tomato / Corn / Black Bean  - Guacamole / Sour Cream / Cheddar"}]
[null,null,"CARVING BAZAAR"]
["B1","FISH/SEAFOOD",{"$f":"'Dinner Menu Matrix (2)'!D10","v":"1) Seared Cod in Fennel Cream Sauce"},"LIDO HOT ","300/3OZ"]
[null,"VEGETABLES",{"$f":"'Dinner Menu Matrix (2)'!D11","v":"2) Oven Roasted Brussel Sprouts"},"LIDO HOT ","15KG"]
["B2","POTATO OR VEG",{"$f":"'Dinner Menu Matrix (2)'!D12","v":"1) Olive-Garlic Crushed Potato"},"SOUP6","25KG"]
[null,null,{"$f":"'Dinner Menu Matrix (2)'!D13","v":"2) Cheddar Mashed Potatoe"},"SOUP6","25KG"]
["B3","CARVING",{"$f":"'Dinner Menu Matrix (2)'!D14","v":"MEDITERRANEAN CHICKEN ROULADE W/ OLIVES"},"GRILL5","35ROULADE"]
[null,"SAUCES",{"$f":"'Dinner Menu Matrix (2)'!D15","v":"1) Mushroom Sauce 2) Pesto Cream   3) Demi Glace 4) Garlic Oil"},"SAUCE 6","5LTE EACH"]
["B4","PASTA TOPPINGS",{"$f":"'Dinner Menu Matrix (2)'!D16","v":"1) Grilled Chicken Breast Strips"},"LIDO HOT ","5KG"]
[null,null,{"$f":"'Dinner Menu Matrix (2)'!D17","v":"2) Roasted Seard Steak Cubes"},"LIDO HOT ","5KG"]
[null,null,{"$f":"'Dinner Menu Matrix (2)'!D18","v":"3) Roasted Catch of the Day Cubes"},"LIDO HOT ","5KG"]
[null,null,{"$f":"'Dinner Menu Matrix (2)'!D19","v":"4) Garlic Shrimp"},"LIDO HOT ","5KG"]
["B5","PASTA STATION",null,"LIDO HOT ","5KG"]
[null,null,null,"LIDO HOT ","5KG"]
[null,null,{"$f":"'Dinner Menu Matrix (2)'!D22","v":"1) Penne Pasta"},"LIDO HOT ","5KG"]
[null,null,{"$f":"'Dinner Menu Matrix (2)'!D23","v":"2) Fusili Pasta"},"LIDO HOT ","5KG"]
[null,null,{"$f":"'Dinner Menu Matrix (2)'!D20","v":"Sauce: Mushroom Cream"},"SAUCE 6","10LTR"]
[null,null,{"$f":"'Dinner Menu Matrix (2)'!D21","v":"Sauce: Marinara"},"SAUCE 6","10LTR"]
[null,null,null,"SAUCE 6","10LTR"]
[null,null,null,"LIDO HOT ","10KG"]
[null,null,null,"LIDO HOT ","10KG"]
["DESTINATIONS",null,"FRENCH"]
["C2","FISH / SEAFOOD               VEGETABLE ITEM",{"$f":"'Dinner Menu Matrix (2)'!D27","v":"1) Almond Crusted Perch. Vernonique Sauce (Green Grapes & Brown Butter)"},"LIDO HOT ",250]
[null,null,{"$f":"'Dinner Menu Matrix (2)'!D28","v":"2) Creamy Potato Fondant"},"SOUP6","15KG/10CERA"]
["C3","PROTEIN ITEM         SIDE ITEM",{"$f":"'Dinner Menu Matrix (2)'!D29","v":"1) Rustic Coq au Vin Chicken"},"GRILL6","30KG"]
[null,null,{"$f":"'Dinner Menu Matrix (2)'!D30","v":"2) Spinach & Tomato Gratinee"},"GM14","10LOAF"]
["C4","STARCH ITEM            SIDE ITEM",{"$f":"'Dinner Menu Matrix (2)'!D31","v":"1) Rice Pilaf"},"SOUP6","8KG"]
[null,null,{"$f":"'Dinner Menu Matrix (2)'!D32","v":"2) Green Beans & Onions"},"LIDO HOT ","10KG"]
[null,null,"GARDEN SOUP KETTLE"]
["D1","SOUPS",{"$f":"'Dinner Menu Matrix (2)'!D35","v":"1) Daily Soup Main Dining"},"AS PER SHEDULE","25LTR"]
[null,null,{"$f":"'Dinner Menu Matrix (2)'!D36","v":"2) Daily Soup Main Dining"},"AS PER SHEDULE","25LTR"]
[null,null,"HARVEST SALADS"]
["E1","Composed Salad",{"$f":"'Dinner Menu Matrix (2)'!D40","v":"Asparagus, Bresaola, Mozz, Truffle"},"I CAFÉ ","15KG"]
[null,"Crostini",{"$f":"'Dinner Menu Matrix (2)'!D41","v":"Goat Cheese & Beet Crostini"},"FRUIT6",180]
[null,"Cold Appetizer",{"$f":"'Dinner Menu Matrix (2)'!D42","v":"Port Figs & Brie Puffs"},"BAKERY",180]
[null,"Cold Appetizer",{"$f":"'Dinner Menu Matrix (2)'!D43","v":"Salt Roasted Cashews & Pickles"},"GM14",180]
[null,null,"COMPOSED SALADS"]
["E2","Caesar Salad",{"$f":"'Dinner Menu Matrix (2)'!D45","v":"Romaine Lettuce / Parmesan / Anchovies / Croutons "},"GM14","5KG"]
[null,"Composed Salad",{"$f":"'Dinner Menu Matrix (2)'!D46","v":"Green Bean Salad"},"GM14","5KG"]
[null,"Fruit Salad LG",{"$f":"'Dinner Menu Matrix (2)'!D47","v":"Apricot & Cherry Fruit Salad"},"FRUIT5","5KG"]
[null,"Roasted Veg",{"$f":"'Dinner Menu Matrix (2)'!D48","v":"Roasted Asparagus-Tomato-Carrot"},"GM14","5KG"]
[null,"Cheese Garnish",{"$f":"'Dinner Menu Matrix (2)'!D49","v":"Blue Cheese / Parmesan Cheese"},"GM14","5KG"]
[null,"Bread Garnish",{"$f":"'Dinner Menu Matrix (2)'!D50","v":"Seasoned Bagel Chips"},"GM14","20DZ"]
[null,null,"FRESH MARKET GREENS"]
["F1","Leaf Lettuce",{"$f":"'Dinner Menu Matrix (2)'!D52","v":"Mixed Greens / Iceberg"},"GM14","15KG"]
[null,"Leaf Lettuce",{"$f":"'Dinner Menu Matrix (2)'!D53","v":"Shredded Green & Red Cabbage"},"GM14","15KG"]
[null,"Leaf Lettuce",{"$f":"'Dinner Menu Matrix (2)'!D54","v":"Sliced Tomato & Red Onion"},"GM14","15KG"]
[null,"Tomato Salad",{"$f":"'Dinner Menu Matrix (2)'!D55","v":"German Potato Salad"},"GM14","15KG"]
[null,"Potato Salad",{"$f":"'Dinner Menu Matrix (2)'!D56","v":"Cauliflower/Broccoli/Cherry Tomato"},"GM14","15KG"]
[null,"Crudités",{"$f":"'Dinner Menu Matrix (2)'!D57","v":"GOURMET SANDWICH SHOP"},"GM14","5KG EACH"]
[null,null,"GOURMET SANDWICH SHOP"]
["F2","Mini Slider Roll ",{"$f":"'Dinner Menu Matrix (2)'!D58","v":"Waldorf Chicken Sandwich"},"ICAFE ","15KG"]
[null,"Open Face",{"$f":"'Dinner Menu Matrix (2)'!D59","v":"Prosciutto, Gorgonzola, Figs"},"GM14",180]
[null,"Gazpacho",{"$f":"'Dinner Menu Matrix (2)'!D60","v":"Tomato & Basil"},"GM14","15LTR"]
[null,"Pickles",{"$f":"'Dinner Menu Matrix (2)'!D61","v":"Red Onion-Cornichons-Giardiniera-Green Olives - Kalamata Olives"},"GM14","2KG EACH "]
[null,null,"CHARCUTERIE"]
["G1","CHARCUTERIE DISPLAY",{"$f":"'Dinner Menu Matrix (2)'!D64","v":" Chicken Liver Pate w/ Pickled Onions"}]
[null,null,{"$f":"'Dinner Menu Matrix (2)'!D65","v":"Farmers Pate w/ Lettuce"}]
[null,null,{"$f":"'Dinner Menu Matrix (2)'!D66","v":"Lobster-Seafood Terrine"}]
[null,null,{"$f":"'Dinner Menu Matrix (2)'!D67","v":"Shaved Proscuitto "}]
[null,null,{"$f":"'Dinner Menu Matrix (2)'!D68","v":"Sliced Turkey Breast"}]
[null,"CONDIMENTS",{"$f":"'Dinner Menu Matrix (2)'!D69","v":"Cornichons / Pickles / Pearl Onions"}]
[null,null,{"$f":"'Dinner Menu Matrix (2)'!D70","v":"Olives / Mustard / Giardiniera Veg"}]
[null,null,"PRETZEL BAR"]
["H1","PRETZELS",{"$f":"'Dinner Menu Matrix (2)'!D72","v":"Plain Pretzel"}]
[null,null,{"$f":"'Dinner Menu Matrix (2)'!D73","v":"Salt Crusted Pretzel"}]
[null,"SAUCE ",{"$f":"'Dinner Menu Matrix (2)'!D74","v":"Beer & Cheese Sauce"}]
[null,"SAUCE ",{"$f":"'Dinner Menu Matrix (2)'!D75","v":"Honey Mustard Sauce"}]
[null,"SAUCE ",{"$f":"'Dinner Menu Matrix (2)'!D76","v":"Spicy Mustard Sauce"}]
[null,null,"FRESH MARKET TOPPINGS"]
["H2","TOPPINGS",{"$f":"'Dinner Menu Matrix (2)'!D78","v":"Cherry Tomato Slice / Red Onion"},"GM14","5KG"]
[null,null,{"$f":"'Dinner Menu Matrix (2)'!D79","v":"Cucumber / Celery / Carrots / Radish"},"GM14","5KG"]
[null,null,{"$f":"'Dinner Menu Matrix (2)'!D80","v":"Mixed Pepper / Mushrooms / Corn"},"GM14","5KG"]
[null,null,{"$f":"'Dinner Menu Matrix (2)'!D81","v":"Garbanzo Bean / Black Bean"},"GM14","5KG"]
[null,null,{"$f":"'Dinner Menu Matrix (2)'!D82","v":"Green Olives / Sunflower Seeds"},"GM14","5KG"]
[null,null,{"$f":"'Dinner Menu Matrix (2)'!D83","v":"Walnuts / Croutons"},"GM14","5KG"]
[null,"DRESSINGS","DRESSINGS","GM14","1GAL"]
[null,null,{"$f":"'Dinner Menu Matrix (2)'!D85","v":" Ranch / Caesar / Balsamic / Italian"},"GM14","1GAL"]
[null,null,{"$f":"'Dinner Menu Matrix (2)'!D86","v":" Low-fat Yogurt / Blue Cheese "},"GM14","1GAL"]
[null,null,{"$f":"'Dinner Menu Matrix (2)'!D87","v":" 1000 Island / Shallot / Mustard"},"GM14","1GAL"]
[null,null,"PASTRY COUNTER"]
["H3","Fruit Tart",{"$f":"'Dinner Menu Matrix (2)'!D89","v":"Fresh Fruit Tartlet"}]
[null,"Pastry",{"$f":"'Dinner Menu Matrix (2)'!D90","v":"Grandma's Chocolate Cake"}]
[null,"Pastry",{"$f":"'Dinner Menu Matrix (2)'!D91","v":"Coconut Passionfruit Cake"}]
[null,"Pastry",{"$f":"'Dinner Menu Matrix (2)'!D92","v":"Oreo Peanut Chocolate Pie"}]
[null,"Cupcakes",{"$f":"'Dinner Menu Matrix (2)'!D93","v":"St Honore"}]
[null,null,"FRESH & FAST - GF"]
["H4","Gluten Free",{"$f":"'Dinner Menu Matrix (2)'!D95","v":"Rhubarb Pie"}]
[null,null,{"$f":"'Dinner Menu Matrix (2)'!D96","v":0}]
[null,"Sugar Free",{"$f":"'Dinner Menu Matrix (2)'!D97","v":"Semolina Tart"}]
["H5","H5 - HOT",{"$f":"'Dinner Menu Matrix (2)'!D98","v":"Caramel Chocolate Baked Banana"}]
[null,null,"FRUIT STAND FAVORITES"]
["I-1","Whole Fruits",{"$f":"'Dinner Menu Matrix (2)'!D100","v":"Banana / Red Apple / Pears / Peach   Green Apple / Oranges"},"LIDO 14","20KGEACH"]
[null,"Sliced Fruits",{"$f":"'Dinner Menu Matrix (2)'!D101","v":"Watermelon/Pineapple/  Cantaloupe  Honeydew Melon"},"FRUIT PREP ","20KG EACH"]
[null,null,"OVEN BAKED BREADS"]
["I-2","Current Rolls",{"$f":"'Dinner Menu Matrix (2)'!D103","v":"1) Plain Crunchy Rolls"}]
[null,null,{"$f":"'Dinner Menu Matrix (2)'!D104","v":"2) Plain Soft Rolls"}]
[null,null,{"$f":"'Dinner Menu Matrix (2)'!D105","v":"3) Sunflower Seed Rolls"}]
[null,"Loafs",{"$f":"'Dinner Menu Matrix (2)'!D106","v":"4) Honey Wheat Loaf Slice"}]
[null,null,{"$f":"'Dinner Menu Matrix (2)'!D107","v":"5) Olive Focaccia"}]
[null,"Condiments",{"$f":"'Dinner Menu Matrix (2)'!D108","v":"Butter & Preserves"}]
[null,null,"FROMAGERIE"]
["I-3","CHEESE",{"$f":"'Dinner Menu Matrix (2)'!D110","v":" Cheddar / Provolone / Gorgonzola"},"GM14","5KG"]
[null,"CHEESE",{"$f":"'Dinner Menu Matrix (2)'!D111","v":" Havarti / Jack Cheese"},"GM14","5KG"]
[null,"CONDIMENTS",{"$f":"'Dinner Menu Matrix (2)'!D112","v":" Variety of Crackers"},"GM14","5KG"]
[null,"DRIED FRUITS",{"$f":"'Dinner Menu Matrix (2)'!D113","v":"Apricots / Figs / Dates / Prunes"},"GM14","2KG EACH "]
[null,"NUTS",{"$f":"'Dinner Menu Matrix (2)'!D114","v":"Almond / Pistachio / Walnuts / Pecans"},"GM14","2KG EACH "]
[null,null,"FRESH & FAST STATION - 2"]
["I-4","Dessert",{"$f":"'Dinner Menu Matrix (2)'!D116","v":"Dark Chocolate Almond Cake"}]
[null,null,{"$f":"'Dinner Menu Matrix (2)'!D117","v":0}]
[null,null,{"$f":"'Dinner Menu Matrix (2)'!D118","v":"Coconut Passionfruit Cake"}]
[null,"Dessert",{"$f":"'Dinner Menu Matrix (2)'!D119","v":0}]
[null,null,{"$f":"'Dinner Menu Matrix (2)'!D120","v":"Warm Hazelnut Pudding/ Vanilla Sauc"}]
["I-5","Dessert Hot",{"$f":"'Dinner Menu Matrix (2)'!D121","v":0}]
[]
[null,null,null,null,"Sous chef DK 5 / 6 check off sign                      Time"]
[]
[null,null,null,null,"Sous Chef recive check off sign                       Time"]

{"sheet":"Day 2 - Production","index":2,"n_rows":125,"n_cols":9,"rows_kept":125,"cut":false,"hidden":false,"merged":[[99,0,100,0],[62,1,69,1],[62,0,69,0],[101,3,101,8],[108,3,108,8],[76,3,76,8],[87,3,87,8],[93,3,93,8],[98,3,98,8],[77,0,86,0],[77,1,82,1],[83,1,86,1],[88,0,92,0],[94,0,96,0],[94,1,95,1],[114,3,114,8],[115,0,119,0],[115,1,117,1],[102,0,107,0],[102,1,104,1],[105,1,106,1],[109,0,112,0],[118,1,119,1],[1,3,1,8],[7,3,7,8],[27,3,27,8],[34,3,34,8],[37,3,37,8],[42,3,42,8],[49,3,49,8],[56,3,56,8],[61,3,61,8],[70,3,70,8],[3,1,4,1],[5,0,6,0],[8,0,9,0],[10,0,11,0],[10,1,11,1],[3,0,4,0],[50,0,55,0],[57,0,60,0],[71,0,75,0],[71,1,72,1],[32,1,33,1],[38,0,41,0],[43,0,48,0],[12,0,13,0],[25,0,26,0],[35,0,36,0],[35,1,36,1],[14,0,24,0],[14,1,24,1],[25,1,26,1],[27,0,27,1],[28,0,29,0],[28,1,29,1],[30,0,31,0],[30,1,31,1],[32,0,33,0]]}
[null,"STATION","DINNER / DAY 2","PRODUCTION LOCATION","PRODUCTIONQTY","CDP Check off\nID","LEFTOVERS","CREW","SHOPPING LIST"]
[null,null,"WESTERN DESTINATIONS"]
["A1","GF-PASTA",{"$f":"'Dinner Menu Matrix (2)'!E3","v":"1) Roasted Zucchini, peppers, eggplant, red onions"},"LIDO HOT","8KG"]
["A2","DAILY HOT SANDWICH",{"$f":"'Dinner Menu Matrix (2)'!E4","v":"1) Pulled Jerk Chicken Sliders w/"},"MIX GRILL6","20KG"]
[null,null,{"$f":"'Dinner Menu Matrix (2)'!E5","v":"Jack Cheese & Slaw"},"FINAL GM14"]
["A3","TEX-MEX ITEM",{"$f":"'Dinner Menu Matrix (2)'!E6","v":"1) Potato-Sausage Quesadillia"},"SOUP6",250]
[null,"SIDE ITEM",{"$f":"'Dinner Menu Matrix (2)'!E7","v":"w/ Black Beans (from salsa)"}]
[null,null,"CARVING BAZAAR"]
["B1","FISH/SEAFOOD",{"$f":"'Dinner Menu Matrix (2)'!E10","v":"1) Grilled Salmon/Tomato, Capers"},"SAUCE FISH6","300/10LTR"]
[null,"VEGETABLES",{"$f":"'Dinner Menu Matrix (2)'!E11","v":"2) Baked Leek Ragout"},"LIDO HOT","30KG"]
["B2","POTATO OR VEG",{"$f":"'Dinner Menu Matrix (2)'!E12","v":"1) Parmesan Crusted Potatoes"},"LIDOHOT ","20KG "]
[null,null,{"$f":"'Dinner Menu Matrix (2)'!E13","v":"2) Steamed Green Beans"},"LIDOHOT","20KG "]
["B3","CARVING",{"$f":"'Dinner Menu Matrix (2)'!E14","v":"ROSEMARY CRUSTED SIRLOIN"},"GRILL5","10LION "]
[null,"SAUCES",{"$f":"'Dinner Menu Matrix (2)'!E15","v":"1) Chimichurri 2) Peppercorn             3) Creamy Mustard 4) Mushroom"},"SAUCE6 ","2LT EACH"]
["B4","PASTA TOPPINGS",{"$f":"'Dinner Menu Matrix (2)'!E16","v":"1) Grilled Chicken Breast Strips"},"LIDO HOT ","2KG"]
[null,null,{"$f":"'Dinner Menu Matrix (2)'!E17","v":"2) Roasted Seard Steak Cubes"},"LIDO HOT ","2KG"]
[null,null,{"$f":"'Dinner Menu Matrix (2)'!E18","v":"3) Roasted Catch of the Day Cubes"},"LIDO HOT ","2KG"]
[null,null,{"$f":"'Dinner Menu Matrix (2)'!E19","v":"4) Garlic Shrimp"},"LIDO HOT ","2KG"]
[null,null,null,"LIDO HOT ","2KG"]
[null,null,null,"LIDO HOT ","2KG"]
[null,null,null,"LIDO HOT ","2KG"]
[null,null,null,"LIDO HOT ","2KG"]
[null,null,{"$f":"'Dinner Menu Matrix (2)'!E20","v":"Sauce: Alfredo"},"SAUCE 6","10LTR"]
[null,null,{"$f":"'Dinner Menu Matrix (2)'!E21","v":"Sauce: Marinara"},"SAUCE 6","10LTR"]
[null,null,null,"SAUCE 6","10LTR"]
["B5","PASTA STATION",{"$f":"'Dinner Menu Matrix (2)'!E22","v":"1) Conghielie Pasta"},"LIDO HOT","10KG"]
[null,null,{"$f":"'Dinner Menu Matrix (2)'!E23","v":"2) Farfalle Pasta"},"LIDO HOT","10KG"]
["DESTINATIONS",null,"ASIAN"]
["C2","FISH / SEAFOOD               VEGETABLE ITEM",{"$f":"'Dinner Menu Matrix (2)'!E27","v":"1) Teriyake Glazed Codfish, Sticky"},"LIDO HOT ","250POR/3 0Z"]
[null,null,{"$f":"'Dinner Menu Matrix (2)'!E28","v":"Coconut Rice, Bokchoy, Crispy Spiced Wontons"}]
["C3","PROTEIN ITEM         SIDE ITEM",{"$f":"'Dinner Menu Matrix (2)'!E29","v":"1) Sweet Chili Pork Loin /Asian Slaw"},"GRILL6","200/3 0Z"]
[null,null,{"$f":"'Dinner Menu Matrix (2)'!E30","v":"2) Pork Dumplings/ Black Bean Sauce"},"LIDO HOT","10PKT"]
["C4","STARCH ITEM            SIDE ITEM",{"$f":"'Dinner Menu Matrix (2)'!E31","v":"1) Soy Ramen Noodle & Broccoli"},"LIDO HOT ","20KG "]
[null,null,{"$f":"'Dinner Menu Matrix (2)'!E32","v":"2) Vegetable Goyza w/Peanut Sauce"},"LIDO HOT ","30DZ"]
[null,null,"GARDEN SOUP KETTLE"]
["D1","SOUPS",{"$f":"'Dinner Menu Matrix (2)'!E35","v":"1) Daily Soup Main Dining"},"AS PER SHEDULE","15LTR"]
[null,null,{"$f":"'Dinner Menu Matrix (2)'!E36","v":"2) Daily Soup Main Dining"},"AS PER SHEDULE","LTR"]
[null,null,"HARVEST SALADS"]
["E1","Composed Salad",{"$f":"'Dinner Menu Matrix (2)'!E40","v":"Shrimp & Avocado Salad"},"GM14","200/30Z"]
[null,"Crostini",{"$f":"'Dinner Menu Matrix (2)'!E41","v":"Caprese & Prosciutto, Balsamic Glaze"},"GM14","150POR"]
[null,"Cold Appetizer",{"$f":"'Dinner Menu Matrix (2)'!E42","v":"Deviled Egg w/ Salmon Roe & Chives"},"GM6","150X2=300POR"]
[null,"Cold Appetizer",{"$f":"'Dinner Menu Matrix (2)'!E43","v":"Watermelon, Gorgonzola, Port Syrup"},"GM14","150POR"]
[null,null,"COMPOSED SALADS"]
["E2","Caesar Salad",{"$f":"'Dinner Menu Matrix (2)'!E45","v":"Romaine Lettuce / Parmesan / Anchovies / Croutons "},"GM14","15KG"]
[null,"Composed Salad",{"$f":"'Dinner Menu Matrix (2)'!E46","v":"Orzo Pasta & Wild Rice Salad"},"GM14","15KG"]
[null,"Fruit Salad LG",{"$f":"'Dinner Menu Matrix (2)'!E47","v":"Spicy Pear & Pineapple Salad"},"FRUIT6","8KG"]
[null,"Roasted Veg",{"$f":"'Dinner Menu Matrix (2)'!E48","v":"Roasted Mushroom & Tomato"},"GM14","8KG"]
[null,"Cheese Garnish",{"$f":"'Dinner Menu Matrix (2)'!E49","v":"Blue Cheese / Parmesan Cheese"},"GM14","2KGEACH"]
[null,"Bread Garnish",{"$f":"'Dinner Menu Matrix (2)'!E50","v":"Garlic Bread / Parmesan Bread"},"GM14","10LAOF"]
[null,null,"FRESH MARKET GREENS"]
["F1","Leaf Lettuce",{"$f":"'Dinner Menu Matrix (2)'!E52","v":"Mixed Greens / Spinach"},"GM14","15KG"]
[null,"Leaf Lettuce",{"$f":"'Dinner Menu Matrix (2)'!E53","v":"Shredded Green & Red Cabbage"},"GM14","15KG"]
[null,"Leaf Lettuce",{"$f":"'Dinner Menu Matrix (2)'!E54","v":"Sliced Tomato & Red Onion"},"GM14","10KG"]
[null,"Tomato Salad",{"$f":"'Dinner Menu Matrix (2)'!E55","v":"American Potato Salad"},"GM14","10KG"]
[null,"Potato Salad",{"$f":"'Dinner Menu Matrix (2)'!E56","v":"Cucumber/Radish/Peppers/Carrots"},"GM14","10KG"]
[null,"Crudités",{"$f":"'Dinner Menu Matrix (2)'!E57","v":"GOURMET SANDWICH SHOP"},"GM14","2KG EACH "]
[null,null,"GOURMET SANDWICH SHOP"]
["F2","Mini Slider Roll ",{"$f":"'Dinner Menu Matrix (2)'!E58","v":"Salami, Tomato, Brie, Figs, Fennel"},"ICAFE ",150]
[null,"Open Face",{"$f":"'Dinner Menu Matrix (2)'!E59","v":"Shaved Lamb, Tabbouleh Feta"},"GM14",150]
[null,"Gazpacho",{"$f":"'Dinner Menu Matrix (2)'!E60","v":"Carrot-Lime"},"GM14","20LTRLTR"]
[null,"Pickles",{"$f":"'Dinner Menu Matrix (2)'!E61","v":"Red Onion-Cornichons-Giardiniera-Green Olives - Kalamata Olives"},"GM14","2KG EACH "]
[null,null,"CHARCUTERIE"]
["G1","CHARCUTERIE DISPLAY",{"$f":"'Dinner Menu Matrix (2)'!E64","v":" Chicken Liver Pate w/ Pickled Onions"}]
[null,null,{"$f":"'Dinner Menu Matrix (2)'!E65","v":"Farmers Pate w/ Lettuce"}]
[null,null,{"$f":"'Dinner Menu Matrix (2)'!E66","v":"Lobster-Seafood Terrine"}]
[null,null,{"$f":"'Dinner Menu Matrix (2)'!E67","v":"Shaved Coppa "}]
[null,null,{"$f":"'Dinner Menu Matrix (2)'!E68","v":"Sliced Ham"}]
[null,null,{"$f":"'Dinner Menu Matrix (2)'!E69","v":"Cornichons / Pickles / Pearl Onions"}]
[null,null,{"$f":"'Dinner Menu Matrix (2)'!E70","v":"Olives / Mustard / Giardiniera Veg"}]
[null,null,{"$f":"'Dinner Menu Matrix (2)'!E71","v":"PRETZEL BAR"}]
[null,null,"PRETZEL BAR"]
["H1","PRETZELS",{"$f":"'Dinner Menu Matrix (2)'!E72","v":"Plain Pretzel"}]
[null,null,{"$f":"'Dinner Menu Matrix (2)'!E73","v":"Salt Crusted Pretzel"}]
[null,"SAUCE ",{"$f":"'Dinner Menu Matrix (2)'!E74","v":"Beer & Cheese Sauce"}]
[null,"SAUCE ",{"$f":"'Dinner Menu Matrix (2)'!E75","v":"Honey Mustard Sauce"}]
[null,"SAUCE ",{"$f":"'Dinner Menu Matrix (2)'!E76","v":"Spicy Mustard Sauce"}]
[null,null,"FRESH MARKET TOPPINGS"]
["H2","TOPPINGS",{"$f":"'Dinner Menu Matrix (2)'!E78","v":"Cherry Tomato Slice / Red Onion"},"GM14","5KG"]
[null,null,{"$f":"'Dinner Menu Matrix (2)'!E79","v":"Cucumber / Celery / Carrots / Radish"},"GM14","5KG"]
[null,null,{"$f":"'Dinner Menu Matrix (2)'!E80","v":"Mixed Pepper / Mushrooms / Corn"},"GM14","5KG"]
[null,null,{"$f":"'Dinner Menu Matrix (2)'!E81","v":"Garbanzo Bean / Black Bean"},"GM14","5KG"]
[null,null,{"$f":"'Dinner Menu Matrix (2)'!E82","v":"Green Olives / Sunflower Seeds"},"GM14","5KG"]
[null,null,{"$f":"'Dinner Menu Matrix (2)'!E83","v":"Walnuts / Croutons"},"GM14","5KG"]
[null,"DRESSINGS","DRESSINGS","GM14","1GAL"]
[null,null,{"$f":"'Dinner Menu Matrix (2)'!E85","v":" Ranch / Caesar / Balsamic / Italian"},"GM14","1GAL"]
[null,null,{"$f":"'Dinner Menu Matrix (2)'!E86","v":" Low-fat Yogurt / Blue Cheese "},"GM14","1GAL"]
[null,null,{"$f":"'Dinner Menu Matrix (2)'!E87","v":" 1000 Island / Shallot / Mustard"},"GM14","1GAL"]
[null,null,"PASTRY COUNTER"]
["H3","Fruit Tart",{"$f":"'Dinner Menu Matrix (2)'!E89","v":"Fresh Fruit Tartlet"}]
[null,"Pastry",{"$f":"'Dinner Menu Matrix (2)'!E90","v":"Chocolate Coffee Almond Cake"}]
[null,"Pastry",{"$f":"'Dinner Menu Matrix (2)'!E91","v":"Brazilian Cake"}]
[null,"Pastry",{"$f":"'Dinner Menu Matrix (2)'!E92","v":"Crustry Strawberry Shortcake"}]
[null,"Cupcakes",{"$f":"'Dinner Menu Matrix (2)'!E93","v":"Peanut Butter Chocolate Pie"}]
[null,null,"FRESH & FAST - GF"]
["H4","Gluten Free",{"$f":"'Dinner Menu Matrix (2)'!E95","v":"Almond Torte"}]
[null,null,{"$f":"'Dinner Menu Matrix (2)'!E96","v":0}]
[null,"Sugar Free",{"$f":"'Dinner Menu Matrix (2)'!E97","v":"Milk Chocolate Mousse Cake"}]
["H5","H5 - HOT",{"$f":"'Dinner Menu Matrix (2)'!E98","v":"Apricot Tapioca Pudding"}]
[null,null,"FRUIT STAND FAVORITES"]
["I-1","Whole Fruits",{"$f":"'Dinner Menu Matrix (2)'!E100","v":"Banana / Red Apple / Pears / Peach   Green Apple / Oranges"},"LIDO 14","20KGEACH"]
[null,"Sliced Fruits","Watermelon/Pineapple/  Cantaloupe  Honeydew Melon","FRUIT PREP ","20KG EACH"]
[null,null,"OVEN BAKED BREADS"]
["I-2","Current Rolls",{"$f":"'Dinner Menu Matrix (2)'!E103","v":"1) Plain Crunchy Rolls"}]
[null,null,{"$f":"'Dinner Menu Matrix (2)'!E104","v":"2) Plain Soft Rolls"}]
[null,null,{"$f":"'Dinner Menu Matrix (2)'!E105","v":"3) Pumpernickel Rolls"}]
[null,"Loafs",{"$f":"'Dinner Menu Matrix (2)'!E106","v":"4) Six Cereal Loaf Sliced"}]
[null,null,{"$f":"'Dinner Menu Matrix (2)'!E107","v":"5) Olive Focaccia"}]
[null,"Condiments",{"$f":"'Dinner Menu Matrix (2)'!E108","v":"Butter & Preserves"}]
[null,null,"FROMAGERIE"]
["I-3","CHEESE",{"$f":"'Dinner Menu Matrix (2)'!E110","v":" Cheddar / Provolone / Gorgonzola"},"GM14","5KG"]
[null,"CHEESE",{"$f":"'Dinner Menu Matrix (2)'!E111","v":" Havarti / Jack Cheese"},"GM14","5KG"]
[null,"CONDIMENTS",{"$f":"'Dinner Menu Matrix (2)'!E112","v":" Variety of Crackers"},"GM14","5KG"]
[null,"DRIED FRUITS",{"$f":"'Dinner Menu Matrix (2)'!E113","v":"Apricots / Figs / Dates / Prunes"},"GM14","2KG EACH "]
[null,"NUTS",{"$f":"'Dinner Menu Matrix (2)'!E114","v":"Almond / Pistachio / Walnuts / Pecans"},"GM14","2KG EACH "]
[null,null,"FRESH & FAST STATION - 2"]
["I-4","Dessert",{"$f":"'Dinner Menu Matrix (2)'!E116","v":"Black Forest Torte"}]
[null,null,{"$f":"'Dinner Menu Matrix (2)'!E117","v":0}]
[null,null,{"$f":"'Dinner Menu Matrix (2)'!E118","v":"Brazilian Cake"}]
[null,"Dessert",{"$f":"'Dinner Menu Matrix (2)'!E119","v":0}]
[null,null,{"$f":"'Dinner Menu Matrix (2)'!E120","v":"Butter Pecan Pudding Caramel Sauce"}]
["I-5","Dessert Hot",{"$f":"'Dinner Menu Matrix (2)'!E121","v":0}]
[]
[null,null,"Sous chef DK 5 / 6 check off sign                      Time"]
[]
[null,null,"Sous Chef recive check off sign                       Time"]

{"sheet":"Day 3 - Production","index":3,"n_rows":125,"n_cols":9,"rows_kept":125,"cut":false,"hidden":false,"merged":[[62,1,69,1],[62,0,69,0],[101,3,101,8],[108,3,108,8],[42,3,42,8],[88,0,92,0],[94,0,96,0],[94,1,95,1],[99,0,100,0],[71,0,75,0],[71,1,72,1],[77,0,86,0],[77,1,82,1],[83,1,86,1],[57,0,60,0],[114,3,114,8],[61,3,61,8],[70,3,70,8],[76,3,76,8],[93,3,93,8],[98,3,98,8],[87,3,87,8],[109,0,112,0],[115,0,119,0],[115,1,117,1],[118,1,119,1],[102,0,107,0],[102,1,104,1],[105,1,106,1],[1,3,1,8],[7,3,7,8],[27,3,27,8],[34,3,34,8],[37,3,37,8],[49,3,49,8],[56,3,56,8],[35,0,36,0],[35,1,36,1],[38,0,41,0],[43,0,48,0],[50,0,55,0],[28,0,29,0],[28,1,29,1],[30,0,31,0],[30,1,31,1],[32,0,33,0],[32,1,33,1],[27,0,27,1],[3,0,4,0],[3,1,4,1],[5,0,6,0],[8,0,9,0],[10,0,11,0],[10,1,11,1],[12,0,13,0],[22,0,26,0],[22,1,26,1],[14,1,21,1],[14,0,21,0]]}
[null,"STATION","DINNER / DAY 3","PRODUCTION LOCATION","PRODUCTION QTY","CDP Check off\nID","LEFTOVERS","CREW","SHOPPING LIST"]
[null,null,"WESTERN DESTINATIONS"]
["A1","GF-PASTA",{"$f":"'Dinner Menu Matrix (2)'!F3","v":"1) Mushrooms, Garlic, Spinach Fresh"},"LIDO HOT","8KG"]
["A2","DAILY HOT SANDWICH",{"$f":"'Dinner Menu Matrix (2)'!F4","v":"1) Meatball Slider w/ Mozzarella "},"LIDOGM/BUTCHER","200/30Z"]
[null,null,{"$f":"'Dinner Menu Matrix (2)'!F5","v":"Wilted Spinach & Parmesan"}]
["A3","TEX-MEX ITEM",{"$f":"'Dinner Menu Matrix (2)'!F6","v":"1) Steak & Cheese Enchilada w/"},"SOUP6",250]
[null,"SIDE ITEM",{"$f":"'Dinner Menu Matrix (2)'!F7","v":"Yellow Corn Salsa"}]
[null,null,"CARVING BAZAAR"]
["B1","FISH/SEAFOOD",{"$f":"'Dinner Menu Matrix (2)'!F10","v":"1) Seared Snapper, Citrus Emulsion"},"SAUCE = FISH5","250/3OZ/10LTR"]
[null,"VEGETABLES",{"$f":"'Dinner Menu Matrix (2)'!F11","v":"2) Garlic Oil Broccoli"},"LIDO HOT ","30KG"]
["B2","POTATO OR VEG",{"$f":"'Dinner Menu Matrix (2)'!F12","v":"1) Rosemary Crushed Red Bliss"},"SOUP6","25KG"]
[null,null,{"$f":"'Dinner Menu Matrix (2)'!F13","v":"2) Truffle Mashed Potato"},"SOUP6","25KG"]
["B3","CARVING",{"$f":"'Dinner Menu Matrix (2)'!F14","v":"APRICOT&FIG STUFFKED TURKEY BREAST WRAPPED IN BACON"},"COOKING GRILL5","25KG"]
[null,"SAUCES",{"$f":"'Dinner Menu Matrix (2)'!F15","v":"1) Cranberry Sauce 2) Mustard          3) Gravy Dark 4) Peppercorn"},"SAUCE 6","5LTR EACH"]
["B4","PASTA TOPPINGS",{"$f":"'Dinner Menu Matrix (2)'!F16","v":"1) Grilled Chicken Breast Strips"},"LIDO HOT","2KG EACH"]
[null,null,{"$f":"'Dinner Menu Matrix (2)'!F17","v":"2) Roasted Seard Steak Cubes"},"LIDO HOT","2KG EACH"]
[null,null,{"$f":"'Dinner Menu Matrix (2)'!F18","v":"3) Roasted Catch of the Day Cubes"},"LIDO HOT","2KG EACH"]
[null,null,{"$f":"'Dinner Menu Matrix (2)'!F19","v":"4) Garlic Shrimp"},"LIDO HOT","2KG EACH"]
[null,null,null,"LIDO HOT","2KG EACH"]
[null,null,null,"LIDO HOT","2KG EACH"]
[null,null,null,"LIDO HOT","2KG EACH"]
[null,null,null,"LIDO HOT","2KG EACH"]
["B5","PASTA STATION",{"$f":"'Dinner Menu Matrix (2)'!F20","v":"Sauce: Puttanesca"},"SAUCE 6","10LTR"]
[null,null,{"$f":"'Dinner Menu Matrix (2)'!F21","v":"Sauce: Marinara"},"SAUCE 6","10LTR"]
[null,null,null,"SAUCE 6","8LTR"]
[null,null,{"$f":"'Dinner Menu Matrix (2)'!F22","v":"1) Ragatoni Pasta"},"LIDO HOT","8KG"]
[null,null,{"$f":"'Dinner Menu Matrix (2)'!F23","v":"2) Fusili Pasta"},"LIDO HOT ","8KG"]
["DESTINATIONS",null,"ITALIAN"]
["C2","FISH / SEAFOOD               VEGETABLE ITEM",{"$f":"'Dinner Menu Matrix (2)'!F27","v":"1) Frito Misto Seafood & Veggies"},"LIDO HOT","10KG EACH"]
[null,null,{"$f":"'Dinner Menu Matrix (2)'!F28","v":"2) Marinara Sauce & Saffron Aioli"},"LIDO HOT","5LTR"]
["C3","PROTEIN ITEM         SIDE ITEM",{"$f":"'Dinner Menu Matrix (2)'!F29","v":"1) Chicken Scallopini Breaded"},"BUTCHER/LIDO HOT",250]
[null,null,{"$f":"'Dinner Menu Matrix (2)'!F30","v":"2) Olives, Roasted Peppers, Onions"},"LIDO HOT","30KG"]
["C4","STARCH ITEM            SIDE ITEM",{"$f":"'Dinner Menu Matrix (2)'!F31","v":"1) Orzo Pasta, Spinach, Tomato"},"LIDO HOT","10KG"]
[null,null,{"$f":"'Dinner Menu Matrix (2)'!F32","v":"2) Pomodorro Sauce"},"SAUCE 6","10LTR"]
[null,null,"GARDEN SOUP KETTLE"]
["D1","SOUPS",{"$f":"'Dinner Menu Matrix (2)'!F35","v":"1) Daily Soup Main Dining"},"AS PER SHEDULE","20LTR"]
[null,null,{"$f":"'Dinner Menu Matrix (2)'!F36","v":"2) Daily Soup Main Dining"},"AS PER SHEDULE","20LTR"]
[null,null,"HARVEST SALADS"]
["E1","Composed Salad",{"$f":"'Dinner Menu Matrix (2)'!F40","v":"Salmon Salad Nicoise"},"GM14","15KG"]
[null,"Crostini",{"$f":"'Dinner Menu Matrix (2)'!F41","v":"Gorgonzola, Cranberries, Pistachio"},"FRUIT6",180]
[null,"Cold Appetizer",{"$f":"'Dinner Menu Matrix (2)'!F42","v":"Prosciutto, Arugula, Feta Cheese"},"GM6",180]
[null,"Cold Appetizer",{"$f":"'Dinner Menu Matrix (2)'!F43","v":"Cantaloupe & Cherry Cocktail"},"GM14",180]
[null,null,"COMPOSED SALADS"]
["E2","Caesar Salad",{"$f":"'Dinner Menu Matrix (2)'!F45","v":"Romaine Lettuce / Parmesan / Anchovies / Croutons "}]
[null,"Composed Salad",{"$f":"'Dinner Menu Matrix (2)'!F46","v":"Greek Salad"},"ICAFE","15KG"]
[null,"Fruit Salad LG",{"$f":"'Dinner Menu Matrix (2)'!F47","v":"Cajun Peach Salad"},"FRUIT5","10KG"]
[null,"Roasted Veg",{"$f":"'Dinner Menu Matrix (2)'!F48","v":"Roasted Carrots & Peppers"},"GM14","10KG"]
[null,"Cheese Garnish",{"$f":"'Dinner Menu Matrix (2)'!F49","v":"Blue Cheese / Parmesan Cheese"},"GM14","10KG"]
[null,"Bread Garnish",{"$f":"'Dinner Menu Matrix (2)'!F50","v":"Cheddar Cheese Bread"},"BAKERY"]
[null,null,"FRESH MARKET GREENS"]
["F1","Leaf Lettuce",null,"GM14","10KG"]
[null,"Leaf Lettuce",{"$f":"'Dinner Menu Matrix (2)'!F52","v":"Mixed Greens / Iceberg"},"GM14","10KG"]
[null,"Leaf Lettuce",{"$f":"'Dinner Menu Matrix (2)'!F53","v":"Shredded Green & Red Cabbage"},"GM14","5KG"]
[null,"Tomato Salad",{"$f":"'Dinner Menu Matrix (2)'!F54","v":"Sliced Tomato & Red Onion"},"GM14","5KG"]
[null,"Potato Salad",{"$f":"'Dinner Menu Matrix (2)'!F55","v":"Lemon Pepper Potato Salad"},"GM14","5KG"]
[null,"Crudités",{"$f":"'Dinner Menu Matrix (2)'!F56","v":"Carrots/Celery/Pepper/Radish"},"GM14","5KG"]
[null,null,"GOURMET SANDWICH SHOP"]
["F2","Mini Slider Roll ",{"$f":"'Dinner Menu Matrix (2)'!F58","v":"Mini Lobster Roll"},"GM5",180]
[null,"Open Face",{"$f":"'Dinner Menu Matrix (2)'!F59","v":"Shaved Filet Mignon w/ Truffle Aioli"},"GM14",180]
[null,"Gazpacho",{"$f":"'Dinner Menu Matrix (2)'!F60","v":"Red Pepper & Tomato"},"GM14","20LTR"]
[null,"Pickles",{"$f":"'Dinner Menu Matrix (2)'!F61","v":"Red Onion-Cornichons-Giardiniera-Green Olives - Kalamata Olives"},"GM14","2KG EACH"]
[null,null,"CHARCUTERIE"]
["G1","CHARCUTERIE DISPLAY",{"$f":"'Dinner Menu Matrix (2)'!F64","v":" Chicken Liver Pate w/ Pickled Onions"},"GM14"]
[null,null,{"$f":"'Dinner Menu Matrix (2)'!F65","v":"Farmers Pate w/ Lettuce"},"GM14"]
[null,null,{"$f":"'Dinner Menu Matrix (2)'!F66","v":"Lobster-Seafood Terrine"},"GM14"]
[null,null,{"$f":"'Dinner Menu Matrix (2)'!F67","v":"Shaved Proscuitto "},"GM14"]
[null,null,{"$f":"'Dinner Menu Matrix (2)'!F68","v":"Sliced Turkey Breast"},"GM14"]
[null,null,{"$f":"'Dinner Menu Matrix (2)'!F69","v":"Cornichons / Pickles / Pearl Onions"},"GM14"]
[null,null,{"$f":"'Dinner Menu Matrix (2)'!F70","v":"Olives / Mustard / Giardiniera Veg"},"GM14"]
[null,null,null,"GM14"]
[null,null,"PRETZEL BAR"]
["H1","PRETZELS","  "]
[null,null,{"$f":"'Dinner Menu Matrix (2)'!F73","v":"Salt Crusted Pretzel"}]
[null,"SAUCE ",{"$f":"'Dinner Menu Matrix (2)'!F74","v":"Beer & Cheese Sauce"}]
[null,"SAUCE ",{"$f":"'Dinner Menu Matrix (2)'!F75","v":"Honey Mustard Sauce"}]
[null,"SAUCE ",{"$f":"'Dinner Menu Matrix (2)'!F76","v":"Spicy Mustard Sauce"}]
[null,null,"FRESH MARKET TOPPINGS"]
["H2","TOPPINGS",{"$f":"'Dinner Menu Matrix (2)'!F78","v":"Cherry Tomato Slice / Red Onion"},"GM14","2KG EACH"]
[null,null,{"$f":"'Dinner Menu Matrix (2)'!F79","v":"Cucumber / Celery / Carrots / Radish"},"GM14","2KG EACH"]
[null,null,{"$f":"'Dinner Menu Matrix (2)'!F80","v":"Mixed Pepper / Mushrooms / Corn"},"GM14","2KG EACH"]
[null,null,{"$f":"'Dinner Menu Matrix (2)'!F81","v":"Garbanzo Bean / Black Bean"},"GM14","2KG EACH"]
[null,null,{"$f":"'Dinner Menu Matrix (2)'!F82","v":"Green Olives / Sunflower Seeds"},"GM14","2KG EACH"]
[null,null,{"$f":"'Dinner Menu Matrix (2)'!F83","v":"Walnuts / Croutons"},"GM14","2KG EACH"]
[null,"DRESSINGS","DRESSINGS","GM14","2KG EACH"]
[null,null,{"$f":"'Dinner Menu Matrix (2)'!F85","v":" Ranch / Caesar / Balsamic / Italian"},"GM14","2KG EACH"]
[null,null,{"$f":"'Dinner Menu Matrix (2)'!F86","v":" Low-fat Yogurt / Blue Cheese "},"GM14","2KG EACH"]
[null,null,{"$f":"'Dinner Menu Matrix (2)'!F87","v":" 1000 Island / Shallot / Mustard"},"GM14","2KG EACH"]
[null,null,"PASTRY COUNTER"]
["H3","Fruit Tart",{"$f":"'Dinner Menu Matrix (2)'!F89","v":"Fresh Fruit Tartlet"}]
[null,"Pastry",{"$f":"'Dinner Menu Matrix (2)'!F90","v":"Grandma's Chocolate Cake"}]
[null,"Pastry",{"$f":"'Dinner Menu Matrix (2)'!F91","v":"Tiramisu"}]
[null,"Pastry",{"$f":"'Dinner Menu Matrix (2)'!F92","v":"Crostata Genovese"}]
[null,"Cupcakes",{"$f":"'Dinner Menu Matrix (2)'!F93","v":"Mimosa Cake"}]
[null,null,"FRESH & FAST - GF"]
["H4","Gluten Free",{"$f":"'Dinner Menu Matrix (2)'!F95","v":"Amaretto Profiteroles"}]
[null,null,{"$f":"'Dinner Menu Matrix (2)'!F96","v":0}]
[null,"Sugar Free",{"$f":"'Dinner Menu Matrix (2)'!F97","v":"Mango & Banana Shortcake"}]
["H5","H5 - HOT",{"$f":"'Dinner Menu Matrix (2)'!F98","v":"GF-Bread Pudding / Vanilla Sauce"}]
[null,null,"FRUIT STAND FAVORITES"]
["I-1","Whole Fruits",{"$f":"'Dinner Menu Matrix (2)'!F100","v":"Banana / Red Apple / Pears / Peach   Green Apple / Oranges"},"LIDO 14","20KGEACH"]
[null,"Sliced Fruits",{"$f":"'Dinner Menu Matrix (2)'!F101","v":"Watermelon/Pineapple/  Cantaloupe  Honeydew Melon"},"FRUIT PREP ","20KG EACH"]
[null,null,"OVEN BAKED BREADS"]
["I-2","Current Rolls",{"$f":"'Dinner Menu Matrix (2)'!F103","v":"1) Plain Crunchy Rolls"}]
[null,null,{"$f":"'Dinner Menu Matrix (2)'!F104","v":"2) Plain Soft Rolls"}]
[null,null,{"$f":"'Dinner Menu Matrix (2)'!F105","v":"3) Sesame Seed Rolls"}]
[null,"Loafs",{"$f":"'Dinner Menu Matrix (2)'!F106","v":"4) Focaccia Loaf Sliced"}]
[null,null,{"$f":"'Dinner Menu Matrix (2)'!F107","v":"5) Tomato Focaccia"}]
[null,"Condiments",{"$f":"'Dinner Menu Matrix (2)'!F108","v":"Butter & Preserves"}]
[null,null,"FROMAGERIE"]
["I-3","CHEESE",{"$f":"'Dinner Menu Matrix (2)'!F110","v":" Cheddar / Provolone / Gorgonzola"},"GM14","5KG"]
[null,"CHEESE",{"$f":"'Dinner Menu Matrix (2)'!F111","v":" Havarti / Jack Cheese"},"GM14","5KG"]
[null,"CONDIMENTS",{"$f":"'Dinner Menu Matrix (2)'!F112","v":" Variety of Crackers"},"GM14","5KG"]
[null,"DRIED FRUITS",{"$f":"'Dinner Menu Matrix (2)'!F113","v":"Apricots / Figs / Dates / Prunes"},"GM14","2KG EACH "]
[null,"NUTS",{"$f":"'Dinner Menu Matrix (2)'!F114","v":"Almond / Pistachio / Walnuts / Pecans"},"GM14","2KG EACH "]
[null,null,"FRESH & FAST STATION - 2"]
["I-4","Dessert",{"$f":"'Dinner Menu Matrix (2)'!F116","v":"Coffee Mousse Cake "}]
[null,null,{"$f":"'Dinner Menu Matrix (2)'!F117","v":0}]
[null,null,{"$f":"'Dinner Menu Matrix (2)'!F118","v":"Tiramisu"}]
[null,"Dessert",{"$f":"'Dinner Menu Matrix (2)'!F119","v":0}]
[null,null,{"$f":"'Dinner Menu Matrix (2)'!F120","v":"Frutti Di Bosco"}]
["I-5","Dessert Hot",{"$f":"'Dinner Menu Matrix (2)'!F121","v":0}]
[]
[null,null,null,null,"Sous chef DK 5 / 6 check off sign                      Time"]
[]
[null,null,null,null,"Sous Chef recive check off sign                       Time"]

{"sheet":"Day 4 - Production","index":4,"n_rows":124,"n_cols":9,"rows_kept":124,"cut":false,"hidden":false,"merged":[[62,1,68,1],[62,0,68,0],[100,3,100,8],[107,3,107,8],[42,3,42,8],[87,0,91,0],[93,0,95,0],[93,1,94,1],[98,0,99,0],[70,0,74,0],[70,1,71,1],[76,0,85,0],[76,1,81,1],[82,1,85,1],[57,0,60,0],[113,3,113,8],[61,3,61,8],[69,3,69,8],[75,3,75,8],[92,3,92,8],[97,3,97,8],[86,3,86,8],[108,0,111,0],[114,0,118,0],[114,1,116,1],[117,1,118,1],[101,0,106,0],[101,1,103,1],[104,1,105,1],[1,3,1,8],[7,3,7,8],[27,3,27,8],[34,3,34,8],[37,3,37,8],[49,3,49,8],[56,3,56,8],[35,0,36,0],[35,1,36,1],[38,0,41,0],[43,0,48,0],[50,0,55,0],[28,0,29,0],[28,1,29,1],[30,0,31,0],[30,1,31,1],[32,0,33,0],[32,1,33,1],[27,0,27,1],[3,0,4,0],[3,1,4,1],[5,0,6,0],[5,2,6,2],[8,0,9,0],[10,0,11,0],[10,1,11,1],[12,0,13,0],[14,1,22,1],[23,1,26,1],[23,0,26,0],[14,0,22,0]]}
[null,"STATION","DINNER / DAY 4","PREP LOCATION","PREP QTY","CDP Check off\nID","LEFTOVERS","CREW","SHOPPING LIST"]
[null,null,"WESTERN DESTINATIONS"]
["A1","GF-PASTA",{"$f":"'Dinner Menu Matrix (2)'!G3","v":"1) Roasted Peppers & Basil"},"LIDO HOT ","10KG",null,null,null,"Trio diced peppers, olive"]
["A2","DAILY HOT SANDWICH",{"$f":"'Dinner Menu Matrix (2)'!G4","v":"1) Pulled Pork Sliders w/ Gouda"},"GRILL6 FILLING",200,null,null,null,"Pork, carm onions jull, bbq sauce. "]
[null,null,{"$f":"'Dinner Menu Matrix (2)'!G5","v":"BBQ Sauce, Pickles & Red Onion-P"},"LIDO HOT "]
["A3","TEX-MEX ITEM",{"$f":"'Dinner Menu Matrix (2)'!G6:G7","v":"1) Cilantro Chicken Nacho's w/ tomato salsa and cilantro"},"LIDO HOT ","215KG"]
[null,"SIDE ITEM",null,"LIDOGM","10KG"]
[null,null,"CARVING BAZAAR"]
["B1","FISH/SEAFOOD",{"$f":"'Dinner Menu Matrix (2)'!G10","v":"1) Orange-Pepper Tuna / Orange Em"},"FISH 5",200]
[null,"VEGETABLES",{"$f":"'Dinner Menu Matrix (2)'!G11","v":"2) Roasted Green Zucchini & Peppers"},"LIDO HOT ","20KG"]
["B2","POTATO OR VEG",{"$f":"'Dinner Menu Matrix (2)'!G12","v":"1) Bacon Cheddar Stuff Potatoes"},"SOUP6","20KG"]
[null,null,{"$f":"'Dinner Menu Matrix (2)'!G13","v":"2) Roasted Sweet Potato Mash"}]
["B3","CARVING",{"$f":"'Dinner Menu Matrix (2)'!G14","v":"MUSTARD CRUSTED LAMB LEG"},"GRILL6","15 PCS"]
[null,"SAUCES",{"$f":"'Dinner Menu Matrix (2)'!G15","v":"1) Mustard Sauce 2) Mint Jelly           3) Lamb Jus  4) Mango Chutney"},"SAUCE 6","3LTR EACH"]
["B4","PASTA TOPPINGS",{"$f":"'Dinner Menu Matrix (2)'!G16","v":"1) Grilled Chicken Breast Strips"},"LIDO HOT ","5KG"]
[null,null,{"$f":"'Dinner Menu Matrix (2)'!G17","v":"2) Roasted Seard Steak Cubes"},"LIDO HOT ","5KG"]
[null,null,{"$f":"'Dinner Menu Matrix (2)'!G18","v":"3) Roasted Catch of the Day Cubes"},"LIDO HOT ","5KG"]
[null,null,{"$f":"'Dinner Menu Matrix (2)'!G19","v":"4) Garlic Shrimp"},"LIDO HOT ","5KG"]
[null,null,null,"LIDO HOT ","5KG"]
[null,null,null,"LIDO HOT ","5KG"]
[null,null,null,"LIDO HOT ","5KG"]
[null,null,null,"LIDO HOT ","5KG"]
[null,null,null,"SAUCE 6","10LTR"]
["B5","PASTA STATION",{"$f":"'Dinner Menu Matrix (2)'!G20","v":"Sauce: Bolognese "},"SAUCE 6","10LTR"]
[null,null,{"$f":"'Dinner Menu Matrix (2)'!G21","v":"Sauce: Marinara"},"SAUCE 6","5LTR"]
[null,null,{"$f":"'Dinner Menu Matrix (2)'!G22","v":"1) Farfalle Pasta"},"LIDO HOT ","10KG"]
[null,null,{"$f":"'Dinner Menu Matrix (2)'!G23","v":"2) Fettucini Pasta"},"LIDO HOT ","10KG"]
["DESTINATIONS",null,"ASIAN"]
["C2","FISH / SEAFOOD               VEGETABLE ITEM",{"$f":"'Dinner Menu Matrix (2)'!G37","v":"Scallions / Bacon Bits / Croutons "},"LIDO HOT ",200]
[null,null,{"$f":"'Dinner Menu Matrix (2)'!G38","v":"Parmesan / Red Onion / Tofu"},"LIDO HOT "]
["C3","PROTEIN ITEM         SIDE ITEM",{"$f":"'Dinner Menu Matrix (2)'!G29","v":"1) Thai Chicken Skewers w/ Peanut"},"LIDO HOT ",300]
[null,null,{"$f":"'Dinner Menu Matrix (2)'!G30","v":"2) Peanut Sauce"}]
["C4","STARCH ITEM            SIDE ITEM",{"$f":"'Dinner Menu Matrix (2)'!G31","v":"1) Vegetable Fried Rice"},"SOUP6","10KG"]
[null,null,{"$f":"'Dinner Menu Matrix (2)'!G32","v":"2) Soy-ginger Bokchoy"},"LIDO HOT ","25KG"]
[null,null,"GARDEN SOUP KETTLE"]
["D1","SOUPS",{"$f":"'Dinner Menu Matrix (2)'!G35","v":"1) Daily Soup Main Dining"},"AS PER SHEDULE","20LTR"]
[null,null,{"$f":"'Dinner Menu Matrix (2)'!G36","v":"2) Daily Soup Main Dining"},"AS PER SHEDULE","20LTR"]
[null,null,"HARVEST SALADS"]
["E1","Composed Salad",{"$f":"'Dinner Menu Matrix (2)'!G40","v":"Hot Smoked Salmon & Cucumber"},"GM14",180]
[null,"Crostini",{"$f":"'Dinner Menu Matrix (2)'!G41","v":"Port Figs & Brie Crostini"},"FRUIT6",180]
[null,"Cold Appetizer",{"$f":"'Dinner Menu Matrix (2)'!G42","v":"Deviled Egg w/ Salmon Roe & Chives"},"GM6",350]
[null,"Cold Appetizer",{"$f":"'Dinner Menu Matrix (2)'!G43","v":"Mixed Olives & Almonds"},"GM14",250]
[null,null,"COMPOSED SALADS"]
["E2","Caesar Salad",{"$f":"'Dinner Menu Matrix (2)'!G45","v":"Romaine Lettuce / Parmesan / Anchovies / Croutons "}]
[null,"Composed Salad",{"$f":"'Dinner Menu Matrix (2)'!G46","v":" Waldorf Chicken Salad"},"ICAFE ","20KG"]
[null,"Fruit Salad LG",{"$f":"'Dinner Menu Matrix (2)'!G47","v":"Apricot & Cherry Fruit Salad"},"FRUIT 5","10KG"]
[null,"Roasted Veg",{"$f":"'Dinner Menu Matrix (2)'!G48","v":"Mixed Vegetables"},"GM14","10KG"]
[null,"Cheese Garnish",{"$f":"'Dinner Menu Matrix (2)'!G49","v":"Blue Cheese / Parmesan Cheese"},"GM14","2KG"]
[null,"Bread Garnish",{"$f":"'Dinner Menu Matrix (2)'!G50","v":"Seasoned Bagel Chips"},"GM14","3DZ"]
[null,null,"FRESH MARKET GREENS"]
["F1","Leaf Lettuce",null,"GM14","15KG"]
[null,"Leaf Lettuce",{"$f":"'Dinner Menu Matrix (2)'!G52","v":"Mixed Greens / Spinach"},"GM14","15KG"]
[null,"Leaf Lettuce",{"$f":"'Dinner Menu Matrix (2)'!G53","v":"Shredded Green & Red Cabbage"},"GM14","15KG"]
[null,"Tomato Salad",{"$f":"'Dinner Menu Matrix (2)'!G54","v":"Sliced Tomato & Red Onion"},"GM14","15KG"]
[null,"Potato Salad",{"$f":"'Dinner Menu Matrix (2)'!G55","v":"German Potato Salad"},"GM14","20KG"]
[null,"Crudités",{"$f":"'Dinner Menu Matrix (2)'!G56","v":"Cauliflower/Broccoli/Cherry Tomato"},"GM14","15KG"]
[null,null,"GOURMET SANDWICH SHOP"]
["F2","Mini Slider Roll ",{"$f":"'Dinner Menu Matrix (2)'!G58","v":"Roast Beef, Horseradish, Pickles"},"GM14",180]
[null,"Open Face",{"$f":"'Dinner Menu Matrix (2)'!G59","v":"Smoked Salmon,Cucumber,Dill "},"GM6",180]
[null,"Gazpacho",{"$f":"'Dinner Menu Matrix (2)'!G60","v":"Cucumber Herb"},"GM14","20LTR"]
[null,"Pickles",{"$f":"'Dinner Menu Matrix (2)'!G61","v":"Red Onion-Cornichons-Giardiniera-Green Olives - Kalamata Olives"},"GM14","2KGEACH"]
[null,null,"CHARCUTERIE"]
["G1","CHARCUTERIE DISPLAY",{"$f":"'Dinner Menu Matrix (2)'!G64","v":" Chicken Liver Pate w/ Pickled Onions"}]
[null,null,{"$f":"'Dinner Menu Matrix (2)'!G65","v":"Farmers Pate w/ Lettuce"}]
[null,null,{"$f":"'Dinner Menu Matrix (2)'!G66","v":"Lobster-Seafood Terrine"}]
[null,null,{"$f":"'Dinner Menu Matrix (2)'!G67","v":"Shaved Coppa "}]
[null,null,{"$f":"'Dinner Menu Matrix (2)'!G68","v":"Sliced Ham"}]
[null,null,{"$f":"'Dinner Menu Matrix (2)'!G69","v":"Cornichons / Pickles / Pearl Onions"}]
[null,null,{"$f":"'Dinner Menu Matrix (2)'!G70","v":"Olives / Mustard / Giardiniera Veg"}]
[null,null,"PRETZEL BAR"]
["H1","PRETZELS",{"$f":"'Dinner Menu Matrix (2)'!G72","v":"Plain Pretzel"}]
[null,null,{"$f":"'Dinner Menu Matrix (2)'!G73","v":"Salt Crusted Pretzel"}]
[null,"SAUCE ",{"$f":"'Dinner Menu Matrix (2)'!G74","v":"Beer & Cheese Sauce"}]
[null,"SAUCE ",{"$f":"'Dinner Menu Matrix (2)'!G75","v":"Honey Mustard Sauce"}]
[null,"SAUCE ",{"$f":"'Dinner Menu Matrix (2)'!G76","v":"Spicy Mustard Sauce"}]
[null,null,"FRESH MARKET TOPPINGS"]
["H2","TOPPINGS",{"$f":"'Dinner Menu Matrix (2)'!G78","v":"Cherry Tomato Slice / Red Onion"},"GM14","5KG"]
[null,null,{"$f":"'Dinner Menu Matrix (2)'!G79","v":"Cucumber / Celery / Carrots / Radish"},"GM14","5KG"]
[null,null,{"$f":"'Dinner Menu Matrix (2)'!G80","v":"Mixed Pepper / Mushrooms / Corn"},"GM14","5KG"]
[null,null,{"$f":"'Dinner Menu Matrix (2)'!G81","v":"Garbanzo Bean / Black Bean"},"GM14","5KG"]
[null,null,{"$f":"'Dinner Menu Matrix (2)'!G82","v":"Green Olives / Sunflower Seeds"},"GM14","5KG"]
[null,null,{"$f":"'Dinner Menu Matrix (2)'!G83","v":"Walnuts / Croutons"},"GM14","5KG"]
[null,"DRESSINGS","DRESSINGS","GM14","1GAL"]
[null,null,{"$f":"'Dinner Menu Matrix (2)'!G85","v":" Ranch / Caesar / Balsamic / Italian"},"GM14","1GAL"]
[null,null,{"$f":"'Dinner Menu Matrix (2)'!G86","v":" Low-fat Yogurt / Blue Cheese "},"GM14","1GAL"]
[null,null,{"$f":"'Dinner Menu Matrix (2)'!G87","v":" 1000 Island / Shallot / Mustard"},"GM14","1GAL"]
[null,null,"PASTRY COUNTER"]
["H3","Fruit Tart",{"$f":"'Dinner Menu Matrix (2)'!G89","v":"Fresh Fruit Tartlet"}]
[null,"Pastry",{"$f":"'Dinner Menu Matrix (2)'!G90","v":"Chocolate Coffee Almond Cake"}]
[null,"Pastry",{"$f":"'Dinner Menu Matrix (2)'!G91","v":"Apricot Pistachio Mousse Cake"}]
[null,"Pastry",{"$f":"'Dinner Menu Matrix (2)'!G92","v":"Roasted Nut Pie"}]
[null,"Cupcakes",{"$f":"'Dinner Menu Matrix (2)'!G93","v":"Almond Season Fruit Macaroon"}]
[null,null,"FRESH & FAST - GF"]
["H4","Gluten Free",{"$f":"'Dinner Menu Matrix (2)'!G95","v":"Pavlova"}]
[null,null,{"$f":"'Dinner Menu Matrix (2)'!G96","v":0}]
[null,"Sugar Free",{"$f":"'Dinner Menu Matrix (2)'!G97","v":"Cherry Trifle"}]
["H5","H5 - HOT",{"$f":"'Dinner Menu Matrix (2)'!G98","v":"GF-Baked S'mores w/ GF Cookies"}]
[null,null,"FRUIT STAND FAVORITES"]
["I-1","Whole Fruits",{"$f":"'Dinner Menu Matrix (2)'!G100","v":"Banana / Red Apple / Pears / Peach   Green Apple / Oranges"},"LIDO 14","20KGEACH"]
[null,"Sliced Fruits",{"$f":"'Dinner Menu Matrix (2)'!G101","v":"Watermelon/Pineapple/  Cantaloupe  Honeydew Melon"},"FRUIT PREP ","20KG EACH"]
[null,null,"OVEN BAKED BREADS"]
["I-2","Current Rolls",{"$f":"'Dinner Menu Matrix (2)'!G103","v":"1) Plain Crunchy Rolls"}]
[null,null,{"$f":"'Dinner Menu Matrix (2)'!G104","v":"2) Plain Soft Rolls"}]
[null,null,{"$f":"'Dinner Menu Matrix (2)'!G105","v":"3) Olive Rolls"}]
[null,"Loafs",{"$f":"'Dinner Menu Matrix (2)'!G106","v":"4) Pumpernickel Loaf Sliced"}]
[null,null,{"$f":"'Dinner Menu Matrix (2)'!G107","v":"5) Parmesan Focaccia"}]
[null,"Condiments",{"$f":"'Dinner Menu Matrix (2)'!G108","v":"Butter & Preserves"}]
[null,null,"FROMAGERIE"]
["I-3","CHEESE",{"$f":"'Dinner Menu Matrix (2)'!G110","v":" Cheddar / Provolone / Gorgonzola"},"GM14","5KG"]
[null,"CHEESE",{"$f":"'Dinner Menu Matrix (2)'!G111","v":" Havarti / Jack Cheese"},"GM14","5KG"]
[null,"CONDIMENTS",{"$f":"'Dinner Menu Matrix (2)'!G112","v":" Variety of Crackers"},"GM14","5KG"]
[null,"DRIED FRUITS",{"$f":"'Dinner Menu Matrix (2)'!G113","v":"Apricots / Figs / Dates / Prunes"},"GM14","2KG EACH "]
[null,"NUTS",{"$f":"'Dinner Menu Matrix (2)'!G114","v":"Almond / Pistachio / Walnuts / Pecans"},"GM14","2KG EACH "]
[null,null,"FRESH & FAST STATION - 2"]
["I-4","Dessert",{"$f":"'Dinner Menu Matrix (2)'!G116","v":"Sacher Torte"}]
[null,null,{"$f":"'Dinner Menu Matrix (2)'!G117","v":0}]
[null,null,{"$f":"'Dinner Menu Matrix (2)'!G118","v":"Apricot Pistachio Mousse Cake"}]
[null,"Dessert",{"$f":"'Dinner Menu Matrix (2)'!G119","v":0}]
[null,null,{"$f":"'Dinner Menu Matrix (2)'!G120","v":"Sticky Toffee Pudding"}]
["I-5","Dessert Hot",{"$f":"'Dinner Menu Matrix (2)'!G121","v":0}]
[]
[null,null,null,null,"Sous chef DK 5 / 6 check off sign                      Time"]
[]
[null,null,null,null,"Sous Chef recive check off sign                       Time"]

{"sheet":"Day 5 - Production","index":5,"n_rows":124,"n_cols":9,"rows_kept":124,"cut":false,"hidden":false,"merged":[[100,3,100,8],[107,3,107,8],[113,3,113,8],[108,0,111,0],[75,3,75,8],[92,3,92,8],[97,3,97,8],[62,1,68,1],[62,0,68,0],[114,0,118,0],[114,1,116,1],[117,1,118,1],[101,0,106,0],[101,1,103,1],[104,1,105,1],[1,3,1,8],[7,3,7,8],[27,3,27,8],[34,3,34,8],[37,3,37,8],[42,3,42,8],[87,0,91,0],[93,0,95,0],[93,1,94,1],[98,0,99,0],[70,0,74,0],[70,1,71,1],[76,0,85,0],[76,1,81,1],[82,1,85,1],[57,0,60,0],[86,3,86,8],[49,3,49,8],[56,3,56,8],[61,3,61,8],[69,3,69,8],[35,0,36,0],[35,1,36,1],[38,0,41,0],[43,0,48,0],[50,0,55,0],[28,0,29,0],[28,1,29,1],[30,0,31,0],[30,1,31,1],[32,0,33,0],[32,1,33,1],[27,0,27,1],[3,0,4,0],[3,1,4,1],[5,0,6,0],[8,0,9,0],[10,0,11,0],[10,1,11,1],[12,0,13,0],[14,0,24,0],[14,1,24,1],[25,0,26,0],[25,1,26,1]]}
[null,"STATION","DINNER/ DAY 5","PRODUCTION LOCATION","PRODUCTION QTY","CDP Check off\nID","LEFTOVERS","CREW","SHOPPING LIST"]
[null,null,"WESTERN DESTINATIONS"]
["A1","GF-PASTA",{"$f":"'Dinner Menu Matrix (2)'!H3","v":"1) Wild Mushroom Cream Sauce"},"LIDO 14","10LTR"]
["A2","DAILY HOT SANDWICH",{"$f":"'Dinner Menu Matrix (2)'!H4","v":"1) Beef Sliders w/ Mushrooms, "},"LIDO 14",250]
[null,null,{"$f":"'Dinner Menu Matrix (2)'!H5","v":"Caramelized Onions & Cheddar"}]
["A3","TEX-MEX ITEM",{"$f":"'Dinner Menu Matrix (2)'!H6","v":"1) Fried Codfish Tacos / Asian Slaw"},"LIDO HOT","20kg"]
[null,"SIDE ITEM",{"$f":"'Dinner Menu Matrix (2)'!H7","v":"Chipotle Aioli"},"GM14","5ltr"]
[null,null,"CARVING BAZAAR"]
["B1","FISH/SEAFOOD",{"$f":"'Dinner Menu Matrix (2)'!H10","v":"1) Whole Roasted Salmon Filet"},"LIDO HOT ","30fillet"]
[null,"VEGETABLES",{"$f":"'Dinner Menu Matrix (2)'!H11","v":"Pickled Red Onions-Parsley Garnish"}]
["B2","POTATO OR VEG",{"$f":"'Dinner Menu Matrix (2)'!H12","v":"1) Potatoes in Mushroom Sauce"},"SOUP6","20kg"]
[null,null,{"$f":"'Dinner Menu Matrix (2)'!H13","v":"2) Sweet Potato Mash"},"LIDO HOT","20kg"]
["B3","CARVING",{"$f":"'Dinner Menu Matrix (2)'!H14","v":"CHICKEN-MUSHROOM ROULADE"},"GRILL5","20LEG"]
[null,"SAUCES","1) Rosemary Jus 2) Mustard Sauce   3) Horseradish  4) Mushroom","SAUCE 6","2LTR EACH"]
["B4","PASTA TOPPINGS",{"$f":"'Dinner Menu Matrix (2)'!H16","v":"1) Grilled Chicken Breast Strips"},"LIDO HOT ","5KG"]
[null,null,{"$f":"'Dinner Menu Matrix (2)'!H17","v":"2) Roasted Seard Steak Cubes"},"LIDO HOT ","5KG"]
[null,null,{"$f":"'Dinner Menu Matrix (2)'!H18","v":"3) Roasted Catch of the Day Cubes"},"LIDO HOT ","5KG"]
[null,null,{"$f":"'Dinner Menu Matrix (2)'!H19","v":"4) Garlic Shrimp"},"LIDO HOT ","5KG"]
[null,null,null,"LIDO HOT ","5KG"]
[null,null,null,"LIDO HOT ","5KG"]
[null,null,null,"LIDO HOT ","5KG"]
[null,null,null,"LIDO HOT ","5KG"]
[null,null,null,"SAUCE 6","10LTR"]
[null,null,{"$f":"'Dinner Menu Matrix (2)'!H20","v":"Sauce: Mushroom Cream"},"SAUCE 6","10LTR"]
[null,null,{"$f":"'Dinner Menu Matrix (2)'!H21","v":"Sauce: Marinara"},"SAUCE 6","10LTR"]
["B5","PASTA STATION",{"$f":"'Dinner Menu Matrix (2)'!H22","v":"1) Penne Pasta"},"LIDO HOT ","10KG"]
[null,null,{"$f":"'Dinner Menu Matrix (2)'!H23","v":"2) Fusili Pasta"},"LIDO HOT ","10KG"]
["DESTINATIONS",null,"MEDITERRANEAN"]
["C2","FISH / SEAFOOD               VEGETABLE ITEM",{"$f":"'Dinner Menu Matrix (2)'!H27","v":"1) Andalous Seafood Paella w/ Shrimp"},"LIDO HOT ","10KG"]
[null,null,{"$f":"'Dinner Menu Matrix (2)'!H28","v":"Mussels, Calamari, Scallops, Veg"}]
["C3","PROTEIN ITEM         SIDE ITEM",{"$f":"'Dinner Menu Matrix (2)'!H29","v":"1) Greek Style Lamb Chops"},"LIDO HOT ","30KG"]
[null,null,{"$f":"'Dinner Menu Matrix (2)'!H30","v":"2) Spicy Red Pepper Feta Sauce"},"GM14","5LTR"]
["C4","STARCH ITEM            SIDE ITEM",{"$f":"'Dinner Menu Matrix (2)'!H31","v":"1) Vegetable Eggplant Moussaka"},"SOUP6","10CERAMIC",null,null,null,"meunster cheese "]
[null,null,{"$f":"'Dinner Menu Matrix (2)'!H32","v":"2) Roasted Okra & Tomato w/ Garlic"},"LIDO HOT ","15KG"]
[null,null,"GARDEN SOUP KETTLE"]
["D1","SOUPS",{"$f":"'Dinner Menu Matrix (2)'!H35","v":"1) Daily Soup Main Dining"},"25LTR","25LTR"]
[null,null,{"$f":"'Dinner Menu Matrix (2)'!H36","v":"2) Daily Soup Main Dining"},"25LTR","25LTR"]
[null,null,"HARVEST SALADS"]
["E1","Composed Salad",{"$f":"'Dinner Menu Matrix (2)'!H40","v":"Asparagus, Bresaola, Mozz, Truffle"},"GM14",180]
[null,"Crostini",{"$f":"'Dinner Menu Matrix (2)'!H41","v":"Goat Cheese & Beet Crostini"},"GM14",180]
[null,"Cold Appetizer",{"$f":"'Dinner Menu Matrix (2)'!H42","v":"Port Figs & Brie Puffs"},"GM6","300POR/15EGG"]
[null,"Cold Appetizer",{"$f":"'Dinner Menu Matrix (2)'!H43","v":"Salt Roasted Cashews & Pickles"},"GM14",180]
[null,null,"COMPOSED SALADS"]
["E2","Caesar Salad",{"$f":"'Dinner Menu Matrix (2)'!H45","v":"Romaine Lettuce / Parmesan / Anchovies / Croutons "},"GM14","15KG"]
[null,"Composed Salad",{"$f":"'Dinner Menu Matrix (2)'!H46","v":"Green Bean Salad"},"GM5","15KG"]
[null,"Fruit Salad LG",{"$f":"'Dinner Menu Matrix (2)'!H47","v":"Spicy Pear & Pineapple Salad"},"FRUIT5","10KG"]
[null,"Roasted Veg",{"$f":"'Dinner Menu Matrix (2)'!H48","v":"Zucchini-Red Pepper- Eggplant"},"GM14","10KG"]
[null,"Cheese Garnish",{"$f":"'Dinner Menu Matrix (2)'!H49","v":"Blue Cheese / Parmesan Cheese"},"GM14","2KG EACH "]
[null,"Bread Garnish",{"$f":"'Dinner Menu Matrix (2)'!H50","v":"Garlic Bread / Parmesan Bread"},"GM14","10LOAF"]
[null,null,"FRESH MARKET GREENS"]
["F1","Leaf Lettuce",null,"GM14","15KG"]
[null,"Leaf Lettuce",{"$f":"'Dinner Menu Matrix (2)'!H52","v":"Mixed Greens / Iceberg"},"GM14","15KG"]
[null,"Leaf Lettuce",{"$f":"'Dinner Menu Matrix (2)'!H53","v":"Shredded Green & Red Cabbage"},"GM14","15KG"]
[null,"Tomato Salad",{"$f":"'Dinner Menu Matrix (2)'!H54","v":"Sliced Tomato & Red Onion"},"GM14","10KG"]
[null,"Potato Salad",{"$f":"'Dinner Menu Matrix (2)'!H55","v":"American Potato Salad"},"GM14","10KG"]
[null,"Crudités",{"$f":"'Dinner Menu Matrix (2)'!H56","v":"Cucumber/Radish/Peppers/Carrots"},"GM14","5KG EACH"]
[null,null,"GOURMET SANDWICH SHOP"]
["F2","Mini Slider Roll ",{"$f":"'Dinner Menu Matrix (2)'!H58","v":"Waldorf Chicken Sandwich"},"ICAFE ",180]
[null,"Open Face",{"$f":"'Dinner Menu Matrix (2)'!H59","v":"Prosciutto, Gorgonzola, Figs"},"GM14",180]
[null,"Gazpacho",{"$f":"'Dinner Menu Matrix (2)'!H60","v":"Tomato & Basil"},"GM14","20LTR"]
[null,"Pickles",{"$f":"'Dinner Menu Matrix (2)'!H61","v":"Red Onion-Cornichons-Giardiniera-Green Olives - Kalamata Olives"},"GM14","2KG EACH "]
[null,null,"CHARCUTERIE"]
["G1","CHARCUTERIE DISPLAY",{"$f":"'Dinner Menu Matrix (2)'!H64","v":" Chicken Liver Pate w/ Pickled Onions"}]
[null,null,{"$f":"'Dinner Menu Matrix (2)'!H65","v":"Farmers Pate w/ Lettuce"}]
[null,null,{"$f":"'Dinner Menu Matrix (2)'!H66","v":"Lobster-Seafood Terrine"}]
[null,null,{"$f":"'Dinner Menu Matrix (2)'!H67","v":"Shaved Proscuitto "}]
[null,null,{"$f":"'Dinner Menu Matrix (2)'!H68","v":"Sliced Turkey Breast"}]
[null,null,{"$f":"'Dinner Menu Matrix (2)'!H69","v":"Cornichons / Pickles / Pearl Onions"}]
[null,null,{"$f":"'Dinner Menu Matrix (2)'!H70","v":"Olives / Mustard / Giardiniera Veg"}]
[null,null,"PRETZEL BAR"]
["H1","PRETZELS",{"$f":"'Dinner Menu Matrix (2)'!H72","v":"Plain Pretzel"}]
[null,null,{"$f":"'Dinner Menu Matrix (2)'!H73","v":"Salt Crusted Pretzel"}]
[null,"SAUCE ",{"$f":"'Dinner Menu Matrix (2)'!H74","v":"Beer & Cheese Sauce"}]
[null,"SAUCE ",{"$f":"'Dinner Menu Matrix (2)'!H75","v":"Honey Mustard Sauce"}]
[null,"SAUCE ",{"$f":"'Dinner Menu Matrix (2)'!H76","v":"Spicy Mustard Sauce"}]
[null,null,"FRESH MARKET TOPPINGS"]
["H2","TOPPINGS",{"$f":"'Dinner Menu Matrix (2)'!H78","v":"Cherry Tomato Slice / Red Onion"},"GM14","5KG"]
[null,null,{"$f":"'Dinner Menu Matrix (2)'!H79","v":"Cucumber / Celery / Carrots / Radish"},"GM14","5KG"]
[null,null,{"$f":"'Dinner Menu Matrix (2)'!H80","v":"Mixed Pepper / Mushrooms / Corn"},"GM14","5KG"]
[null,null,{"$f":"'Dinner Menu Matrix (2)'!H81","v":"Garbanzo Bean / Black Bean"},"GM14","5KG"]
[null,null,{"$f":"'Dinner Menu Matrix (2)'!H82","v":"Green Olives / Sunflower Seeds"},"GM14","5KG"]
[null,null,{"$f":"'Dinner Menu Matrix (2)'!H83","v":"Walnuts / Croutons"},"GM14","5KG"]
[null,"DRESSINGS","DRESSINGS","GM14"]
[null,null,{"$f":"'Dinner Menu Matrix (2)'!H85","v":" Ranch / Caesar / Balsamic / Italian"},"GM14","1GAL"]
[null,null,{"$f":"'Dinner Menu Matrix (2)'!H86","v":" Low-fat Yogurt / Blue Cheese "},"GM14","1GAL"]
[null,null,{"$f":"'Dinner Menu Matrix (2)'!H87","v":" 1000 Island / Shallot / Mustard"},"GM14","1GAL"]
[null,null,"PASTRY COUNTER"]
["H3","Fruit Tart",{"$f":"'Dinner Menu Matrix (2)'!H89","v":"Fresh Fruit Tartlet"}]
[null,"Pastry",{"$f":"'Dinner Menu Matrix (2)'!H90","v":"Chocolate Peanut Butter Cake"}]
[null,"Pastry",{"$f":"'Dinner Menu Matrix (2)'!H91","v":"Blueberry Cake"}]
[null,"Pastry",{"$f":"'Dinner Menu Matrix (2)'!H92","v":"Cherry Cake"}]
[null,"Cupcakes",{"$f":"'Dinner Menu Matrix (2)'!H93","v":"Pecan Pie"}]
[null,null,"FRESH & FAST - GF"]
["H4","Gluten Free",{"$f":"'Dinner Menu Matrix (2)'!H95","v":"Sweet Potato Pie"}]
[null,null,{"$f":"'Dinner Menu Matrix (2)'!H96","v":0}]
[null,"Sugar Free",{"$f":"'Dinner Menu Matrix (2)'!H97","v":"Coconut Cake"}]
["H5","H5 - HOT",{"$f":"'Dinner Menu Matrix (2)'!H98","v":"Warm Cherry & Apple Crumble Bake"}]
[null,null,"FRUIT STAND FAVORITES"]
["I-1","Whole Fruits",{"$f":"'Dinner Menu Matrix (2)'!H100","v":"Banana / Red Apple / Pears / Peach   Green Apple / Oranges"}]
[null,"Sliced Fruits",{"$f":"'Dinner Menu Matrix (2)'!H101","v":"Watermelon/Pineapple/  Cantaloupe  Honeydew Melon"}]
[null,null,"OVEN BAKED BREADS"]
["I-2","Current Rolls",{"$f":"'Dinner Menu Matrix (2)'!H103","v":"1) Plain Crunchy Rolls"}]
[null,null,{"$f":"'Dinner Menu Matrix (2)'!H104","v":"2) Plain Soft Rolls"}]
[null,null,{"$f":"'Dinner Menu Matrix (2)'!H105","v":"3) Whole Wheat Raisin"}]
[null,"Loafs",{"$f":"'Dinner Menu Matrix (2)'!H106","v":"4) Rye Loaf Sliced"}]
[null,null,{"$f":"'Dinner Menu Matrix (2)'!H107","v":"5) Sun-Dried Tomato Focaccia"}]
[null,"Condiments",{"$f":"'Dinner Menu Matrix (2)'!H108","v":"Butter & Preserves"}]
[null,null,"FROMAGERIE"]
["I-3","CHEESE",{"$f":"'Dinner Menu Matrix (2)'!H110","v":" Cheddar / Provolone / Gorgonzola"}]
[null,"CHEESE",{"$f":"'Dinner Menu Matrix (2)'!H111","v":" Havarti / Jack Cheese"}]
[null,"CONDIMENTS",{"$f":"'Dinner Menu Matrix (2)'!H112","v":" Variety of Crackers"}]
[null,"DRIED FRUITS",{"$f":"'Dinner Menu Matrix (2)'!H113","v":"Apricots / Figs / Dates / Prunes"}]
[null,"NUTS",{"$f":"'Dinner Menu Matrix (2)'!H114","v":"Almond / Pistachio / Walnuts / Pecans"}]
[null,null,"FRESH & FAST STATION - 2"]
["I-4","Dessert",{"$f":"'Dinner Menu Matrix (2)'!H116","v":"Linzer Torte"}]
[null,null,{"$f":"'Dinner Menu Matrix (2)'!H117","v":0}]
[null,null,{"$f":"'Dinner Menu Matrix (2)'!H118","v":"Blueberry Cake"}]
[null,"Dessert",{"$f":"'Dinner Menu Matrix (2)'!H119","v":0}]
[null,null,{"$f":"'Dinner Menu Matrix (2)'!H120","v":"Warm Apricot / Custard Jalousie"}]
["I-5","Dessert Hot",{"$f":"'Dinner Menu Matrix (2)'!H121","v":0}]
[]
[null,null,null,null,"Sous chef DK 5 / 6 check off sign                      Time"]
[]
[null,null,null,null,"Sous Chef recive check off sign                       Time"]

{"sheet":"Dinner Menu Matrix (2)","index":6,"n_rows":120,"n_cols":10,"rows_kept":120,"cut":false,"hidden":false,"merged":[[115,0,118,0],[115,1,116,1],[117,1,118,1],[94,0,96,0],[94,1,95,1],[99,0,100,0],[102,0,107,0],[102,1,104,1],[105,1,106,1],[71,1,72,1],[77,0,86,0],[77,1,82,1],[83,1,86,1],[109,0,112,0],[88,0,92,0],[39,0,42,0],[44,0,49,0],[51,0,55,0],[57,0,61,0],[63,0,69,0],[71,0,75,0],[63,1,67,1],[68,1,69,1],[30,0,31,0],[30,1,31,1],[34,0,35,0],[34,1,35,1],[36,0,37,0],[36,1,37,1],[5,6,6,6],[9,0,10,0],[28,0,29,0],[28,1,29,1],[13,0,14,0],[15,0,18,0],[15,1,18,1],[19,0,22,0],[19,1,20,1],[21,1,22,1],[23,0,23,1],[24,0,25,0],[24,1,25,1],[26,0,27,0],[26,1,27,1],[11,0,12,0],[11,1,12,1],[3,0,4,0],[3,1,4,1],[5,0,6,0]]}
[null,"STATION","DINNER / DAY 0  x 2","DINNER / DAY 1","DINNER / DAY 2","DINNER / DAY 3","DINNER / DAY 4","DINNER/ DAY 5","DINNER / DAY 6","DINNER / DAY 7"]
[null,null,"WESTERN DESTINATIONS","WESTERN DESTINATIONS","WESTERN DESTINATIONS","WESTERN DESTINATIONS","WESTERN DESTINATIONS","WESTERN DESTINATIONS","WESTERN DESTINATIONS","WESTERN DESTINATIONS"]
["A1","GF-PASTA","1) Roasted Peppers & Basil","1) Green Peas & Cherry Tomatoes","1) Roasted Zucchini, peppers, eggplant, red onions","1) Mushrooms, Garlic, Spinach Fresh","1) Roasted Peppers & Basil","1) Wild Mushroom Cream Sauce","1) Green Peas & Cherry Tomatoes","1) Mushrooms, Garlic, Spinach Fresh"]
["A2","DAILY HOT SANDWICH","1) Open Face Lemon Chicken ","1) Ultimate Grilled Cheese on ","1) Pulled Jerk Chicken Sliders w/","1) Meatball Slider w/ Mozzarella ","1) Pulled Pork Sliders w/ Gouda","1) Beef Sliders w/ Mushrooms, ","1) Short-Rib Sliders w/ Pickled Onions","1) Corned Flake Chicken & Waffle"]
[null,null,"Gruyere Sandwich","Sourdough Bread","Jack Cheese & Slaw","Wilted Spinach & Parmesan","BBQ Sauce, Pickles & Red Onion-P","Caramelized Onions & Cheddar","Gorogonzola & Bacon Jam","Sandwich w/ Sriracha Syrup"]
["A3","TEX-MEX ITEM","1) Chili Beef Brisket & Yellow Corn","1) Shaved Pastrami Soft Tacos","1) Potato-Sausage Quesadillia","1) Steak & Cheese Enchilada w/","1) Cilantro Chicken Nacho's w/ tomato salsa and cilantro","1) Fried Codfish Tacos / Asian Slaw","1) Corn Quesadilla with Pulled Pork","1) Roasted Vegetable Quesadilla"]
[null,"SIDE ITEM","Cheese Enchilada","Jack Cheese, Pickles, 1000 Island ","w/ Black Beans (from salsa)","Yellow Corn Salsa",null,"Chipotle Aioli","Cheese, Cilantro, Jerk Spice","w/ Mozzarella Cheese"]
["A4","TOPPINGS","Salsa: Tomato / Corn / Black Bean  - Guacamole / Sour Cream / Cheddar","Salsa: Tomato / Corn / Black Bean  - Guacamole / Sour Cream / Cheddar","Salsa: Tomato / Corn / Black Bean  - Guacamole / Sour Cream / Cheddar","Salsa: Tomato / Corn / Black Bean  - Guacamole / Sour Cream / Cheddar","Salsa: Tomato / Corn / Black Bean  - Guacamole / Sour Cream / Cheddar","Salsa: Tomato / Corn / Black Bean  - Guacamole / Sour Cream / Cheddar","Salsa: Tomato / Corn / Black Bean  - Guacamole / Sour Cream / Cheddar","Salsa: Tomato / Corn / Black Bean  - Guacamole / Sour Cream / Cheddar"]
[null,null,"CARVING BAZAAR","CARVING BAZAAR","CARVING BAZAAR","CARVING BAZAAR","CARVING BAZAAR","CARVING BAZAAR","CARVING BAZAAR","CARVING BAZAAR"]
["B1","FISH/SEAFOOD","1) Spinach Stuffed Flounder/Butr Sc","1) Seared Cod in Fennel Cream Sauce","1) Grilled Salmon/Tomato, Capers","1) Seared Snapper, Citrus Emulsion","1) Orange-Pepper Tuna / Orange Em","1) Whole Roasted Salmon Filet","1) Miso-Baked Codfish & Shiitake","1) Grilled Snapper, Sauce Nicoise"]
[null,"VEGETABLES","2) Parmesan Green Beans","2) Oven Roasted Brussel Sprouts","2) Baked Leek Ragout","2) Garlic Oil Broccoli","2) Roasted Green Zucchini & Peppers","Pickled Red Onions-Parsley Garnish","2) Bokchoy & Bean Sprouts Chili","2) Roasted Broccoli"]
["B2","POTATO OR VEG","1) Creamy Mashed Potatoes","1) Olive-Garlic Crushed Potato","1) Parmesan Crusted Potatoes","1) Rosemary Crushed Red Bliss","1) Bacon Cheddar Stuff Potatoes","1) Potatoes in Mushroom Sauce","1) Classic Duchess Potatoes","1) Rosemary Garlic Potatoes Bliss"]
[null,null,"2) Honey Roasted Sweet Potato","2) Cheddar Mashed Potatoe","2) Steamed Green Beans","2) Truffle Mashed Potato","2) Roasted Sweet Potato Mash","2) Sweet Potato Mash","2) Creamed Spinach","2) Sour Cream Mashed Potato"]
["B3","CARVING","MEATLOAF & MACARONI WRAPPED IN APPLEWOOD BACON","MEDITERRANEAN CHICKEN ROULADE W/ OLIVES","ROSEMARY CRUSTED SIRLOIN","APRICOT&FIG STUFFKED TURKEY BREAST WRAPPED IN BACON","MUSTARD CRUSTED LAMB LEG","CHICKEN-MUSHROOM ROULADE","HERB ROASTED PRIME RIB","FLANK STEAK STUFFED W/ ONION SPINACH & GORGONZOLA"]
[null,"SAUCES","1) Cheese Sauce 2) BBQ Sauce          3) Cranberry Sauce 4) Mushroom","1) Mushroom Sauce 2) Pesto Cream   3) Demi Glace 4) Garlic Oil","1) Chimichurri 2) Peppercorn             3) Creamy Mustard 4) Mushroom","1) Cranberry Sauce 2) Mustard          3) Gravy Dark 4) Peppercorn","1) Mustard Sauce 2) Mint Jelly           3) Lamb Jus  4) Mango Chutney","1) Cranberry Sauce 2) Mustard          3) Gravy Dark 4) Peppercorn","1) Rosemary Jus 2) Mustard Sauce   3) Horseradish  4) Mushroom","1) Chimichurri 2) Peppercorn             3) Creamy Mustard 4) Mushroom"]
["B4","PASTA TOPPINGS","Grilled Chicken / Steak Cubes","1) Grilled Chicken Breast Strips","1) Grilled Chicken Breast Strips","1) Grilled Chicken Breast Strips","1) Grilled Chicken Breast Strips","1) Grilled Chicken Breast Strips","1) Grilled Chicken Breast Strips","1) Grilled Chicken Breast Strips"]
[null,null,"Catch of the Day / Garlic Shrimp","2) Roasted Seard Steak Cubes","2) Roasted Seard Steak Cubes","2) Roasted Seard Steak Cubes","2) Roasted Seard Steak Cubes","2) Roasted Seard Steak Cubes","2) Roasted Seard Steak Cubes","2) Roasted Seard Steak Cubes"]
[null,null,"Grilled Artichokes / Roasted Veggies","3) Roasted Catch of the Day Cubes","3) Roasted Catch of the Day Cubes","3) Roasted Catch of the Day Cubes","3) Roasted Catch of the Day Cubes","3) Roasted Catch of the Day Cubes","3) Roasted Catch of the Day Cubes","3) Roasted Catch of the Day Cubes"]
[null,null,"Stewed Tomato & Olives / Mushrooms","4) Garlic Shrimp","4) Garlic Shrimp","4) Garlic Shrimp","4) Garlic Shrimp","4) Garlic Shrimp","4) Garlic Shrimp","4) Garlic Shrimp"]
["B5","PASTA SAUCES","Sauce: Carbonara","Sauce: Mushroom Cream","Sauce: Alfredo","Sauce: Puttanesca","Sauce: Bolognese ","Sauce: Mushroom Cream","Sauce: Alfredo","Sauce: Puttanesca"]
[null,null,"Sauce: Marinara","Sauce: Marinara","Sauce: Marinara","Sauce: Marinara","Sauce: Marinara","Sauce: Marinara","Sauce: Marinara","Sauce: Marinara"]
[null,"PASTA STATION","1) Farfalle Pasta","1) Penne Pasta","1) Conghielie Pasta","1) Ragatoni Pasta","1) Farfalle Pasta","1) Penne Pasta","1) Conghielie Pasta","1) Ragatoni Pasta"]
[null,null,"2) Fettucini Pasta","2) Fusili Pasta","2) Farfalle Pasta","2) Fusili Pasta","2) Fettucini Pasta","2) Fusili Pasta","2) Farfalle Pasta","2) Fusili Pasta"]
["DESTINATIONS",null,"ENGLISH","FRENCH","ASIAN","ITALIAN","ASIAN","MEDITERRANEAN","SOUTHERN  ","ASIAN   "]
["C1","CONDIMENTS","A1 / Mustard / Ketchup / Sriracha","A1 / Mustard / Ketchup / Sriracha","A1 / Mustard / Ketchup / Sriracha","A1 / Mustard / Ketchup / Sriracha","A1 / Mustard / Ketchup / Sriracha","A1 / Mustard / Ketchup / Sriracha","A1 / Mustard / Ketchup / Sriracha","A1 / Mustard / Ketchup / Sriracha"]
[null,null,"Worchestershire / Soy Sauce / Malt V","Worchestershire / Soy Sauce / Malt V","Worchestershire / Soy Sauce / Malt V","Worchestershire / Soy Sauce / Malt V","Worchestershire / Soy Sauce / Malt V","Worchestershire / Soy Sauce / Malt V","Worchestershire / Soy Sauce / Malt V","Worchestershire / Soy Sauce / Malt V"]
["C2","FISH / SEAFOOD               VEGETABLE ITEM","1) Fisherman's Curry Stew","1) Almond Crusted Perch. Vernonique Sauce (Green Grapes & Brown Butter)","1) Teriyake Glazed Codfish, Sticky","1) Frito Misto Seafood & Veggies","1) Charred Salmon Harami w/ Ponzu","1) Andalous Seafood Paella w/ Shrimp","1) Shrimp-Calamari Steak-Tomato","1) Korean Barramundi Fish Skewers"]
[null,null,"2) Roasted Carrots & Peppers","2) Creamy Potato Fondant","Coconut Rice, Bokchoy, Crispy Spiced Wontons","2) Marinara Sauce & Saffron Aioli","Pickled Ginger Slaw, Fried Noodles","Mussels, Calamari, Scallops, Veg","2) Roasted Corn Succotash","w/ Gochujang Chili Sauce"]
["C3","PROTEIN ITEM         SIDE ITEM","1) Classic London Broil","1) Rustic Coq au Vin Chicken","1) Sweet Chili Pork Loin /Asian Slaw","1) Chicken Scallopini Breaded","1) Thai Chicken Skewers w/ Peanut","1) Greek Style Lamb Chops","1) Southern Dry-rub BBQ Ribs","1) Char Siu Chicken Drums"]
[null,null,"2) Fried Onions","2) Spinach & Tomato Gratinee","2) Pork Dumplings/ Black Bean Sauce","2) Olives, Roasted Peppers, Onions","2) Peanut Sauce","2) Spicy Red Pepper Feta Sauce","2) BBQ Sauce","2) Char Siu Sauce"]
["C4","STARCH ITEM            SIDE ITEM","1) Boiled Bliss/Parsley & Butter","1) Rice Pilaf","1) Soy Ramen Noodle & Broccoli","1) Orzo Pasta, Spinach, Tomato","1) Vegetable Fried Rice","1) Vegetable Eggplant Moussaka","1) Aged Cheddar Macaroni","1) Steamed Rice"]
[null,null,"2) Steamed Rice","2) Green Beans & Onions","2) Vegetable Goyza w/Peanut Sauce","2) Pomodorro Sauce","2) Soy-ginger Bokchoy","2) Roasted Okra & Tomato w/ Garlic","2) Buttered Green Bean & Cabbage","2) Chinese Glazed Broccoli"]
["C5","NEUTRAL"]
[null,null,"GARDEN SOUP KETTLE","GARDEN SOUP KETTLE","GARDEN SOUP KETTLE","GARDEN SOUP KETTLE","GARDEN SOUP KETTLE","GARDEN SOUP KETTLE","GARDEN SOUP KETTLE","GARDEN SOUP KETTLE"]
["D1","SOUPS","1) Daily Soup Main Dining","1) Daily Soup Main Dining","1) Daily Soup Main Dining","1) Daily Soup Main Dining","1) Daily Soup Main Dining","1) Daily Soup Main Dining","1) Daily Soup Main Dining","1) Daily Soup Main Dining"]
[null,null,"2) Daily Soup Main Dining","2) Daily Soup Main Dining","2) Daily Soup Main Dining","2) Daily Soup Main Dining","2) Daily Soup Main Dining","2) Daily Soup Main Dining","2) Daily Soup Main Dining","2) Daily Soup Main Dining"]
["D2","TOPPINGS","Scallions / Bacon Bits / Croutons ","Scallions / Bacon Bits / Croutons ","Scallions / Bacon Bits / Croutons ","Scallions / Bacon Bits / Croutons ","Scallions / Bacon Bits / Croutons ","Scallions / Bacon Bits / Croutons ","Scallions / Bacon Bits / Croutons ","Scallions / Bacon Bits / Croutons "]
[null,null,"Parmesan / Red Onion / Tofu","Parmesan / Red Onion / Tofu","Parmesan / Red Onion / Tofu","Parmesan / Red Onion / Tofu","Parmesan / Red Onion / Tofu","Parmesan / Red Onion / Tofu","Parmesan / Red Onion / Tofu","Parmesan / Red Onion / Tofu"]
[null,null,"HARVEST SALADS","HARVEST SALADS","HARVEST SALADS","HARVEST SALADS","HARVEST SALADS","HARVEST SALADS","HARVEST SALADS","HARVEST SALADS"]
["E1","Composed Salad","Hot Smoked Salmon & Cucumber","Asparagus, Bresaola, Mozz, Truffle","Shrimp & Avocado Salad","Salmon Salad Nicoise","Hot Smoked Salmon & Cucumber","Asparagus, Bresaola, Mozz, Truffle","Shrimp & Avocado Salad","Salmon Salad Nicoise"]
[null,"Crostini","Port Figs & Brie Crostini","Goat Cheese & Beet Crostini","Caprese & Prosciutto, Balsamic Glaze","Gorgonzola, Cranberries, Pistachio","Port Figs & Brie Crostini","Goat Cheese & Beet Crostini","Caprese & Prosciutto, Balsamic Glaze","Gorgonzola, Cranberries, Pistachio"]
[null,"Cold Appetizer","Deviled Egg w/ Salmon Roe & Chives","Port Figs & Brie Puffs","Deviled Egg w/ Salmon Roe & Chives","Prosciutto, Arugula, Feta Cheese","Deviled Egg w/ Salmon Roe & Chives","Port Figs & Brie Puffs","Deviled Egg w/ Salmon Roe & Chives","Prosciutto, Arugula, Feta Cheese"]
[null,"Cold Appetizer","Mixed Olives & Almonds","Salt Roasted Cashews & Pickles","Watermelon, Gorgonzola, Port Syrup","Cantaloupe & Cherry Cocktail","Mixed Olives & Almonds","Salt Roasted Cashews & Pickles","Watermelon, Gorgonzola, Port Syrup","Cantaloupe & Cherry Cocktail"]
[null,null,"COMPOSED SALADS","COMPOSED SALADS","COMPOSED SALADS","COMPOSED SALADS","COMPOSED SALADS","COMPOSED SALADS","COMPOSED SALADS","COMPOSED SALADS"]
["E2","Caesar Salad","Romaine Lettuce / Parmesan / Anchovies / Croutons ","Romaine Lettuce / Parmesan / Anchovies / Croutons ","Romaine Lettuce / Parmesan / Anchovies / Croutons ","Romaine Lettuce / Parmesan / Anchovies / Croutons ","Romaine Lettuce / Parmesan / Anchovies / Croutons ","Romaine Lettuce / Parmesan / Anchovies / Croutons ","Romaine Lettuce / Parmesan / Anchovies / Croutons ","Romaine Lettuce / Parmesan / Anchovies / Croutons "]
[null,"Composed Salad","Waldorf Chicken Salad","Green Bean Salad","Orzo Pasta & Wild Rice Salad","Greek Salad"," Waldorf Chicken Salad","Green Bean Salad","Orzo Pasta & Chicken Salad","Greek Salad"]
[null,"Fruit Salad LG","Mango-Sesame-Chili Fruit Salad","Apricot & Cherry Fruit Salad","Spicy Pear & Pineapple Salad","Cajun Peach Salad","Apricot & Cherry Fruit Salad","Spicy Pear & Pineapple Salad","Cajun Peach Salad","Mango-Sesame-Chili Fruit Salad"]
[null,"Roasted Veg","Zucchini-Peppers-Onions","Roasted Asparagus-Tomato-Carrot","Roasted Mushroom & Tomato","Roasted Carrots & Peppers","Mixed Vegetables","Zucchini-Red Pepper- Eggplant","Roasted Mushroom & Tomato","Roasted Carrots & Peppers"]
[null,"Cheese Garnish","Blue Cheese / Parmesan Cheese","Blue Cheese / Parmesan Cheese","Blue Cheese / Parmesan Cheese","Blue Cheese / Parmesan Cheese","Blue Cheese / Parmesan Cheese","Blue Cheese / Parmesan Cheese","Blue Cheese / Parmesan Cheese","Blue Cheese / Parmesan Cheese"]
[null,"Bread Garnish","Garlic Bread / Parmesan Bread","Seasoned Bagel Chips","Garlic Bread / Parmesan Bread","Cheddar Cheese Bread","Seasoned Bagel Chips","Garlic Bread / Parmesan Bread","Cheddar Cheese Bread","Garlic Bread / Parmesan Bread"]
[null,null,"FRESH MARKET GREENS","FRESH MARKET GREENS","FRESH MARKET GREENS","FRESH MARKET GREENS","FRESH MARKET GREENS","FRESH MARKET GREENS","FRESH MARKET GREENS","FRESH MARKET GREENS"]
["F1","Leaf Lettuce","Mixed Greens / Spinach","Mixed Greens / Iceberg","Mixed Greens / Spinach","Mixed Greens / Iceberg","Mixed Greens / Spinach","Mixed Greens / Iceberg","Mixed Greens / Spinach","Mixed Greens / Iceberg"]
[null,"Leaf Lettuce","Shredded Green & Red Cabbage","Shredded Green & Red Cabbage","Shredded Green & Red Cabbage","Shredded Green & Red Cabbage","Shredded Green & Red Cabbage","Shredded Green & Red Cabbage","Shredded Green & Red Cabbage","Shredded Green & Red Cabbage"]
[null,"Tomato Salad","Sliced Tomato & Red Onion","Sliced Tomato & Red Onion","Sliced Tomato & Red Onion","Sliced Tomato & Red Onion","Sliced Tomato & Red Onion","Sliced Tomato & Red Onion","Sliced Tomato & Red Onion","Sliced Tomato & Red Onion"]
[null,"Potato Salad","Smoked Paprika Potato Salad","German Potato Salad","American Potato Salad","Lemon Pepper Potato Salad","German Potato Salad","American Potato Salad","Smoked Paprika Potato Salad","Lemon Pepper Potato Salad"]
[null,"Crudités","Carrots/Celery/Pepper/Radish","Cauliflower/Broccoli/Cherry Tomato","Cucumber/Radish/Peppers/Carrots","Carrots/Celery/Pepper/Radish","Cauliflower/Broccoli/Cherry Tomato","Cucumber/Radish/Peppers/Carrots","Carrots/Celery/Pepper/Radish","Cauliflower/Broccoli/Cherry Tomato"]
[null,null,"GOURMET SANDWICH SHOP","GOURMET SANDWICH SHOP","GOURMET SANDWICH SHOP","GOURMET SANDWICH SHOP","GOURMET SANDWICH SHOP","GOURMET SANDWICH SHOP","GOURMET SANDWICH SHOP","GOURMET SANDWICH SHOP"]
["F2","Mini Slider Roll ","Roast Beef, Horseradish, Pickles","Waldorf Chicken Sandwich","Salami, Tomato, Brie, Figs, Fennel","Mini Lobster Roll","Roast Beef, Horseradish, Pickles","Waldorf Chicken Sandwich","Salami, Tomato, Brie, Figs, Fennel","Mini Lobster Roll"]
[null,"Open Face","Smoked Salmon,Cucumber,Dill ","Prosciutto, Gorgonzola, Figs","Shaved Lamb, Tabbouleh Feta","Shaved Filet Mignon w/ Truffle Aioli","Smoked Salmon,Cucumber,Dill ","Prosciutto, Gorgonzola, Figs","Shaved Lamb, Tabbouleh Feta","Shaved Filet Mignon w/ Truffle Aioli"]
[null,"Gazpacho","Cucumber Herb","Tomato & Basil","Carrot-Lime","Red Pepper & Tomato","Cucumber Herb","Tomato & Basil","Carrot-Lime","Red Pepper & Tomato"]
[null,"Pickles","Red Onion-Cornichons-Giardiniera-Green Olives - Kalamata Olives","Red Onion-Cornichons-Giardiniera-Green Olives - Kalamata Olives","Red Onion-Cornichons-Giardiniera-Green Olives - Kalamata Olives","Red Onion-Cornichons-Giardiniera-Green Olives - Kalamata Olives","Red Onion-Cornichons-Giardiniera-Green Olives - Kalamata Olives","Red Onion-Cornichons-Giardiniera-Green Olives - Kalamata Olives","Red Onion-Cornichons-Giardiniera-Green Olives - Kalamata Olives","Red Onion-Cornichons-Giardiniera-Green Olives - Kalamata Olives"]
[null,"Condiments","Dijon Mustard - Mayonnaise","Dijon Mustard - Mayonnaise","Dijon Mustard - Mayonnaise","Dijon Mustard - Mayonnaise","Dijon Mustard - Mayonnaise","Dijon Mustard - Mayonnaise","Dijon Mustard - Mayonnaise","Dijon Mustard - Mayonnaise"]
[null,null,"CHARCUTERIE","CHARCUTERIE","CHARCUTERIE","CHARCUTERIE","CHARCUTERIE","CHARCUTERIE","CHARCUTERIE","CHARCUTERIE"]
["G1","CHARCUTERIE DISPLAY"," Chicken Liver Pate w/ Pickled Onions"," Chicken Liver Pate w/ Pickled Onions"," Chicken Liver Pate w/ Pickled Onions"," Chicken Liver Pate w/ Pickled Onions"," Chicken Liver Pate w/ Pickled Onions"," Chicken Liver Pate w/ Pickled Onions"," Chicken Liver Pate w/ Pickled Onions"," Chicken Liver Pate w/ Pickled Onions"]
[null,null,"Farmers Pate w/ Lettuce","Farmers Pate w/ Lettuce","Farmers Pate w/ Lettuce","Farmers Pate w/ Lettuce","Farmers Pate w/ Lettuce","Farmers Pate w/ Lettuce","Farmers Pate w/ Lettuce","Farmers Pate w/ Lettuce"]
[null,null,"Lobster-Seafood Terrine","Lobster-Seafood Terrine","Lobster-Seafood Terrine","Lobster-Seafood Terrine","Lobster-Seafood Terrine","Lobster-Seafood Terrine","Lobster-Seafood Terrine","Lobster-Seafood Terrine"]
[null,null,"Shaved Coppa ","Shaved Proscuitto ","Shaved Coppa ","Shaved Proscuitto ","Shaved Coppa ","Shaved Proscuitto ","Shaved Coppa ","Shaved Proscuitto "]
[null,null,"Sliced Ham","Sliced Turkey Breast","Sliced Ham","Sliced Turkey Breast","Sliced Ham","Sliced Turkey Breast","Sliced Ham","Sliced Turkey Breast"]
[null,"CONDIMENTS","Cornichons / Pickles / Pearl Onions","Cornichons / Pickles / Pearl Onions","Cornichons / Pickles / Pearl Onions","Cornichons / Pickles / Pearl Onions","Cornichons / Pickles / Pearl Onions","Cornichons / Pickles / Pearl Onions","Cornichons / Pickles / Pearl Onions","Cornichons / Pickles / Pearl Onions"]
[null,null,"Olives / Mustard / Giardiniera Veg","Olives / Mustard / Giardiniera Veg","Olives / Mustard / Giardiniera Veg","Olives / Mustard / Giardiniera Veg","Olives / Mustard / Giardiniera Veg","Olives / Mustard / Giardiniera Veg","Olives / Mustard / Giardiniera Veg","Olives / Mustard / Giardiniera Veg"]
[null,null,"PRETZEL BAR","PRETZEL BAR","PRETZEL BAR","PRETZEL BAR","PRETZEL BAR","PRETZEL BAR","PRETZEL BAR","PRETZEL BAR"]
["H1","PRETZELS","Plain Pretzel","Plain Pretzel","Plain Pretzel","Plain Pretzel","Plain Pretzel","Plain Pretzel","Plain Pretzel","Plain Pretzel"]
[null,null,"Salt Crusted Pretzel","Salt Crusted Pretzel","Salt Crusted Pretzel","Salt Crusted Pretzel","Salt Crusted Pretzel","Salt Crusted Pretzel","Salt Crusted Pretzel","Salt Crusted Pretzel"]
[null,"SAUCE ","Beer & Cheese Sauce","Beer & Cheese Sauce","Beer & Cheese Sauce","Beer & Cheese Sauce","Beer & Cheese Sauce","Beer & Cheese Sauce","Beer & Cheese Sauce","Beer & Cheese Sauce"]
[null,"SAUCE ","Honey Mustard Sauce","Honey Mustard Sauce","Honey Mustard Sauce","Honey Mustard Sauce","Honey Mustard Sauce","Honey Mustard Sauce","Honey Mustard Sauce","Honey Mustard Sauce"]
[null,"SAUCE ","Spicy Mustard Sauce","Spicy Mustard Sauce","Spicy Mustard Sauce","Spicy Mustard Sauce","Spicy Mustard Sauce","Spicy Mustard Sauce","Spicy Mustard Sauce","Spicy Mustard Sauce"]
[null,null,"FRESH MARKET TOPPINGS","FRESH MARKET TOPPINGS","FRESH MARKET TOPPINGS","FRESH MARKET TOPPINGS","FRESH MARKET TOPPINGS","FRESH MARKET TOPPINGS","FRESH MARKET TOPPINGS","FRESH MARKET TOPPINGS"]
["H2","TOPPINGS","Cherry Tomato Slice / Red Onion","Cherry Tomato Slice / Red Onion","Cherry Tomato Slice / Red Onion","Cherry Tomato Slice / Red Onion","Cherry Tomato Slice / Red Onion","Cherry Tomato Slice / Red Onion","Cherry Tomato Slice / Red Onion","Cherry Tomato Slice / Red Onion"]
[null,null,"Cucumber / Celery / Carrots / Radish","Cucumber / Celery / Carrots / Radish","Cucumber / Celery / Carrots / Radish","Cucumber / Celery / Carrots / Radish","Cucumber / Celery / Carrots / Radish","Cucumber / Celery / Carrots / Radish","Cucumber / Celery / Carrots / Radish","Cucumber / Celery / Carrots / Radish"]
[null,null,"Mixed Pepper / Mushrooms / Corn","Mixed Pepper / Mushrooms / Corn","Mixed Pepper / Mushrooms / Corn","Mixed Pepper / Mushrooms / Corn","Mixed Pepper / Mushrooms / Corn","Mixed Pepper / Mushrooms / Corn","Mixed Pepper / Mushrooms / Corn","Mixed Pepper / Mushrooms / Corn"]
[null,null,"Garbanzo Bean / Black Bean","Garbanzo Bean / Black Bean","Garbanzo Bean / Black Bean","Garbanzo Bean / Black Bean","Garbanzo Bean / Black Bean","Garbanzo Bean / Black Bean","Garbanzo Bean / Black Bean","Garbanzo Bean / Black Bean"]
[null,null,"Green Olives / Sunflower Seeds","Green Olives / Sunflower Seeds","Green Olives / Sunflower Seeds","Green Olives / Sunflower Seeds","Green Olives / Sunflower Seeds","Green Olives / Sunflower Seeds","Green Olives / Sunflower Seeds","Green Olives / Sunflower Seeds"]
[null,null,"Walnuts / Croutons","Walnuts / Croutons","Walnuts / Croutons","Walnuts / Croutons","Walnuts / Croutons","Walnuts / Croutons","Walnuts / Croutons","Walnuts / Croutons"]
[null,"DRESSINGS","DRESSINGS","DRESSINGS","DRESSINGS","DRESSINGS","DRESSINGS","DRESSINGS","DRESSINGS","DRESSINGS"]
[null,null," Ranch / Caesar / Balsamic / Italian"," Ranch / Caesar / Balsamic / Italian"," Ranch / Caesar / Balsamic / Italian"," Ranch / Caesar / Balsamic / Italian"," Ranch / Caesar / Balsamic / Italian"," Ranch / Caesar / Balsamic / Italian"," Ranch / Caesar / Balsamic / Italian"," Ranch / Caesar / Balsamic / Italian"]
[null,null," Low-fat Yogurt / Blue Cheese "," Low-fat Yogurt / Blue Cheese "," Low-fat Yogurt / Blue Cheese "," Low-fat Yogurt / Blue Cheese "," Low-fat Yogurt / Blue Cheese "," Low-fat Yogurt / Blue Cheese "," Low-fat Yogurt / Blue Cheese "," Low-fat Yogurt / Blue Cheese "]
[null,null," 1000 Island / Shallot / Mustard"," 1000 Island / Shallot / Mustard"," 1000 Island / Shallot / Mustard"," 1000 Island / Shallot / Mustard"," 1000 Island / Shallot / Mustard"," 1000 Island / Shallot / Mustard"," 1000 Island / Shallot / Mustard"," 1000 Island / Shallot / Mustard"]
[null,null,"PASTRY COUNTER","PASTRY COUNTER","PASTRY COUNTER","PASTRY COUNTER","PASTRY COUNTER","PASTRY COUNTER","PASTRY COUNTER","PASTRY COUNTER"]
["H3","Fruit Tart","Fresh Fruit Tartlet","Fresh Fruit Tartlet","Fresh Fruit Tartlet","Fresh Fruit Tartlet","Fresh Fruit Tartlet","Fresh Fruit Tartlet","Fresh Fruit Tartlet","Fresh Fruit Tartlet"]
[null,"Pastry","Chocolates Journey","Grandma's Chocolate Cake","Chocolate Coffee Almond Cake","Grandma's Chocolate Cake","Chocolate Coffee Almond Cake","Chocolate Peanut Butter Cake","Grandma's Chocolate Cake","Grandma's Chocolate Cake"]
[null,"Pastry","Pineapple Upside Down Cake","Coconut Passionfruit Cake","Brazilian Cake","Tiramisu","Apricot Pistachio Mousse Cake","Blueberry Cake","Red Velvet Cheese Cake","Sacher Torte"]
[null,"Pastry","Hawaiin Coffee Coconut Cake","Oreo Peanut Chocolate Pie","Crustry Strawberry Shortcake","Crostata Genovese","Roasted Nut Pie","Cherry Cake","Apple Pie","Linzer Torte"]
[null,"Pastry","Boston Cream Pie","St Honore","Peanut Butter Chocolate Pie","Mimosa Cake","Almond Season Fruit Macaroon","Pecan Pie","Sweet Mud Pie","Bee Sting"]
[null,null,"FRESH & FAST - GF","FRESH & FAST - GF","FRESH & FAST - GF","FRESH & FAST - GF","FRESH & FAST - GF","FRESH & FAST - GF","FRESH & FAST - GF","FRESH & FAST - GF"]
["H4","Gluten Free","Flourless Chocolate Cake","Rhubarb Pie","Almond Torte","Amaretto Profiteroles","Pavlova","Sweet Potato Pie","Chocolate Tapioca Pudding","Dark Almond Chocolate Cake"]
[]
[null,"Sugar Free","Peach Blueberry Crisp","Semolina Tart","Milk Chocolate Mousse Cake","Mango & Banana Shortcake","Cherry Trifle","Coconut Cake","Chocolate Cheese Cake","Coffee Mousse Cake"]
["H5","H5 - HOT","Roasted Apples & Caramel","Caramel Chocolate Baked Banana","Apricot Tapioca Pudding","GF-Bread Pudding / Vanilla Sauce","GF-Baked S'mores w/ GF Cookies","Warm Cherry & Apple Crumble Bake","Apple Marshmallow Bake","Roasted Pears & Raisins"]
[null,null,"FRUIT STAND FAVORITES","FRUIT STAND FAVORITES","FRUIT STAND FAVORITES","FRUIT STAND FAVORITES","FRUIT STAND FAVORITES","FRUIT STAND FAVORITES","FRUIT STAND FAVORITES","FRUIT STAND FAVORITES"]
["I-1","Whole Fruits","Banana / Red Apple / Pears / Peach   Green Apple / Oranges","Banana / Red Apple / Pears / Peach   Green Apple / Oranges","Banana / Red Apple / Pears / Peach   Green Apple / Oranges","Banana / Red Apple / Pears / Peach   Green Apple / Oranges","Banana / Red Apple / Pears / Peach   Green Apple / Oranges","Banana / Red Apple / Pears / Peach   Green Apple / Oranges","Banana / Red Apple / Pears / Peach   Green Apple / Oranges","Banana / Red Apple / Pears / Peach   Green Apple / Oranges"]
[null,"Sliced Fruits","Watermelon/Pineapple/  Cantaloupe  Honeydew Melon","Watermelon/Pineapple/  Cantaloupe  Honeydew Melon","Watermelon/Pineapple/  Cantaloupe  Honeydew Melon","Watermelon/Pineapple/  Cantaloupe  Honeydew Melon","Watermelon/Pineapple/  Cantaloupe  Honeydew Melon","Watermelon/Pineapple/  Cantaloupe  Honeydew Melon","Watermelon/Pineapple/  Cantaloupe  Honeydew Melon","Watermelon/Pineapple/  Cantaloupe  Honeydew Melon"]
[null,null,"OVEN BAKED BREADS","OVEN BAKED BREADS","OVEN BAKED BREADS","OVEN BAKED BREADS","OVEN BAKED BREADS","OVEN BAKED BREADS","OVEN BAKED BREADS","OVEN BAKED BREADS"]
["I-2","Current Rolls","1) Plain Crunchy Rolls","1) Plain Crunchy Rolls","1) Plain Crunchy Rolls","1) Plain Crunchy Rolls","1) Plain Crunchy Rolls","1) Plain Crunchy Rolls","1) Plain Crunchy Rolls","1) Plain Crunchy Rolls"]
[null,null,"2) Plain Soft Rolls","2) Plain Soft Rolls","2) Plain Soft Rolls","2) Plain Soft Rolls","2) Plain Soft Rolls","2) Plain Soft Rolls","2) Plain Soft Rolls","2) Plain Soft Rolls"]
[null,null,"3) Six Cereal Rolls","3) Sunflower Seed Rolls","3) Pumpernickel Rolls","3) Sesame Seed Rolls","3) Olive Rolls","3) Whole Wheat Raisin","3) Honey Wheat Rolls","3) Six Cereal Rolls"]
[null,"Loafs","4) Muesli Loaf Sliced","4) Honey Wheat Loaf Slice","4) Six Cereal Loaf Sliced","4) Focaccia Loaf Sliced","4) Pumpernickel Loaf Sliced","4) Rye Loaf Sliced","4) Sourdough Loaf Sliced","4) Muesli Loaf Sliced"]
[null,null,"5) Olive Focaccia","5) Olive Focaccia","5) Olive Focaccia","5) Tomato Focaccia","5) Parmesan Focaccia","5) Sun-Dried Tomato Focaccia","5) Olive Focaccia","5) Rosemary Focaccia"]
[null,"Condiments","Butter & Preserves","Butter & Preserves","Butter & Preserves","Butter & Preserves","Butter & Preserves","Butter & Preserves","Butter & Preserves","Butter & Preserves"]
[null,null,"FROMAGERIE","FROMAGERIE","FROMAGERIE","FROMAGERIE","FROMAGERIE","FROMAGERIE","FROMAGERIE","FROMAGERIE"]
["I-3","CHEESE"," Cheddar / Provolone / Gorgonzola"," Cheddar / Provolone / Gorgonzola"," Cheddar / Provolone / Gorgonzola"," Cheddar / Provolone / Gorgonzola"," Cheddar / Provolone / Gorgonzola"," Cheddar / Provolone / Gorgonzola"," Cheddar / Provolone / Gorgonzola"," Cheddar / Provolone / Gorgonzola"]
[null,"CHEESE"," Havarti / Jack Cheese"," Havarti / Jack Cheese"," Havarti / Jack Cheese"," Havarti / Jack Cheese"," Havarti / Jack Cheese"," Havarti / Jack Cheese"," Havarti / Jack Cheese"," Havarti / Jack Cheese"]
[null,"CONDIMENTS"," Variety of Crackers"," Variety of Crackers"," Variety of Crackers"," Variety of Crackers"," Variety of Crackers"," Variety of Crackers"," Variety of Crackers"," Variety of Crackers"]
[null,"DRIED FRUITS","Apricots / Figs / Dates / Prunes","Apricots / Figs / Dates / Prunes","Apricots / Figs / Dates / Prunes","Apricots / Figs / Dates / Prunes","Apricots / Figs / Dates / Prunes","Apricots / Figs / Dates / Prunes","Apricots / Figs / Dates / Prunes","Apricots / Figs / Dates / Prunes"]
[null,"NUTS","Almond / Pistachio / Walnuts / Pecans","Almond / Pistachio / Walnuts / Pecans","Almond / Pistachio / Walnuts / Pecans","Almond / Pistachio / Walnuts / Pecans","Almond / Pistachio / Walnuts / Pecans","Almond / Pistachio / Walnuts / Pecans","Almond / Pistachio / Walnuts / Pecans","Almond / Pistachio / Walnuts / Pecans"]
[null,null,"FRESH & FAST STATION - 2","FRESH & FAST STATION - 2","FRESH & FAST STATION - 2","FRESH & FAST STATION - 2","FRESH & FAST STATION - 2","FRESH & FAST STATION - 2","FRESH & FAST STATION - 2","FRESH & FAST STATION - 2"]
["H4","PASTRY","Chocolate Coffee Almond Cake","Dark Chocolate Almond Cake","Black Forest Torte","Coffee Mousse Cake ","Sacher Torte","Linzer Torte","Bee Sting","Apple Strudel "]
[]
[null,"PASTRY ","Pineapple Upside Down Cake","Coconut Passionfruit Cake","Brazilian Cake","Tiramisu","Apricot Pistachio Mousse Cake","Blueberry Cake","Red Velvet Cheese Cake","Sacher Torte"]
[]
["I-5","Dessert Hot","Bread Butter Pudding / Caramel Sauce","Warm Hazelnut Pudding/ Vanilla Sauc","Butter Pecan Pudding Caramel Sauce","Frutti Di Bosco","Sticky Toffee Pudding","Warm Apricot / Custard Jalousie","Banana Brioche Bread Butter Pudding","Apple Strudel "]

{"sheet":"Day 6 - Production","index":7,"n_rows":121,"n_cols":9,"rows_kept":121,"cut":false,"hidden":false,"merged":[[98,3,98,8],[105,3,105,8],[111,3,111,8],[62,3,62,8],[67,3,67,8],[73,3,73,8],[90,3,90,8],[95,3,95,8],[106,0,109,0],[112,0,116,0],[112,1,114,1],[115,1,116,1],[99,0,104,0],[99,1,101,1],[102,1,103,1],[2,3,2,8],[8,3,8,8],[28,3,28,8],[35,3,35,8],[38,3,38,8],[43,3,43,8],[85,0,89,0],[91,0,93,0],[91,1,92,1],[96,0,97,0],[63,0,66,0],[63,1,66,1],[68,0,72,0],[68,1,69,1],[74,0,83,0],[74,1,79,1],[80,1,83,1],[58,0,61,0],[84,3,84,8],[50,3,50,8],[57,3,57,8],[36,0,37,0],[36,1,37,1],[39,0,42,0],[44,0,49,0],[51,0,56,0],[29,0,30,0],[29,1,30,1],[31,0,32,0],[31,1,32,1],[33,0,34,0],[33,1,34,1],[28,0,28,1],[4,0,5,0],[4,1,5,1],[6,0,7,0],[9,0,10,0],[11,0,12,0],[11,1,12,1],[13,0,14,0],[23,1,27,1],[15,0,22,0],[23,0,27,0]]}
[]
[null,"STATION","DINNER / DAY 6","PRODUCTION LOCATION","PRODUCTION QTY","CDP Check off\nID","LEFTOVERS","CREW","SHOPPING LIST"]
[null,null,"WESTERN DESTINATIONS"]
["A1","GF-PASTA",{"$f":"'Dinner Menu Matrix (2)'!I3","v":"1) Green Peas & Cherry Tomatoes"},"LIDO HOT ","10KG"]
["A2","DAILY HOT SANDWICH",{"$f":"'Dinner Menu Matrix (2)'!I4","v":"1) Short-Rib Sliders w/ Pickled Onions"},"SOUP6",350]
[null,null,{"$f":"'Dinner Menu Matrix (2)'!I5","v":"Gorogonzola & Bacon Jam"},"SAUCE 6","10LTR"]
["A3","TEX-MEX ITEM",{"$f":"'Dinner Menu Matrix (2)'!I6","v":"1) Corn Quesadilla with Pulled Pork"},"LIDO HOT ",250]
[null,"SIDE ITEM",{"$f":"'Dinner Menu Matrix (2)'!I7","v":"Cheese, Cilantro, Jerk Spice"},"GM14","5LTR"]
[null,null,"CARVING BAZAAR"]
["B1","FISH/SEAFOOD",{"$f":"'Dinner Menu Matrix (2)'!I10","v":"1) Miso-Baked Codfish & Shiitake"},"LIDO HOT ","250POR"]
[null,"VEGETABLES",{"$f":"'Dinner Menu Matrix (2)'!I11","v":"2) Bokchoy & Bean Sprouts Chili"},"LIDO HOT ","25KG"]
["B2","POTATO OR VEG",{"$f":"'Dinner Menu Matrix (2)'!I12","v":"1) Classic Duchess Potatoes"},"SOUP6","25KG"]
[null,null,{"$f":"'Dinner Menu Matrix (2)'!I13","v":"2) Creamed Spinach"},"SOUP6","25KG"]
["B3","CARVING",{"$f":"'Dinner Menu Matrix (2)'!I14","v":"HERB ROASTED PRIME RIB"},"LIDO 14","10RIB"]
[null,"SAUCES",{"$f":"'Dinner Menu Matrix (2)'!I15","v":"1) Rosemary Jus 2) Mustard Sauce   3) Horseradish  4) Mushroom"},"SAUCE6","5LTR EACH"]
["B4","PASTA TOPPINGS",{"$f":"'Dinner Menu Matrix (2)'!I16","v":"1) Grilled Chicken Breast Strips"},"LIDO 14","5KG"]
[null,null,{"$f":"'Dinner Menu Matrix (2)'!I17","v":"2) Roasted Seard Steak Cubes"},"LIDO 14","5KG"]
[null,null,{"$f":"'Dinner Menu Matrix (2)'!I18","v":"3) Roasted Catch of the Day Cubes"},"LIDO 14","5KG"]
[null,null,{"$f":"'Dinner Menu Matrix (2)'!I19","v":"4) Garlic Shrimp"},"LIDO 14","5KG"]
[null,null,null,"LIDO 14","5KG"]
[null,null,null,"LIDO 14","5KG"]
[null,null,null,"LIDO 14","5KG"]
[null,null,null,"LIDO 14","5KG"]
["B5","PASTA STATION",null,"SAUCE6","10LTR"]
[null,null,{"$f":"'Dinner Menu Matrix (2)'!I20","v":"Sauce: Alfredo"},"SAUCE6","10LTR"]
[null,null,{"$f":"'Dinner Menu Matrix (2)'!I21","v":"Sauce: Marinara"},"SAUCE6","10LTR"]
[null,null,{"$f":"'Dinner Menu Matrix (2)'!I22","v":"1) Conghielie Pasta"},"LIDO HOT ","10KG"]
[null,null,{"$f":"'Dinner Menu Matrix (2)'!I23","v":"2) Farfalle Pasta"},"LIDO HOT ","10KG"]
["DESTINATIONS",null,"SOUTHERN  "]
["C2","FISH / SEAFOOD               VEGETABLE ITEM",{"$f":"'Dinner Menu Matrix (2)'!I27","v":"1) Shrimp-Calamari Steak-Tomato"},"lido14","20kg/20kg"]
[null,null,{"$f":"'Dinner Menu Matrix (2)'!I28","v":"2) Roasted Corn Succotash"},"lido 14","20kg"]
["C3","PROTEIN ITEM         SIDE ITEM",{"$f":"'Dinner Menu Matrix (2)'!I29","v":"1) Southern Dry-rub BBQ Ribs"},"Grill5","80kg"]
[null,null,{"$f":"'Dinner Menu Matrix (2)'!I30","v":"2) BBQ Sauce"},"Grill5","20kg"]
["C4","STARCH ITEM            SIDE ITEM",{"$f":"'Dinner Menu Matrix (2)'!I31","v":"1) Aged Cheddar Macaroni"},"SOUP6","10kg"]
[null,null,{"$f":"'Dinner Menu Matrix (2)'!I32","v":"2) Buttered Green Bean & Cabbage"},"LIDO HOT ","20kg"]
[null,null,"GARDEN SOUP KETTLE"]
["D1","SOUPS",{"$f":"'Dinner Menu Matrix (2)'!I35","v":"1) Daily Soup Main Dining"},"AS PER SHEDULE","25LTR"]
[null,null,{"$f":"'Dinner Menu Matrix (2)'!I36","v":"2) Daily Soup Main Dining"},"AS PER SHEDULE","25LTR"]
[null,null,"HARVEST SALADS"]
["E1","Composed Salad",{"$f":"'Dinner Menu Matrix (2)'!I40","v":"Shrimp & Avocado Salad"},"GM14",180]
[null,"Crostini",{"$f":"'Dinner Menu Matrix (2)'!I41","v":"Caprese & Prosciutto, Balsamic Glaze"},"GM14",180]
[null,"Cold Appetizer",{"$f":"'Dinner Menu Matrix (2)'!I42","v":"Deviled Egg w/ Salmon Roe & Chives"},"BAKERY",150]
[null,"Cold Appetizer",{"$f":"'Dinner Menu Matrix (2)'!I43","v":"Watermelon, Gorgonzola, Port Syrup"},"GM14",180]
[null,null,"COMPOSED SALADS"]
["E2","Caesar Salad",{"$f":"'Dinner Menu Matrix (2)'!I45","v":"Romaine Lettuce / Parmesan / Anchovies / Croutons "},"GM14"]
[null,"Composed Salad",{"$f":"'Dinner Menu Matrix (2)'!I46","v":"Orzo Pasta & Chicken Salad"},"I CAFÉ ","15KG"]
[null,"Fruit Salad LG",{"$f":"'Dinner Menu Matrix (2)'!I47","v":"Cajun Peach Salad"},"FRUIT5","10KG"]
[null,"Roasted Veg",{"$f":"'Dinner Menu Matrix (2)'!I48","v":"Roasted Mushroom & Tomato"},"GM14","10KG"]
[null,"Cheese Garnish",{"$f":"'Dinner Menu Matrix (2)'!I49","v":"Blue Cheese / Parmesan Cheese"},"GM14","5KG"]
[null,"Bread Garnish",{"$f":"'Dinner Menu Matrix (2)'!I50","v":"Cheddar Cheese Bread"},"GM14","5KG"]
[null,null,"FRESH MARKET GREENS"]
["F1","Leaf Lettuce",null,"GM14","15KG"]
[null,"Leaf Lettuce",{"$f":"'Dinner Menu Matrix (2)'!I52","v":"Mixed Greens / Spinach"},"GM14","15KG"]
[null,"Leaf Lettuce",{"$f":"'Dinner Menu Matrix (2)'!I53","v":"Shredded Green & Red Cabbage"},"GM14","15KG"]
[null,"Tomato Salad",{"$f":"'Dinner Menu Matrix (2)'!I54","v":"Sliced Tomato & Red Onion"},"GM14","10KG"]
[null,"Potato Salad",{"$f":"'Dinner Menu Matrix (2)'!I55","v":"Smoked Paprika Potato Salad"},"GM14","10KG"]
[null,"Crudités",{"$f":"'Dinner Menu Matrix (2)'!I56","v":"Carrots/Celery/Pepper/Radish"},"GM14","10KG"]
[null,null,"GOURMET SANDWICH SHOP"]
["F2","Mini Slider Roll ",{"$f":"'Dinner Menu Matrix (2)'!I58","v":"Salami, Tomato, Brie, Figs, Fennel"},"ICAFE ",180]
[null,"Open Face",{"$f":"'Dinner Menu Matrix (2)'!I59","v":"Shaved Lamb, Tabbouleh Feta"},"LIDO14",150]
[null,"Gazpacho",{"$f":"'Dinner Menu Matrix (2)'!I60","v":"Carrot-Lime"},"GM14","15LTR"]
[null,"Pickles",{"$f":"'Dinner Menu Matrix (2)'!I61","v":"Red Onion-Cornichons-Giardiniera-Green Olives - Kalamata Olives"},"GM14","5KG EACH"]
[null,null,"CHARCUTERIE"]
["G1","CHARCUTERIE DISPLAY"]
[null,null,"SAME SET UP AS CURRENT"]
[]
[]
[null,null,"PRETZEL BAR"]
["H1","PRETZELS","Plain Pretzel"]
[null,null,"Salt Crusted Pretzel"]
[null,"SAUCE ","Beer & Cheese Sauce"]
[null,"SAUCE ","Honey Mustard Sauce"]
[null,"SAUCE ","Spicy Mustard Sauce"]
[null,null,"FRESH MARKET TOPPINGS"]
["H2","TOPPINGS","Cherry Tomato Slice / Red Onion","GM14","5KG"]
[null,null,"Cucumber / Celery / Carrots / Radish","GM14","5KG"]
[null,null,"Mixed Pepper / Mushrooms / Corn","GM14","5KG"]
[null,null,"Garbanzo Bean / Black Bean","GM14","5KG"]
[null,null,"Green Olives / Sunflower Seeds","GM14","5KG"]
[null,null,"Walnuts / Croutons","GM14","5KG"]
[null,"DRESSINGS","DRESSINGS","GM14","1GAL"]
[null,null," Ranch / Caesar / Balsamic / Italian","GM14","1GAL"]
[null,null," Low-fat Yogurt / Blue Cheese ","GM14","1GAL"]
[null,null," 1000 Island / Shallot / Mustard","GM14","1GAL"]
[null,null,"PASTRY COUNTER"]
["H3","Fruit Tart","Fresh Fruit Tartlet"]
[null,"Pastry","Strawberry Short Cake"]
[null,"Pastry","Mocha Profiteroles"]
[null,"Pastry","Peach Almond Torte"]
[null,"Cupcakes","Chocolate / Raspberry Frosting"]
[null,null,"FRESH & FAST - GF"]
["H4","Gluten Free"]
[]
[null,"Sugar Free"]
["H5","H5 - HOT"]
[null,null,"FRUIT STAND FAVORITES"]
["I-1","Whole Fruits","Banana / Red Apple / Pears / Peach   Green Apple / Oranges"]
[null,"Sliced Fruits","Watermelon/Pineapple/  Cantaloupe  Honeydew Melon"]
[null,null,"OVEN BAKED BREADS"]
["I-2","Current Rolls","1) Plain Crunchy Rolls"]
[null,null,"2) Plain Soft Rolls"]
[null,null,"3) Honey Wheat Rolls"]
[null,"Loafs","4) Sourdough Loaf Sliced"]
[null,null,"5) Olive Focaccia"]
[null,"Condiments","Butter & Preserves"]
[null,null,"FROMAGERIE"]
["I-3","CHEESE"," Cheddar / Provolone / Gorgonzola"]
[null,"CHEESE"," Havarti / Jack Cheese"]
[null,"CONDIMENTS"," Variety of Crackers"]
[null,"DRIED FRUITS","Apricots / Figs / Dates / Prunes"]
[null,"NUTS","Almond / Pistachio / Walnuts / Pecans"]
[null,null,"FRESH & FAST STATION - 2"]
["I-4","Dessert"]
[]
[]
[null,"Dessert"]
[]
["I-5","Dessert Hot"]
[null,null,null,null,"Sous chef DK 5 / 6 check off sign                      Time"]
[]
[null,null,null,null,"Sous Chef recive check off sign                       Time"]

{"sheet":"Day 7 - Production","index":8,"n_rows":122,"n_cols":8,"rows_kept":122,"cut":false,"hidden":false,"merged":[[97,3,97,7],[104,3,104,7],[110,3,110,7],[61,3,61,7],[66,3,66,7],[72,3,72,7],[89,3,89,7],[94,3,94,7],[105,0,108,0],[111,0,115,0],[111,1,113,1],[114,1,115,1],[98,0,103,0],[98,1,100,1],[101,1,102,1],[1,3,1,7],[7,3,7,7],[27,3,27,7],[34,3,34,7],[37,3,37,7],[42,3,42,7],[84,0,88,0],[90,0,92,0],[90,1,91,1],[95,0,96,0],[62,0,65,0],[62,1,65,1],[67,0,71,0],[67,1,68,1],[73,0,82,0],[73,1,78,1],[79,1,82,1],[57,0,60,0],[83,3,83,7],[49,3,49,7],[56,3,56,7],[35,0,36,0],[35,1,36,1],[38,0,41,0],[43,0,48,0],[50,0,55,0],[28,0,29,0],[28,1,29,1],[30,0,31,0],[30,1,31,1],[32,0,33,0],[32,1,33,1],[27,0,27,1],[3,0,4,0],[3,1,4,1],[5,0,6,0],[8,0,9,0],[10,0,11,0],[10,1,11,1],[12,0,13,0],[14,0,24,0],[14,1,24,1],[25,0,26,0],[25,1,26,1]]}
[null,"STATION","DINNER / DAY 7","PRODUCTION LOCATION","QTY","CDP Check off\nID","CREW","SHOPPING LIST"]
[null,null,"WESTERN DESTINATIONS"]
["A1","GF-PASTA","1) Mushrooms, Garlic, Spinach Fresh"]
["A2","DAILY HOT SANDWICH","1) Corned Flake Chicken & Waffle"]
[null,null,"Sandwich w/ Sriracha Syrup"]
["A3","TEX-MEX ITEM","1) Roasted Vegetable Quisadilla"]
[null,"SIDE ITEM","w/ Mozzarella Cheese"]
[null,null,"CARVING BAZAAR"]
["B1","FISH/SEAFOOD","1) Grilled Snapper, Sauce Nicoise"]
[null,"VEGETABLES","2) Roasted Broccoli"]
["B2","POTATO OR VEG","1) Rosemary Garlic Potatoes Bliss"]
[null,null,"2) Sour Cream Mashed Potato"]
["B3","CARVING","FLANK STEAK STUFFED W/ ONION SPINACH & GORGONZOLA"]
[null,"SAUCES","1) Chimichurri 2) Peppercorn             3) Creamy Mustard 4) Mushroom"]
["B4","PASTA TOPPINGS","1) Grilled Chicken Breast Strips"]
[null,null,"2) Roasted Seard Steak Cubes"]
[null,null,"3) Roasted Catch of the Day Cubes"]
[null,null,"4) Garlic Shrimp"]
[null,null,"5) Roasted Vegetables"]
[null,null,"6) Fried Artichokes"]
[null,null,"7) Stewed Olives, Capers, Cherry Tom"]
[null,null,"8) Sauteed Mushrooms"]
[null,null,"Sauce: Puttanesca"]
[null,null,"Sauce: Marinara"]
[null,null,"Sauce: Lemon Caper"]
["B5","PASTA STATION","1) Ragatoni Pasta"]
[null,null,"2) Fusili Pasta"]
["DESTINATIONS",null,"ASIAN   "]
["C2","FISH / SEAFOOD               VEGETABLE ITEM","1) Korean Barramundi Fish Skewers"]
[null,null,"w/ Gochujang Chili Sauce"]
["C3","PROTEIN ITEM         SIDE ITEM","1) Char Siu Chicken Drums"]
[null,null,"2) Char Siu Sauce"]
["C4","STARCH ITEM            SIDE ITEM","1) Steamed Rice"]
[null,null,"2) Chinese Glazed Broccoli"]
[null,null,"GARDEN SOUP KETTLE"]
["D1","SOUPS","1) Daily Soup Main Dining"]
[null,null,"2) Daily Soup Main Dining"]
[null,null,"HARVEST SALADS"]
["E1","Composed Salad","Shrimp & Avocado Salad"]
[null,"Crostini","Caprese & Prosciutto, Balsamic Glaze"]
[null,"Cold Appetizer","Deviled Egg w/ Salmon Roe & Chives"]
[null,"Cold Appetizer","Watermelon, Gorgonzola, Port Syrup"]
[null,null,"COMPOSED SALADS"]
["E2","Caesar Salad","Ceasar Salad w/ Toppings"]
[null,"Composed Salad","Greek Salad"]
[null,"Fruit Salad LG","Mango-Sesame-Chili Fruit Salad"]
[null,"Roasted Veg","Roasted Carrots & Peppers"]
[null,"Cheese Garnish","Blue Cheese / Parmesan Cheese"]
[null,"Bread Garnish","Garlic Bread / Parmesan Bread"]
[null,null,"FRESH MARKET GREENS"]
["F1","Leaf Lettuce","Mixed Greens"]
[null,"Leaf Lettuce","Romaine / or / Iceberg"]
[null,"Leaf Lettuce","Shredded Green & Red Cabbage"]
[null,"Tomato Salad","Sliced Tomato & Red Onion"]
[null,"Potato Salad","Lemon Pepper Potato Salad"]
[null,"Crudités","Cauliflower/Broccoli/Cherry Tomato"]
[null,null,"GOURMET SANDWICH SHOP"]
["F2","Mini Slider Roll ","Lobster Roll"]
[null,"Open Face","Shaved Filet Mignon w/ Truffle Aioli"]
[null,"Gazpacho","Red Pepper"]
[null,"Pickles","Red Onion-Cornichons-Giardiniera-Green Olives - Kalamata Olives"]
[null,null,"CHARCUTERIE"]
["G1","CHARCUTERIE DISPLAY"]
[null,null,"SAME SET UP AS CURRENT"]
[]
[]
[null,null,"PRETZEL BAR"]
["H1","PRETZELS","Plain Pretzel"]
[null,null,"Salt Crusted Pretzel"]
[null,"SAUCE ","Beer & Cheese Sauce"]
[null,"SAUCE ","Honey Mustard Sauce"]
[null,"SAUCE ","Spicy Mustard Sauce"]
[null,null,"FRESH MARKET TOPPINGS"]
["H2","TOPPINGS","Cherry Tomato Slice / Red Onion"]
[null,null,"Cucumber / Celery / Carrots / Radish"]
[null,null,"Mixed Pepper / Mushrooms / Corn"]
[null,null,"Garbanzo Bean / Black Bean"]
[null,null,"Green Olives / Sunflower Seeds"]
[null,null,"Walnuts / Croutons"]
[null,"DRESSINGS","DRESSINGS"]
[null,null," Ranch / Caesar / Balsamic / Italian"]
[null,null," Low-fat Yogurt / Blue Cheese "]
[null,null," 1000 Island / Shallot / Mustard"]
[null,null,"PASTRY COUNTER"]
["H3","Fruit Tart","Fresh Fruit Tartlet"]
[null,"Pastry","Strawberry Short Cake"]
[null,"Pastry","Lemon Cream Cake"]
[null,"Pastry","Peach Almond Torte"]
[null,"Cupcakes","Peach / Coconut Frosting"]
[null,null,"FRESH & FAST - GF"]
["H4","Gluten Free"]
[]
[null,"Sugar Free"]
["H5","H5 - HOT"]
[null,null,"FRUIT STAND FAVORITES"]
["I-1","Whole Fruits","Banana / Red Apple / Pears / Peach   Green Apple / Oranges"]
[null,"Sliced Fruits","Watermelon/Pineapple/  Cantaloupe  Honeydew Melon"]
[null,null,"OVEN BAKED BREADS"]
["I-2","Current Rolls","1) Plain Crunchy Rolls"]
[null,null,"2) Plain Soft Rolls"]
[null,null,"3) Six Cereal Rolls"]
[null,"Loafs","4) Muesli Loaf Sliced"]
[null,null,"5) Rosemary Focaccia"]
[null,"Condiments","Butter & Preserves"]
[null,null,"FROMAGERIE"]
["I-3","CHEESE"," Cheddar / Provolone / Gorgonzola"]
[null,"CHEESE"," Havarti / Jack Cheese"]
[null,"CONDIMENTS"," Variety of Crackers"]
[null,"DRIED FRUITS","Apricots / Figs / Dates / Prunes"]
[null,"NUTS","Almond / Pistachio / Walnuts / Pecans"]
[null,null,"FRESH & FAST STATION - 2"]
["I-4","Dessert"]
[]
[]
[null,"Dessert"]
[]
["I-5","Dessert Hot"]
[]
[]
[null,null,null,null,"Sous chef DK 5 / 6 check off sign                      Time"]
[]
[null,null,null,null,"Sous Chef recive check off sign                       Time"]

{"sheet":"Menu Vessel List","index":9,"n_rows":117,"n_cols":10,"rows_kept":117,"cut":false,"hidden":false,"merged":[[50,0,55,0],[57,0,60,0],[62,0,65,0],[62,1,65,1],[111,0,115,0],[111,1,113,1],[114,1,115,1],[95,0,96,0],[98,0,103,0],[98,1,100,1],[101,1,102,1],[105,0,108,0],[84,0,88,0],[90,0,92,0],[90,1,91,1],[67,0,71,0],[38,0,41,0],[3,0,4,0],[3,1,4,1],[5,0,6,0],[5,6,6,6],[8,0,9,0],[10,0,11,0],[10,1,11,1],[12,0,13,0],[14,0,24,0],[14,1,24,1],[67,1,68,1],[73,0,82,0],[73,1,78,1],[79,1,82,1],[25,0,26,0],[25,1,26,1],[43,0,48,0],[27,0,27,1],[28,0,29,0],[28,1,29,1],[30,0,31,0],[30,1,31,1],[32,0,33,0],[32,1,33,1],[35,0,36,0],[35,1,36,1]]}
[null,"STATION","DINNER / DAY 0  x 2","DINNER / DAY 1","DINNER / DAY 2","DINNER / DAY 3","DINNER / DAY 4","DINNER/ DAY 5","DINNER / DAY 6","DINNER / DAY 7"]
[null,null,"WESTERN DESTINATIONS","WESTERN DESTINATIONS","WESTERN DESTINATIONS","WESTERN DESTINATIONS","WESTERN DESTINATIONS","WESTERN DESTINATIONS","WESTERN DESTINATIONS","WESTERN DESTINATIONS"]
["A1","GF-PASTA","1) Roasted Peppers & Basil","1) Green Peas & Cherry Tomatoes","1) Roasted Turkish Veg w/ Pasta & Sun-dried Tomato","1) Mushrooms, Garlic, Spinach Fresh","1) Roasted Peppers & Basil","1) Wild Mushroom Cream Sauce","1) Green Peas & Cherry Tomatoes","1) Mushrooms, Garlic, Spinach Fresh"]
["A2","DAILY HOT SANDWICH","1) Open Face Lemon Chicken ","1) Ultimate Grilled Cheese on ","1) Pulled Jerk Chicken Sliders w/","1) Meatball Slider w/ Mozzarella ","1) Pulled Pork Sliders w/ Gouda","1) Filet Mignon Sliders w/ Mushrooms","1) Macaroni Cakes w/ Meatballs","1) Corned Flake Chicken & Waffle"]
[null,null,"Gruyere Sandwich","Sourdough Bread","Jack Cheese & Slaw","Wilted Spinach & Parmesan","BBQ Sauce, Pickles & Red Onion-P","Caramelized Onions & Gorgonzola","& Pomodoro Sauce","Sandwich w/ Sriracha Syrup"]
["A3","TEX-MEX ITEM","1) Chili Beef Brisket & Yellow Corn","1) Shaved Pastrami Soft Tacos","1) Potato-Sausage Quesadillia","1) Steak & Cheese Enchilada w/","1) Cilantro Chicken Nacho's w/ tomato salsa and cilantro","1) Fried Codfish Tacos / Asian Slaw","1) Soft Tacos w/ Roasted Pork, Bacon","1) Roasted Vegetable Quisadilla"]
[null,"SIDE ITEM","Cheese Enchilada","Jack Cheese, Pickles, 1000 Island ","w/ Black Beans (from salsa)","Yellow Corn Salsa",null,"Chipotle Aioli","Salsa Verde & Pickled Red Onions","w/ Mozzarella Cheese"]
[null,null,"CARVING BAZAAR","CARVING BAZAAR","CARVING BAZAAR","CARVING BAZAAR","CARVING BAZAAR","CARVING BAZAAR","CARVING BAZAAR","CARVING BAZAAR"]
["B1","FISH/SEAFOOD","1) Sesame-soy Barramundi & Spinach","1) Seared Cod in Fennel Cream Sauce","1) Grilled Salmon/Tomato, Capers","1) Seared Snapper, Citrus Emulsion","1) Orange-Pepper Tuna / Orange Em","1) Whole Roasted Salmon Filet","1) Miso-Baked Codfish & Shiitake","1) Grilled Snapper, Sauce Nicoise"]
[null,"VEGETABLES","2) Parmesan Green Beans","2) Oven Roasted Brussel Sprouts","2) Baked Leek Ragout","2) Garlic Oil Broccoli","2) Roasted Green Zucchini & Peppers","2) N/A","2) Bokchoy & Bean Sprouts Chili","2) Roasted Broccoli"]
["B2","POTATO OR VEG","1) Creamy Mashed Potatoes","1) Olive-Garlic Crushed Potato","1) Parmesan Crusted Potatoes","1) Rosemary Crushed Red Bliss","1) Duchess Potato Rosettes","1) Bacon Cheddar Stuff Potatoes","1) Potatoes in Mushroom Sauce","1) Rosemary Garlic Potatoes Bliss"]
[null,null,"2) Honey Roasted Sweet Potato","2) Cheddar Mashed Potatoe","2) Steamed Green Beans","2) Truffle Mashed Potato",null,"2) Creamed Spinach","2) Sweet Potato Mash","2) Sour Cream Mashed Potato"]
["B3","CARVING","MEATLOAF & MACARONI WRAPPED IN APPLEWOOD BACON","MEDITERRANEAN CHICKEN ROULADE W/ OLIVES","ROSEMARY CRUSTED SIRLOIN","FRUIT STUFFED TURKEY BREAST WRAPPED IN HICKORY BACON","MUSTARD CRUSTED LAMB LEG","HERB ROASTED PRIME RIB","CHICKEN-MUSHROOM ROULADE","FLANK STEAK STUFFED W/ ONION SPINACH & GORGONZOLA"]
[null,"SAUCES","1) Cheese Sauce 2) BBQ Sauce       3) Cranberry Sauce 4) Mushroom","1) Mushroom Sauce 2) Pesto Cream   3) Demi Glace 4) Garlic Oil","1) Chimichurri 2) Peppercorn             3) Creamy Mustard 4) Mushroom","1) Cranberry Sauce 2) Mustard          3) Gravy Dark 4) Peppercorn","1) Mustard Sauce 2) Mint Jelly           3) Lamb Jus  4) Mango Chutney","1) Rosemary Jus 2) Mustard Sauce   3) Horseradish  4) Mushroom","1) Cranberry Sauce 2) Mustard          3) Gravy Dark 4) Peppercorn","1) Chimichurri 2) Peppercorn             3) Creamy Mustard 4) Mushroom"]
["B4","PASTA TOPPINGS","1) Grilled Chicken Breast Strips","1) Grilled Chicken Breast Strips","1) Grilled Chicken Breast Strips","1) Grilled Chicken Breast Strips","1) Grilled Chicken Breast Strips","1) Grilled Chicken Breast Strips","1) Grilled Chicken Breast Strips","1) Grilled Chicken Breast Strips"]
[null,null,"2) Roasted Seard Steak Cubes","2) Roasted Seard Steak Cubes","2) Roasted Seard Steak Cubes","2) Roasted Seard Steak Cubes","2) Roasted Seard Steak Cubes","2) Roasted Seard Steak Cubes","2) Roasted Seard Steak Cubes","2) Roasted Seard Steak Cubes"]
[null,null,"3) Roasted Catch of the Day Cubes","3) Roasted Catch of the Day Cubes","3) Roasted Catch of the Day Cubes","3) Roasted Catch of the Day Cubes","3) Roasted Catch of the Day Cubes","3) Roasted Catch of the Day Cubes","3) Roasted Catch of the Day Cubes","3) Roasted Catch of the Day Cubes"]
[null,null,"4) Garlic Shrimp","4) Garlic Shrimp","4) Garlic Shrimp","4) Garlic Shrimp","4) Garlic Shrimp","4) Garlic Shrimp","4) Garlic Shrimp","4) Garlic Shrimp"]
[null,null,"5) Roasted Vegetables","5) Roasted Vegetables","5) Roasted Vegetables","5) Roasted Vegetables","5) Roasted Vegetables","5) Roasted Vegetables","5) Roasted Vegetables","5) Roasted Vegetables"]
[null,null,"6) Fried Artichokes","6) Fried Artichokes","6) Fried Artichokes","6) Fried Artichokes","6) Fried Artichokes","6) Fried Artichokes","6) Fried Artichokes","6) Fried Artichokes"]
[null,null,"7) Stewed Olives, Capers, Cherry Tom","7) Stewed Olives, Capers, Cherry Tom","7) Stewed Olives, Capers, Cherry Tom","7) Stewed Olives, Capers, Cherry Tom","7) Stewed Olives, Capers, Cherry Tom","7) Stewed Olives, Capers, Cherry Tom","7) Stewed Olives, Capers, Cherry Tom","7) Stewed Olives, Capers, Cherry Tom"]
[null,null,"8) Sauteed Mushrooms","8) Sauteed Mushrooms","8) Sauteed Mushrooms","8) Sauteed Mushrooms","8) Sauteed Mushrooms","8) Sauteed Mushrooms","8) Sauteed Mushrooms","8) Sauteed Mushrooms"]
[null,null,"Sauce: Carbonara","Sauce: Mushroom Cream","Sauce: Alfredo","Sauce: Puttanesca","Sauce: Carbonara","Sauce: Mushroom Cream","Sauce: Alfredo","Sauce: Puttanesca"]
[null,null,"Sauce: Marinara","Sauce: Marinara","Sauce: Marinara","Sauce: Marinara","Sauce: Marinara","Sauce: Marinara","Sauce: Marinara","Sauce: Marinara"]
[null,null,"Sauce: Garlic Oil","Sauce: Bolognese","Sauce: Creamy Basil Pesto","Sauce: Lemon Caper","Sauce: Garlic Oil","Sauce: Bolognese","Sauce: Creamy Basil Pesto","Sauce: Lemon Caper"]
["B5","PASTA STATION","1) Farfalle Pasta","1) Penne Pasta","1) Conghielie Pasta","1) Ragatoni Pasta","1) Farfalle Pasta","1) Penne Pasta","1) Conghielie Pasta","1) Ragatoni Pasta"]
[null,null,"2) Fettucini Pasta","2) Fusili Pasta","2) Farfalle Pasta","2) Fusili Pasta","2) Fettucini Pasta","2) Fusili Pasta","2) Farfalle Pasta","2) Fusili Pasta"]
["DESTINATIONS",null,"ENGLISH","FRENCH","ASIAN","ITALIAN","ASIAN","MEDITERRANEAN","SOUTHERN  ","ASIAN   "]
["C2","FISH / SEAFOOD               VEGETABLE ITEM","1) Fisherman's Curry Stew","1) Almond Crusted Tilapia, Veronique","1) Teriyake Glazed Codfish, Sticky","1) Frito Misto in Marinara Sauce","1) Charred Salmon Harami w/ Ponzu","1) Andalous Seafood Paella w/ Shrimp","1) Blackened Spice Codfish on ","1) Korean Barramundi Fish Skewers"]
[null,null,"2) Roasted Carrots & Peppers","with Creamy Potato Fondant","Coconut Rice, Bokchoy, Crispy Want","Saffron Aioli Drizzle","Pickled Ginger Slaw, Fried Noodles","Mussels, Calamari, Scallops, Veg","Creamed Corn & Pickled Red Onion","w/ Gochujang Chili Sauce"]
["C3","PROTEIN ITEM         SIDE ITEM","1) Classic London Broil","1) Rustic Coq au Vin Chicken","1) Sweet Chili Pork Loin /Asian Slaw","1) Chicken Scallopini Breaded","1) Thai Chicken Skewers w/ Peanut","1) Greek Style Lamb Chops","1) Southern Dry-rub BBQ Ribs","1) Char Siu Chicken Drums"]
[null,null,null,"2) Fried Onions","2) Spiced Fried Glass Noodles","2) Olives, Roasted Peppers, Onions","Sauce & Pickled Bean Sprouts","2) Crazy Feta Sauce","2) BBQ Sauce","2) Char Siu Sauce"]
["C4","STARCH ITEM            SIDE ITEM","1) Boiled Bliss Potatoes","1) Rice Pilaf","1) Soy Ramen Noodle & Broccoli","1) Orzo Pasta, Spinach, Tomato","1) Vegetable Fried Rice","1) Vegetable Eggplan Moussaka","1) Aged Cheddar Macaroni","1) Steamed Rice"]
[null,null,null,"2) Green Beans & Onions","2) Vegetable Goyza w/Peanut Sauce","2) Pomodorro Sauce","2) Soy-ginger Braised Cabbage","2) Roasted Okra & Tomato w/ Garlic","2) Collard Greens & Beans","2) Chinese Glazed Broccoli"]
[null,null,"GARDEN SOUP KETTLE","GARDEN SOUP KETTLE","GARDEN SOUP KETTLE","GARDEN SOUP KETTLE","GARDEN SOUP KETTLE","GARDEN SOUP KETTLE","GARDEN SOUP KETTLE","GARDEN SOUP KETTLE"]
["D1","SOUPS","1) Daily Soup Main Dining","1) Daily Soup Main Dining","1) Daily Soup Main Dining","1) Daily Soup Main Dining","1) Daily Soup Main Dining","1) Daily Soup Main Dining","1) Daily Soup Main Dining","1) Daily Soup Main Dining"]
[null,null,"2) Daily Soup Main Dining","2) Daily Soup Main Dining","2) Daily Soup Main Dining","2) Daily Soup Main Dining","2) Daily Soup Main Dining","2) Daily Soup Main Dining","2) Daily Soup Main Dining","2) Daily Soup Main Dining"]
[null,null,"HARVEST SALADS","HARVEST SALADS","HARVEST SALADS","HARVEST SALADS","HARVEST SALADS","HARVEST SALADS","HARVEST SALADS","HARVEST SALADS"]
["E1","Composed Salad","Hot Smoked Salmon & Cucumber","White Truffle Chicken Salad","Shrimp & Avocado Salad","Tuna Salad Nicoise","Hot Smoked Salmon & Cucumber","Hot Smoked Salmon & Cucumber","White Truffle Chicken Salad","Shrimp & Avocado Salad"]
[null,"Crostini","Port Figs & Brie Crostini","Goat Cheese & Beet Crostini","Caprese & Prosciutto, Balsamic Glaze","Gorgonzola, Cranberries, Pistachio","Port Figs & Brie Crostini","Port Figs & Brie Crostini","Goat Cheese & Beet Crostini","Caprese & Prosciutto, Balsamic Glaze"]
[null,"Cold Appetizer","Deviled Egg w/ Salmon Roe & Chives","Port Figs & Brie Puffs","Deviled Egg w/ Salmon Roe & Chives","Prosciutto, Arugula, Gorgonzola","Bresola Wrapped Asparagus","Deviled Egg w/ Salmon Roe & Chives","Port Figs & Brie Puffs","Deviled Egg w/ Salmon Roe & Chives"]
[null,"Cold Appetizer","Mixed Olives & Almonds","Salt Roasted Cashews & Pickles","Watermelon, Gorgonzola, Port Syrup","Cantaloupe & Prosciutto","Apricot Gorgonzola Tarts","Mixed Olives & Almonds","Salt Roasted Cashews & Pickles","Watermelon, Gorgonzola, Port Syrup"]
[null,null,"COMPOSED SALADS","COMPOSED SALADS","COMPOSED SALADS","COMPOSED SALADS","COMPOSED SALADS","COMPOSED SALADS","COMPOSED SALADS","COMPOSED SALADS"]
["E2","Caesar Salad","Ceasar Salad w/ Toppings","Ceasar Salad w/ Toppings","Ceasar Salad w/ Toppings","Ceasar Salad w/ Toppings","Ceasar Salad w/ Toppings","Ceasar Salad w/ Toppings","Ceasar Salad w/ Toppings","Ceasar Salad w/ Toppings"]
[null,"Composed Salad","Chicken Salad","Green Bean Salad","Orzo Pasta & Chicken Salad","Greek Salad","Chicken Salad","Green Bean Salad","Orzo Pasta & Chicken Salad","Greek Salad"]
[null,"Fruit Salad LG","Mango-Sesame-Chili Fruit Salad","Apricot & Cherry Fruit Salad","Spicy Pear & Pineapple Salad","Cajun Peach Salad","Apricot & Cherry Fruit Salad","Spicy Pear & Pineapple Salad","Cajun Peach Salad","Mango-Sesame-Chili Fruit Salad"]
[null,"Roasted Veg","Zucchini-Peppers-Onions","Roasted Asparagus-Tomato-Carrot","Roasted Mushroom & Tomato","Roasted Carrots & Peppers","Mixed Vegetables","Zucchini-Red Pepper- Eggplant","Roasted Mushroom & Tomato","Roasted Carrots & Peppers"]
[null,"Cheese Garnish","Blue Cheese / Parmesan Cheese","Blue Cheese / Parmesan Cheese","Blue Cheese / Parmesan Cheese","Blue Cheese / Parmesan Cheese","Blue Cheese / Parmesan Cheese","Blue Cheese / Parmesan Cheese","Blue Cheese / Parmesan Cheese","Blue Cheese / Parmesan Cheese"]
[null,"Bread Garnish","Garlic Bread / Parmesan Bread","Seasoned Bagel Chips","Garlic Bread / Parmesan Bread","Cheddar Cheese Bread","Seasoned Bagel Chips","Garlic Bread / Parmesan Bread","Cheddar Cheese Bread","Garlic Bread / Parmesan Bread"]
[null,null,"FRESH MARKET GREENS","FRESH MARKET GREENS","FRESH MARKET GREENS","FRESH MARKET GREENS","FRESH MARKET GREENS","FRESH MARKET GREENS","FRESH MARKET GREENS","FRESH MARKET GREENS"]
["F1","Leaf Lettuce","Mixed Greens","Mixed Greens","Mixed Greens","Mixed Greens","Mixed Greens","Mixed Greens","Mixed Greens","Mixed Greens"]
[null,"Leaf Lettuce","Romaine / or / Iceberg","Romaine / or / Iceberg","Romaine / or / Iceberg","Romaine / or / Iceberg","Romaine / or / Iceberg","Romaine / or / Iceberg","Romaine / or / Iceberg","Romaine / or / Iceberg"]
[null,"Leaf Lettuce","Shredded Green & Red Cabbage","Shredded Green & Red Cabbage","Shredded Green & Red Cabbage","Shredded Green & Red Cabbage","Shredded Green & Red Cabbage","Shredded Green & Red Cabbage","Shredded Green & Red Cabbage","Shredded Green & Red Cabbage"]
[null,"Tomato Salad","Sliced Tomato & Red Onion","Sliced Tomato & Red Onion","Sliced Tomato & Red Onion","Sliced Tomato & Red Onion","Sliced Tomato & Red Onion","Sliced Tomato & Red Onion","Sliced Tomato & Red Onion","Sliced Tomato & Red Onion"]
[null,"Potato Salad","Smoked Paprika Potato Salad","German Potato Salad","American Potato Salad","Lemon Pepper Potato Salad","German Potato Salad","American Potato Salad","Smoked Paprika Potato Salad","Lemon Pepper Potato Salad"]
[null,"Crudités","Carrots/Celery/Pepper/Radish","Cauliflower/Broccoli/Cherry Tomato","Cucumber/Radish/Peppers/Carrots","Carrots/Celery/Pepper/Radish","Cauliflower/Broccoli/Cherry Tomato","Cucumber/Radish/Peppers/Carrots","Carrots/Celery/Pepper/Radish","Cauliflower/Broccoli/Cherry Tomato"]
[null,null,"GOURMET SANDWICH SHOP","GOURMET SANDWICH SHOP","GOURMET SANDWICH SHOP","GOURMET SANDWICH SHOP","GOURMET SANDWICH SHOP","GOURMET SANDWICH SHOP","GOURMET SANDWICH SHOP","GOURMET SANDWICH SHOP"]
["F2","Mini Slider Roll ","Roast Beef, Horseradish, Pickles","Waldorf Chicken Sandwich","Salami, Tomato, Brie, Figs, Fennel","Lobster Roll","Roast Beef, Horseradish, Pickles","Waldorf Chicken Sandwich","Salami, Tomato, Brie, Figs, Fennel","Lobster Roll"]
[null,"Open Face","Smoked Salmon, Cucumber, Dill Cream","Prosciutto, Gorgonzola, Figs","Shaved Lamb, Tabbouleh Feta","Shaved Filet Mignon w/ Truffle Aioli","Smoked Salmon, Cucumber, Dill Cream","Prosciutto, Gorgonzola, Figs","Shaved Lamb, Tabbouleh Feta","Shaved Filet Mignon w/ Truffle Aioli"]
[null,"Gazpacho","Cucumber Herb","Tomato & Basil","Carrot-Lime","Red Pepper","Cucumber Herb","Tomato & Basil","Carrot-Lime","Red Pepper"]
[null,"Pickles","Red Onion-Cornichons-Giardiniera-Green Olives - Kalamata Olives","Red Onion-Cornichons-Giardiniera-Green Olives - Kalamata Olives","Red Onion-Cornichons-Giardiniera-Green Olives - Kalamata Olives","Red Onion-Cornichons-Giardiniera-Green Olives - Kalamata Olives","Red Onion-Cornichons-Giardiniera-Green Olives - Kalamata Olives","Red Onion-Cornichons-Giardiniera-Green Olives - Kalamata Olives","Red Onion-Cornichons-Giardiniera-Green Olives - Kalamata Olives","Red Onion-Cornichons-Giardiniera-Green Olives - Kalamata Olives"]
[null,null,"CHARCUTERIE","CHARCUTERIE","CHARCUTERIE","CHARCUTERIE","CHARCUTERIE","CHARCUTERIE","CHARCUTERIE","CHARCUTERIE"]
["G1","CHARCUTERIE DISPLAY"]
[null,null,"SAME SET UP AS CURRENT","SAME SET UP AS CURRENT","SAME SET UP AS CURRENT","SAME SET UP AS CURRENT","SAME SET UP AS CURRENT","SAME SET UP AS CURRENT","SAME SET UP AS CURRENT","SAME SET UP AS CURRENT"]
[]
[]
[null,null,"PRETZEL BAR","PRETZEL BAR","PRETZEL BAR","PRETZEL BAR","PRETZEL BAR","PRETZEL BAR","PRETZEL BAR","PRETZEL BAR"]
["H1","PRETZELS","Plain Pretzel","Plain Pretzel","Plain Pretzel","Plain Pretzel","Plain Pretzel","Plain Pretzel","Plain Pretzel","Plain Pretzel"]
[null,null,"Salt Crusted Pretzel","Salt Crusted Pretzel","Salt Crusted Pretzel","Salt Crusted Pretzel","Salt Crusted Pretzel","Salt Crusted Pretzel","Salt Crusted Pretzel","Salt Crusted Pretzel"]
[null,"SAUCE ","Beer & Cheese Sauce","Beer & Cheese Sauce","Beer & Cheese Sauce","Beer & Cheese Sauce","Beer & Cheese Sauce","Beer & Cheese Sauce","Beer & Cheese Sauce","Beer & Cheese Sauce"]
[null,"SAUCE ","Honey Mustard Sauce","Honey Mustard Sauce","Honey Mustard Sauce","Honey Mustard Sauce","Honey Mustard Sauce","Honey Mustard Sauce","Honey Mustard Sauce","Honey Mustard Sauce"]
[null,"SAUCE ","Spicy Mustard Sauce","Spicy Mustard Sauce","Spicy Mustard Sauce","Spicy Mustard Sauce","Spicy Mustard Sauce","Spicy Mustard Sauce","Spicy Mustard Sauce","Spicy Mustard Sauce"]
[null,null,"FRESH MARKET TOPPINGS","FRESH MARKET TOPPINGS","FRESH MARKET TOPPINGS","FRESH MARKET TOPPINGS","FRESH MARKET TOPPINGS","FRESH MARKET TOPPINGS","FRESH MARKET TOPPINGS","FRESH MARKET TOPPINGS"]
["H2","TOPPINGS","Cherry Tomato Slice / Red Onion","Cherry Tomato Slice / Red Onion","Cherry Tomato Slice / Red Onion","Cherry Tomato Slice / Red Onion","Cherry Tomato Slice / Red Onion","Cherry Tomato Slice / Red Onion","Cherry Tomato Slice / Red Onion","Cherry Tomato Slice / Red Onion"]
[null,null,"Cucumber / Celery / Carrots / Radish","Cucumber / Celery / Carrots / Radish","Cucumber / Celery / Carrots / Radish","Cucumber / Celery / Carrots / Radish","Cucumber / Celery / Carrots / Radish","Cucumber / Celery / Carrots / Radish","Cucumber / Celery / Carrots / Radish","Cucumber / Celery / Carrots / Radish"]
[null,null,"Mixed Pepper / Mushrooms / Corn","Mixed Pepper / Mushrooms / Corn","Mixed Pepper / Mushrooms / Corn","Mixed Pepper / Mushrooms / Corn","Mixed Pepper / Mushrooms / Corn","Mixed Pepper / Mushrooms / Corn","Mixed Pepper / Mushrooms / Corn","Mixed Pepper / Mushrooms / Corn"]
[null,null,"Garbanzo Bean / Black Bean","Garbanzo Bean / Black Bean","Garbanzo Bean / Black Bean","Garbanzo Bean / Black Bean","Garbanzo Bean / Black Bean","Garbanzo Bean / Black Bean","Garbanzo Bean / Black Bean","Garbanzo Bean / Black Bean"]
[null,null,"Green Olives / Sunflower Seeds","Green Olives / Sunflower Seeds","Green Olives / Sunflower Seeds","Green Olives / Sunflower Seeds","Green Olives / Sunflower Seeds","Green Olives / Sunflower Seeds","Green Olives / Sunflower Seeds","Green Olives / Sunflower Seeds"]
[null,null,"Walnuts / Croutons","Walnuts / Croutons","Walnuts / Croutons","Walnuts / Croutons","Walnuts / Croutons","Walnuts / Croutons","Walnuts / Croutons","Walnuts / Croutons"]
[null,"DRESSINGS","DRESSINGS","DRESSINGS","DRESSINGS","DRESSINGS","DRESSINGS","DRESSINGS","DRESSINGS","DRESSINGS"]
[null,null," Ranch / Caesar / Balsamic / Italian"," Ranch / Caesar / Balsamic / Italian"," Ranch / Caesar / Balsamic / Italian"," Ranch / Caesar / Balsamic / Italian"," Ranch / Caesar / Balsamic / Italian"," Ranch / Caesar / Balsamic / Italian"," Ranch / Caesar / Balsamic / Italian"," Ranch / Caesar / Balsamic / Italian"]
[null,null," Low-fat Yogurt / Blue Cheese "," Low-fat Yogurt / Blue Cheese "," Low-fat Yogurt / Blue Cheese "," Low-fat Yogurt / Blue Cheese "," Low-fat Yogurt / Blue Cheese "," Low-fat Yogurt / Blue Cheese "," Low-fat Yogurt / Blue Cheese "," Low-fat Yogurt / Blue Cheese "]
[null,null," 1000 Island / Shallot / Mustard"," 1000 Island / Shallot / Mustard"," 1000 Island / Shallot / Mustard"," 1000 Island / Shallot / Mustard"," 1000 Island / Shallot / Mustard"," 1000 Island / Shallot / Mustard"," 1000 Island / Shallot / Mustard"," 1000 Island / Shallot / Mustard"]
[null,null,"PASTRY COUNTER","PASTRY COUNTER","PASTRY COUNTER","PASTRY COUNTER","PASTRY COUNTER","PASTRY COUNTER","PASTRY COUNTER","PASTRY COUNTER"]
["H3","Fruit Tart","Fresh Fruit Tartlet","Fresh Fruit Tartlet","Fresh Fruit Tartlet","Fresh Fruit Tartlet","Fresh Fruit Tartlet","Fresh Fruit Tartlet","Fresh Fruit Tartlet","Fresh Fruit Tartlet"]
[null,"Pastry","Pecan Pie","Pecan Pie","Carrot Cake","Carrot Cake","Coconut Cream Pie","Coconut Cream Pie","Strawberry Short Cake","Strawberry Short Cake"]
[null,"Pastry","Grand Marnier Cream Horn","Chocolate Eclairs","Chocolate Eclairs","White Chocolate Cheesecake","White Chocolate Cheesecake","Mocha Profiteroles","Mocha Profiteroles","Lemon Cream Cake"]
[null,"Pastry","Macadamia Nut Brownie Mousse Cake","Apple Pie","Apple Pie","Brazilian Nut Torte","Pavlova","Pavlova","Peach Almond Torte","Peach Almond Torte"]
[null,"Cupcakes","Red Velvet / Vanilla Yogurt Frosting","Apple Cinnamon / Vanilla Frosting","Maple Walnut / Banana Frosting","Chocolate Chip / Chocolate Frosting","Carrot / Cream Cheese Frosting","Blueberry / Vanilla Yogurt Frosting","Chocolate / Raspberry Frosting","Peach / Coconut Frosting"]
[null,null,"FRESH & FAST - GF","FRESH & FAST - GF","FRESH & FAST - GF","FRESH & FAST - GF","FRESH & FAST - GF","FRESH & FAST - GF","FRESH & FAST - GF","FRESH & FAST - GF"]
["H4","Gluten Free"]
[]
[null,"Sugar Free"]
["H5","H5 - HOT"]
[null,null,"FRUIT STAND FAVORITES","FRUIT STAND FAVORITES","FRUIT STAND FAVORITES","FRUIT STAND FAVORITES","FRUIT STAND FAVORITES","FRUIT STAND FAVORITES","FRUIT STAND FAVORITES","FRUIT STAND FAVORITES"]
["I-1","Whole Fruits","Banana / Red Apple / Pears / Peach   Green Apple / Oranges","Banana / Red Apple / Pears / Peach   Green Apple / Oranges","Banana / Red Apple / Pears / Peach   Green Apple / Oranges","Banana / Red Apple / Pears / Peach   Green Apple / Oranges","Banana / Red Apple / Pears / Peach   Green Apple / Oranges","Banana / Red Apple / Pears / Peach   Green Apple / Oranges","Banana / Red Apple / Pears / Peach   Green Apple / Oranges","Banana / Red Apple / Pears / Peach   Green Apple / Oranges"]
[null,"Sliced Fruits","Watermelon/Pineapple/  Cantaloupe  Honeydew Melon","Watermelon/Pineapple/  Cantaloupe  Honeydew Melon","Watermelon/Pineapple/  Cantaloupe  Honeydew Melon","Watermelon/Pineapple/  Cantaloupe  Honeydew Melon","Watermelon/Pineapple/  Cantaloupe  Honeydew Melon","Watermelon/Pineapple/  Cantaloupe  Honeydew Melon","Watermelon/Pineapple/  Cantaloupe  Honeydew Melon","Watermelon/Pineapple/  Cantaloupe  Honeydew Melon"]
[null,null,"OVEN BAKED BREADS","OVEN BAKED BREADS","OVEN BAKED BREADS","OVEN BAKED BREADS","OVEN BAKED BREADS","OVEN BAKED BREADS","OVEN BAKED BREADS","OVEN BAKED BREADS"]
["I-2","Current Rolls","1) Plain Crunchy Rolls","1) Plain Crunchy Rolls","1) Plain Crunchy Rolls","1) Plain Crunchy Rolls","1) Plain Crunchy Rolls","1) Plain Crunchy Rolls","1) Plain Crunchy Rolls","1) Plain Crunchy Rolls"]
[null,null,"2) Plain Soft Rolls","2) Plain Soft Rolls","2) Plain Soft Rolls","2) Plain Soft Rolls","2) Plain Soft Rolls","2) Plain Soft Rolls","2) Plain Soft Rolls","2) Plain Soft Rolls"]
[null,null,"3) Six Cereal Rolls","3) Sunflower Seed Rolls","3) Pumpernickel Rolls","3) Sesame Seed Rolls","3) Olive Rolls","3) Whole Wheat Raisin","3) Honey Wheat Rolls","3) Six Cereal Rolls"]
[null,"Loafs","4) Muesli Loaf Sliced","4) Honey Wheat Loaf Slice","4) Six Cereal Loaf Sliced","4) Focaccia Loaf Sliced","4) Pumpernickel Loaf Sliced","4) Rye Loaf Sliced","4) Sourdough Loaf Sliced","4) Muesli Loaf Sliced"]
[null,null,"5) Olive Focaccia","5) Olive Focaccia","5) Olive Focaccia","5) Tomato Focaccia","5) Parmesan Focaccia","5) Sun-Dried Tomato Focaccia","5) Olive Focaccia","5) Rosemary Focaccia"]
[null,"Condiments","Butter & Preserves","Butter & Preserves","Butter & Preserves","Butter & Preserves","Butter & Preserves","Butter & Preserves","Butter & Preserves","Butter & Preserves"]
[null,null,"FROMAGERIE","FROMAGERIE","FROMAGERIE","FROMAGERIE","FROMAGERIE","FROMAGERIE","FROMAGERIE","FROMAGERIE"]
["I-3","CHEESE"," Cheddar / Provolone / Gorgonzola"," Cheddar / Provolone / Gorgonzola"," Cheddar / Provolone / Gorgonzola"," Cheddar / Provolone / Gorgonzola"," Cheddar / Provolone / Gorgonzola"," Cheddar / Provolone / Gorgonzola"," Cheddar / Provolone / Gorgonzola"," Cheddar / Provolone / Gorgonzola"]
[null,"CHEESE"," Havarti / Jack Cheese"," Havarti / Jack Cheese"," Havarti / Jack Cheese"," Havarti / Jack Cheese"," Havarti / Jack Cheese"," Havarti / Jack Cheese"," Havarti / Jack Cheese"," Havarti / Jack Cheese"]
[null,"CONDIMENTS"," Variety of Crackers"," Variety of Crackers"," Variety of Crackers"," Variety of Crackers"," Variety of Crackers"," Variety of Crackers"," Variety of Crackers"," Variety of Crackers"]
[null,"DRIED FRUITS","Apricots / Figs / Dates / Prunes","Apricots / Figs / Dates / Prunes","Apricots / Figs / Dates / Prunes","Apricots / Figs / Dates / Prunes","Apricots / Figs / Dates / Prunes","Apricots / Figs / Dates / Prunes","Apricots / Figs / Dates / Prunes","Apricots / Figs / Dates / Prunes"]
[null,"NUTS","Almond / Pistachio / Walnuts / Pecans","Almond / Pistachio / Walnuts / Pecans","Almond / Pistachio / Walnuts / Pecans","Almond / Pistachio / Walnuts / Pecans","Almond / Pistachio / Walnuts / Pecans","Almond / Pistachio / Walnuts / Pecans","Almond / Pistachio / Walnuts / Pecans","Almond / Pistachio / Walnuts / Pecans"]
[null,null,"FRESH & FAST STATION - 2","FRESH & FAST STATION - 2","FRESH & FAST STATION - 2","FRESH & FAST STATION - 2","FRESH & FAST STATION - 2","FRESH & FAST STATION - 2","FRESH & FAST STATION - 2","FRESH & FAST STATION - 2"]
["I-4","Dessert"]
[]
[]
[null,"Dessert"]
[]
["I-5","Dessert Hot"]

{"sheet":"LUNCH CARVING","index":10,"n_rows":5,"n_cols":2,"rows_kept":5,"cut":false,"hidden":false,"merged":[]}
["MEDITERRANEAN LEG OF LAMB","Roulade stuffed with kalmata olives, sundried tomato, artichokes, carm onions, quinoa"]
[]
["FLANK STEAK","Stuffed with spinach, garlic, mushrooms, gorgonzola cheese"]
[]
["TURKEY ROULADE"]